Workbook

Sheet Main
B10: 2019-11-11
B12: Sheet No. | C12: Template Name | D12: Summary
B13: 1 | C13: Future Intra | D13: For Intraday trading in F&O segment
B14: 2 | C14: Cash Intra | D14: For Intraday trading in cash market segment
B15: 3 | C15: Mid-cap Intra | D15: For Intraday trading in Mid-cap stocks
B16: 4 | C16: Bulk Deals | D16: Reveals Bulk Deals carried on NSE & BSE
B17: 5 | C17: Call Tracker
K27: `

Sheet Future Intra
M5: Back to Main Page
A6: FOR INTRA DAY TRADING | L6: =Main!B10 -> 2019-11-11
A9: Sr.no | B9: Sector | C9: Scrip | D9: CLOSE RATE | E9: Pivot Point | F9: Supports | I9: Resistances
B10: Sector | D10: Point | E10: Point | F10: S1 | G10: S2 | H10: S3 | I10: R1 | J10: R2 | K10: R3 | L10: HIGH | M10: LOW | N10: OI | O10: % Change in OI
A11: 1 | B11: Index | C11: BANKNIFTY | D11: 30759.00 | E11: 30783.85 | F11: 30468.70 | G11: 30178.40 | H11: 29863.25 | I11: 31074.15 | J11: 31389.30 | K11: 31679.60 | L11: 31099 | M11: 30493.55 | N11: 1738200 | O11: 18.60%
A12: 2 | B12: Index | C12: NIFTY | D12: 11945.35 | E12: 11982.57 | F12: 11896.13 | G12: 11846.92 | H12: 11760.48 | I12: 12031.78 | J12: 12118.22 | K12: 12167.43 | L12: 12069 | M12: 11933.35 | N12: 16551300 | O12: -2.28%
A13: 3 | B13: Index | C13: NIFTYIT | D13: 15505.00 | E13: 15578.00 | F13: 15399.00 | G13: 15293.00 | H13: 15114.00 | I13: 15684.00 | J13: 15863.00 | K13: 15969.00 | L13: 15757 | M13: 15472 | N13: 8450 | O13: 21.58%
A14: 4 | B14: Cement | C14: ACC | D14: 1509.00 | E14: 1520.33 | F14: 1490.67 | G14: 1472.33 | H14: 1442.67 | I14: 1538.67 | J14: 1568.33 | K14: 1586.67 | L14: 1550 | M14: 1502 | N14: 2952400 | O14: 2.37%
A15: 5 | B15: Others | C15: ADANIENT | D15: 208.35 | E15: 209.17 | F15: 205.83 | G15: 203.32 | H15: 199.98 | I15: 211.68 | J15: 215.02 | K15: 217.53 | L15: 212.5 | M15: 206.65 | N15: 30280000 | O15: -0.76%
A16: 6 | B16: Others | C16: ADANIPORTS | D16: 386.90 | E16: 388.47 | F16: 384.58 | G16: 382.27 | H16: 378.38 | I16: 390.78 | J16: 394.67 | K16: 396.98 | L16: 392.35 | M16: 386.15 | N16: 17122500 | O16: 0.48%
A17: 7 | B17: Power | C17: ADANIPOWER | D17: 68.90 | E17: 69.92 | F17: 67.48 | G17: 66.07 | H17: 63.63 | I17: 71.33 | J17: 73.77 | K17: 75.18 | L17: 72.35 | M17: 68.5 | N17: 78340000 | O17: -1.56%
A18: 8 | B18: Automobile | C18: AMARAJABAT | D18: 654.60 | E18: 660.08 | F18: 646.52 | G18: 638.43 | H18: 624.87 | I18: 668.17 | J18: 681.73 | K18: 689.82 | L18: 673.65 | M18: 652 | N18: 1290200 | O18: -3.20%
A19: 9 | B19: Cement | C19: AMBUJACEM | D19: 201.80 | E19: 202.35 | F19: 199.35 | G19: 196.90 | H19: 193.90 | I19: 204.80 | J19: 207.80 | K19: 210.25 | L19: 205.35 | M19: 199.9 | N19: 19042500 | O19: -2.97%
A20: 10 | B20: Others | C20: APOLLOHOSP | D20: 1419.70 | E20: 1433.42 | F20: 1399.88 | G20: 1380.07 | H20: 1346.53 | I20: 1453.23 | J20: 1486.77 | K20: 1506.58 | L20: 1466.95 | M20: 1413.6 | N20: 1664000 | O20: -1.30%
A21: 11 | B21: Automobile | C21: APOLLOTYRE | D21: 163.60 | E21: 164.87 | F21: 161.83 | G21: 160.07 | H21: 157.03 | I21: 166.63 | J21: 169.67 | K21: 171.43 | L21: 167.9 | M21: 163.1 | N21: 10425000 | O21: 7.39%
A22: 12 | B22: Automobile | C22: ASHOKLEY | D22: 75.75 | E22: 76.75 | F22: 74.00 | G22: 72.25 | H22: 69.50 | I22: 78.50 | J22: 81.25 | K22: 83.00 | L22: 79.5 | M22: 75 | N22: 64180000 | O22: 3.85%
A23: 13 | B23: FMCG | C23: ASIANPAINT | D23: 1798.10 | E23: 1809.48 | F23: 1784.07 | G23: 1770.03 | H23: 1744.62 | I23: 1823.52 | J23: 1848.93 | K23: 1862.97 | L23: 1834.9 | M23: 1795.45 | N23: 7572000 | O23: -4.26%
A24: 14 | B24: Pharma | C24: AUROPHARMA | D24: 439.45 | E24: 443.75 | F24: 432.00 | G24: 424.55 | H24: 412.80 | I24: 451.20 | J24: 462.95 | K24: 470.40 | L24: 455.5 | M24: 436.3 | N24: 17891000 | O24: 3.49%
A25: 15 | B25: Banking | C25: AXISBANK | D25: 728.00 | E25: 730.80 | F25: 723.05 | G25: 718.10 | H25: 710.35 | I25: 735.75 | J25: 743.50 | K25: 748.45 | L25: 738.55 | M25: 725.85 | N25: 56071200 | O25: 4.98%
A26: 16 | B26: Automobile | C26: BAJAJ-AUTO | D26: 3259.85 | E26: 3268.00 | F26: 3244.10 | G26: 3228.35 | H26: 3204.45 | I26: 3283.75 | J26: 3307.65 | K26: 3323.40 | L26: 3291.9 | M26: 3252.25 | N26: 2249750 | O26: 0.31%
A27: 17 | B27: Finance | C27: BAJAJFINSV | D27: 8835.60 | E27: 8850.73 | F27: 8740.77 | G27: 8645.93 | H27: 8535.97 | I27: 8945.57 | J27: 9055.53 | K27: 9150.37 | L27: 8960.7 | M27: 8755.9 | N27: 1442625 | O27: 1.87%
A28: 18 | B28: Finance | C28: BAJFINANCE | D28: 4175.75 | E28: 4198.58 | F28: 4141.17 | G28: 4106.58 | H28: 4049.17 | I28: 4233.17 | J28: 4290.58 | K28: 4325.17 | L28: 4256 | M28: 4164 | N28: 7309500 | O28: 1.93%
A29: 19 | B29: Automobile | C29: BALKRISIND | D29: 847.15 | E29: 851.42 | F29: 837.13 | G29: 827.12 | H29: 812.83 | I29: 861.43 | J29: 875.72 | K29: 885.73 | L29: 865.7 | M29: 841.4 | N29: 1561600 | O29: 2.57%
A30: 20 | B30: Banking | C30: BANKBARODA | D30: 94.05 | E30: 94.97 | F30: 92.68 | G30: 91.32 | H30: 89.03 | I30: 96.33 | J30: 98.62 | K30: 99.98 | L30: 97.25 | M30: 93.6 | N30: 81409500 | O30: 6.39%
A31: 21 | B31: Banking | C31: BANKINDIA | D31: 66.05 | E31: 66.73 | F31: 65.12 | G31: 64.18 | H31: 62.57 | I31: 67.67 | J31: 69.28 | K31: 70.22 | L31: 68.35 | M31: 65.8 | N31: 23436000 | O31: 0.21%
A32: 22 | B32: FMCG | C32: BATAINDIA | D32: 1697.40 | E32: 1709.57 | F32: 1678.13 | G32: 1658.87 | H32: 1627.43 | I32: 1728.83 | J32: 1760.27 | K32: 1779.53 | L32: 1741 | M32: 1690.3 | N32: 2525600 | O32: 1.35%
A33: 23 | B33: Capital_Goods | C33: BEL | D33: 108.95 | E33: 109.95 | F33: 107.40 | G33: 105.85 | H33: 103.30 | I33: 111.50 | J33: 114.05 | K33: 115.60 | L33: 112.5 | M33: 108.4 | N33: 29172000 | O33: 5.79%
A34: 24 | B34: FMCG | C34: BERGEPAINT | D34: 483.35 | E34: 490.45 | F34: 474.90 | G34: 466.45 | H34: 450.90 | I34: 498.90 | J34: 514.45 | K34: 522.90 | L34: 506 | M34: 482 | N34: 7609800 | O34: 2.04%
A35: 25 | B35: Automobile | C35: BHARATFORG | D35: 423.80 | E35: 437.53 | F35: 403.12 | G35: 382.43 | H35: 348.02 | I35: 458.22 | J35: 492.63 | K35: 513.32 | L35: 471.95 | M35: 416.85 | N35: 8187700 | O35: 19.05%
A36: 26 | B36: Telecom | C36: BHARTIARTL | D36: 370.25 | E36: 371.32 | F36: 366.43 | G36: 362.62 | H36: 357.73 | I36: 375.13 | J36: 380.02 | K36: 383.83 | L36: 376.2 | M36: 367.5 | N36: 31041270 | O36: -0.77%
A37: 27 | B37: Capital_Goods | C37: BHEL | D37: 54.35 | E37: 54.67 | F37: 53.18 | G37: 52.02 | H37: 50.53 | I37: 55.83 | J37: 57.32 | K37: 58.48 | L37: 56.15 | M37: 53.5 | N37: 54292000 | O37: -3.49%
A38: 28 | B38: Pharma | C38: BIOCON | D38: 263.45 | E38: 264.15 | F38: 260.85 | G38: 258.25 | H38: 254.95 | I38: 266.75 | J38: 270.05 | K38: 272.65 | L38: 267.45 | M38: 261.55 | N38: 11520100 | O38: 3.15%
A39: 29 | B39: Automobile | C39: BOSCHLTD | D39: 15332.80 | E39: 15330.43 | F39: 15093.47 | G39: 14854.13 | H39: 14617.17 | I39: 15569.77 | J39: 15806.73 | K39: 16046.07 | L39: 15567.4 | M39: 15091.1 | N39: 148050 | O39: 0.04%
A40: 30 | B40: Oil_Gas | C40: BPCL | D40: 504.60 | E40: 508.23 | F40: 498.72 | G40: 492.83 | H40: 483.32 | I40: 514.12 | J40: 523.63 | K40: 529.52 | L40: 517.75 | M40: 502.35 | N40: 22420800 | O40: 8.54%
A41: 31 | B41: FMCG | C41: BRITANNIA | D41: 3164.80 | E41: 3189.50 | F41: 3130.30 | G41: 3095.80 | H41: 3036.60 | I41: 3224.00 | J41: 3283.20 | K41: 3317.70 | L41: 3248.7 | M41: 3155 | N41: 2122000 | O41: 4.89%
A42: 32 | B42: Pharma | C42: CADILAHC | D42: 232.85 | E42: 234.37 | F42: 230.38 | G42: 227.92 | H42: 223.93 | I42: 236.83 | J42: 240.82 | K42: 243.28 | L42: 238.35 | M42: 231.9 | N42: 8775600 | O42: -1.31%
A43: 33 | B43: Banking | C43: CANBK | D43: 202.10 | E43: 204.17 | F43: 198.78 | G43: 195.47 | H43: 190.08 | I43: 207.48 | J43: 212.87 | K43: 216.18 | L43: 209.55 | M43: 200.85 | N43: 12832600 | O43: 0.10%
A44: 34 | B44: Oil_Gas | C44: CASTROLIND | D44: 146.85 | E44: 148.65 | F44: 144.55 | G44: 142.25 | H44: 138.15 | I44: 150.95 | J44: 155.05 | K44: 157.35 | L44: 152.75 | M44: 146.35 | N44: 5123800 | O44: 0.40%
A45: 35 | B45: Textile | C45: CENTURYTEX | D45: 392.20 | E45: 394.22 | F45: 383.43 | G45: 374.67 | H45: 363.88 | I45: 402.98 | J45: 413.77 | K45: 422.53 | L45: 405 | M45: 385.45 | N45: 2025000 | O45: -0.47%
A46: 36 | B46: Power | C46: CESC | D46: 768.20 | E46: 771.65 | F46: 763.20 | G46: 758.20 | H46: 749.75 | I46: 776.65 | J46: 785.10 | K46: 790.10 | L46: 780.1 | M46: 766.65 | N46: 1025600 | O46: -3.46%
A47: 37 | B47: Finance | C47: CHOLAFIN | D47: 297.35 | E47: 298.03 | F47: 294.32 | G47: 291.28 | H47: 287.57 | I47: 301.07 | J47: 304.78 | K47: 307.82 | L47: 301.75 | M47: 295 | N47: 4022500 | O47: -3.83%
A48: 38 | B48: Pharma | C48: CIPLA | D48: 462.65 | E48: 465.03 | F48: 459.12 | G48: 455.58 | H48: 449.67 | I48: 468.57 | J48: 474.48 | K48: 478.02 | L48: 470.95 | M48: 461.5 | N48: 13209300 | O48: -0.54%
A49: 39 | B49: Others | C49: COALINDIA | D49: 210.10 | E49: 211.83 | F49: 207.27 | G49: 204.43 | H49: 199.87 | I49: 214.67 | J49: 219.23 | K49: 222.07 | L49: 216.4 | M49: 209 | N49: 24496800 | O49: 7.21%
A50: 40 | B50: FMCG | C50: COLPAL | D50: 1576.75 | E50: 1593.13 | F50: 1544.62 | G50: 1512.48 | H50: 1463.97 | I50: 1625.27 | J50: 1673.78 | K50: 1705.92 | L50: 1641.65 | M50: 1561 | N50: 2647400 | O50: 4.76%
A51: 41 | B51: Others | C51: CONCOR | D51: 573.30 | E51: 577.00 | F51: 567.35 | G51: 561.40 | H51: 551.75 | I51: 582.95 | J51: 592.60 | K51: 598.55 | L51: 586.65 | M51: 571.05 | N51: 5586162 | O51: 4.50%
A52: 42 | B52: Capital_Goods | C52: CUMMINSIND | D52: 557.50 | E52: 557.33 | F52: 550.02 | G52: 542.53 | H52: 535.22 | I52: 564.82 | J52: 572.13 | K52: 579.62 | L52: 564.65 | M52: 549.85 | N52: 1966300 | O52: -1.37%
A53: 43 | B53: FMCG | C53: DABUR | D53: 473.95 | E53: 476.67 | F53: 469.53 | G53: 465.12 | H53: 457.98 | I53: 481.08 | J53: 488.22 | K53: 492.63 | L53: 483.8 | M53: 472.25 | N53: 10715000 | O53: -1.20%
A54: 44 | B54: Media | C54: DISHTV | D54: 13.70 | E54: 14.00 | F54: 13.20 | G54: 12.70 | H54: 11.90 | I54: 14.50 | J54: 15.30 | K54: 15.80 | L54: 14.8 | M54: 13.5 | N54: 91366900 | O54: 0.51%
A55: 45 | B55: Pharma | C55: DIVISLAB | D55: 1701.30 | E55: 1709.45 | F55: 1689.90 | G55: 1678.50 | H55: 1658.95 | I55: 1720.85 | J55: 1740.40 | K55: 1751.80 | L55: 1729 | M55: 1698.05 | N55: 2273600 | O55: -0.85%
A56: 46 | B56: Realty | C56: DLF | D56: 202.70 | E56: 202.73 | F56: 196.07 | G56: 189.43 | H56: 182.77 | I56: 209.37 | J56: 216.03 | K56: 222.67 | L56: 209.4 | M56: 196.1 | N56: 35694100 | O56: -12.48%
A57: 47 | B57: Pharma | C57: DRREDDY | D57: 2832.40 | E57: 2843.08 | F57: 2813.32 | G57: 2794.23 | H57: 2764.47 | I57: 2862.17 | J57: 2891.93 | K57: 2911.02 | L57: 2872.85 | M57: 2824 | N57: 3310250 | O57: 1.16%
A58: 48 | B58: Automobile | C58: EICHERMOT | D58: 21735.65 | E58: 21701.85 | F58: 21292.75 | G58: 20849.85 | H58: 20440.75 | I58: 22144.75 | J58: 22553.85 | K58: 22996.75 | L58: 22110.95 | M58: 21258.95 | N58: 295450 | O58: 0.66%
A59: 49 | B59: Finance | C59: EQUITAS | D59: 97.30 | E59: 97.73 | F59: 95.67 | G59: 94.03 | H59: 91.97 | I59: 99.37 | J59: 101.43 | K59: 103.07 | L59: 99.8 | M59: 96.1 | N59: 10168000 | O59: -3.35%
A60: 50 | B60: Automobile | C60: ESCORTS | D60: 655.55 | E60: 656.00 | F60: 643.40 | G60: 631.25 | H60: 618.65 | I60: 668.15 | J60: 680.75 | K60: 692.90 | L60: 668.6 | M60: 643.85 | N60: 4911500 | O60: 2.36%
A61: 51 | B61: Automobile | C61: EXIDEIND | D61: 184.95 | E61: 186.38 | F61: 182.92 | G61: 180.88 | H61: 177.42 | I61: 188.42 | J61: 191.88 | K61: 193.92 | L61: 189.85 | M61: 184.35 | N61: 11069300 | O61: -2.62%
A62: 52 | B62: Banking | C62: FEDERALBNK | D62: 82.40 | E62: 82.97 | F62: 81.63 | G62: 80.87 | H62: 79.53 | I62: 83.73 | J62: 85.07 | K62: 85.83 | L62: 84.3 | M62: 82.2 | N62: 60795000 | O62: 4.85%
A63: 53 | B63: Oil_Gas | C63: GAIL | D63: 127.55 | E63: 128.77 | F63: 125.03 | G63: 122.52 | H63: 118.78 | I63: 131.28 | J63: 135.02 | K63: 137.53 | L63: 132.5 | M63: 126.25 | N63: 48987456 | O63: 9.61%
A64: 54 | B64: Pharma | C64: GLENMARK | D64: 286.90 | E64: 289.75 | F64: 282.40 | G64: 277.90 | H64: 270.55 | I64: 294.25 | J64: 301.60 | K64: 306.10 | L64: 297.1 | M64: 285.25 | N64: 6629600 | O64: 5.41%
A65: 55 | B65: Infrastructure | C65: GMRINFRA | D65: 21.75 | E65: 21.98 | F65: 21.37 | G65: 20.98 | H65: 20.37 | I65: 22.37 | J65: 22.98 | K65: 23.37 | L65: 22.6 | M65: 21.6 | N65: 123075000 | O65: 0.40%
A66: 56 | B66: FMCG | C66: GODREJCP | D66: 736.35 | E66: 740.53 | F66: 730.52 | G66: 724.68 | H66: 714.67 | I66: 746.37 | J66: 756.38 | K66: 762.22 | L66: 750.55 | M66: 734.7 | N66: 4151200 | O66: 2.13%
A67: 57 | B67: Cement | C67: GRASIM | D67: 776.55 | E67: 779.20 | F67: 769.80 | G67: 763.05 | H67: 753.65 | I67: 785.95 | J67: 795.35 | K67: 802.10 | L67: 788.6 | M67: 772.45 | N67: 19861500 | O67: 0.61%
A68: 58 | B68: Others | C68: HAVELLS | D68: 708.85 | E68: 710.63 | F68: 702.47 | G68: 696.08 | H68: 687.92 | I68: 717.02 | J68: 725.18 | K68: 731.57 | L68: 718.8 | M68: 704.25 | N68: 5151000 | O68: 0.64%
A69: 59 | B69: Technology | C69: HCLTECH | D69: 1153.20 | E69: 1155.30 | F69: 1145.60 | G69: 1138.00 | H69: 1128.30 | I69: 1162.90 | J69: 1172.60 | K69: 1180.20 | L69: 1165 | M69: 1147.7 | N69: 10749900 | O69: -2.78%
A70: 60 | B70: Finance | C70: HDFC | D70: 2232.15 | E70: 2234.15 | F70: 2211.30 | G70: 2190.45 | H70: 2167.60 | I70: 2255.00 | J70: 2277.85 | K70: 2298.70 | L70: 2257 | M70: 2213.3 | N70: 33780000 | O70: 0.08%
A71: 61 | B71: Banking | C71: HDFCBANK | D71: 1257.40 | E71: 1259.40 | F71: 1251.00 | G71: 1244.60 | H71: 1236.20 | I71: 1265.80 | J71: 1274.20 | K71: 1280.60 | L71: 1267.8 | M71: 1253 | N71: 26572000 | O71: 0.75%
A72: 62 | B72: Automobile | C72: HEROMOTOCO | D72: 2654.30 | E72: 2668.77 | F72: 2635.53 | G72: 2616.77 | H72: 2583.53 | I72: 2687.53 | J72: 2720.77 | K72: 2739.53 | L72: 2702 | M72: 2650 | N72: 3314400 | O72: -0.48%
A73: 63 | B73: Technology | C73: HEXAWARE | D73: 339.40 | E73: 342.60 | F73: 334.80 | G73: 330.20 | H73: 322.40 | I73: 347.20 | J73: 355.00 | K73: 359.60 | L73: 350.4 | M73: 338 | N73: 1665000 | O73: 0.82%
A74: 64 | B74: Metals | C74: HINDALCO | D74: 204.20 | E74: 205.13 | F74: 202.47 | G74: 200.73 | H74: 198.07 | I74: 206.87 | J74: 209.53 | K74: 211.27 | L74: 207.8 | M74: 203.4 | N74: 28658000 | O74: 0.02%
A75: 65 | B75: Oil_Gas | C75: HINDPETRO | D75: 295.05 | E75: 300.32 | F75: 287.93 | G75: 280.82 | H75: 268.43 | I75: 307.43 | J75: 319.82 | K75: 326.93 | L75: 312.7 | M75: 293.2 | N75: 21134400 | O75: 8.92%
A76: 66 | B76: FMCG | C76: HINDUNILVR | D76: 2094.60 | E76: 2112.08 | F76: 2074.52 | G76: 2054.43 | H76: 2016.87 | I76: 2132.17 | J76: 2169.73 | K76: 2189.82 | L76: 2149.65 | M76: 2092 | N76: 8903700 | O76: 1.87%
A77: 67 | B77: Finance | C77: IBULHSGFIN | D77: 234.35 | E77: 235.40 | F77: 218.95 | G77: 203.55 | H77: 187.10 | I77: 250.80 | J77: 267.25 | K77: 282.65 | L77: 251.85 | M77: 220 | N77: 26837600 | O77: 7.20%
A78: 68 | B78: Banking | C78: ICICIBANK | D78: 488.55 | E78: 487.78 | F78: 480.57 | G78: 472.58 | H78: 465.37 | I78: 495.77 | J78: 502.98 | K78: 510.97 | L78: 495 | M78: 479.8 | N78: 78982750 | O78: -0.57%
A79: 69 | B79: Finance | C79: ICICIPRULI | D79: 518.40 | E79: 518.33 | F79: 512.67 | G79: 506.93 | H79: 501.27 | I79: 524.07 | J79: 529.73 | K79: 535.47 | L79: 524 | M79: 512.6 | N79: 6529500 | O79: 1.14%
A80: 70 | B80: Telecom | C80: IDEA | D80: 3.80 | E80: 3.85 | F80: 3.65 | G80: 3.50 | H80: 3.30 | I80: 4.00 | J80: 4.20 | K80: 4.35 | L80: 4.05 | M80: 3.7 | N80: 569828000 | O80: 4.76%
A81: 71 | B81: Banking | C81: IDFCFIRSTB | D81: 42.05 | E81: 42.20 | F81: 41.50 | G81: 40.95 | H81: 40.25 | I81: 42.75 | J81: 43.45 | K81: 44.00 | L81: 42.9 | M81: 41.65 | N81: 233340000 | O81: 1.15%
A82: 72 | B82: Oil_Gas | C82: IGL | D82: 418.50 | E82: 415.12 | F82: 403.63 | G82: 388.77 | H82: 377.28 | I82: 429.98 | J82: 441.47 | K82: 456.33 | L82: 426.6 | M82: 400.25 | N82: 5112250 | O82: 61.65%
A83: 73 | B83: Others | C83: INDIGO | D83: 1531.20 | E83: 1520.07 | F83: 1496.13 | G83: 1461.07 | H83: 1437.13 | I83: 1555.13 | J83: 1579.07 | K83: 1614.13 | L83: 1544 | M83: 1485 | N83: 3107400 | O83: -6.07%
A84: 74 | B84: Banking | C84: INDUSINDBK | D84: 1423.55 | E84: 1411.57 | F84: 1368.33 | G84: 1313.12 | H84: 1269.88 | I84: 1466.78 | J84: 1510.02 | K84: 1565.23 | L84: 1454.8 | M84: 1356.35 | N84: 11010800 | O84: -3.33%
A85: 75 | B85: Telecom | C85: INFRATEL | D85: 217.20 | E85: 219.32 | F85: 212.08 | G85: 206.97 | H85: 199.73 | I85: 224.43 | J85: 231.67 | K85: 236.78 | L85: 226.55 | M85: 214.2 | N85: 11556000 | O85: 3.49%
A86: 76 | B86: Technology | C86: INFY | D86: 710.40 | E86: 714.55 | F86: 704.10 | G86: 697.80 | H86: 687.35 | I86: 720.85 | J86: 731.30 | K86: 737.60 | L86: 725 | M86: 708.25 | N86: 57598800 | O86: -0.48%
A87: 77 | B87: Oil_Gas | C87: IOC | D87: 134.05 | E87: 134.62 | F87: 133.08 | G87: 132.12 | H87: 130.58 | I87: 135.58 | J87: 137.12 | K87: 138.08 | L87: 136.15 | M87: 133.65 | N87: 31987500 | O87: 1.61%
A88: 78 | B88: FMCG | C88: ITC | D88: 261.15 | E88: 262.48 | F88: 259.17 | G88: 257.18 | H88: 253.87 | I88: 264.47 | J88: 267.78 | K88: 269.77 | L88: 265.8 | M88: 260.5 | N88: 97065600 | O88: 0.55%
A89: 79 | B89: Metals | C89: JINDALSTEL | D89: 144.95 | E89: 146.67 | F89: 142.58 | G89: 140.22 | H89: 136.13 | I89: 149.03 | J89: 153.12 | K89: 155.48 | L89: 150.75 | M89: 144.3 | N89: 39728000 | O89: -4.49%
A90: 80 | B90: Metals | C90: JSWSTEEL | D90: 250.65 | E90: 252.22 | F90: 247.43 | G90: 244.22 | H90: 239.43 | I90: 255.43 | J90: 260.22 | K90: 263.43 | L90: 257 | M90: 249 | N90: 52558300 | O90: -0.03%
A91: 81 | B91: Others | C91: JUBLFOOD | D91: 1604.75 | E91: 1609.83 | F91: 1592.02 | G91: 1579.28 | H91: 1561.47 | I91: 1622.57 | J91: 1640.38 | K91: 1653.12 | L91: 1627.65 | M91: 1597.1 | N91: 2432000 | O91: -2.84%
A92: 82 | B92: Others | C92: JUSTDIAL | D92: 555.90 | E92: 558.15 | F92: 544.30 | G92: 532.70 | H92: 518.85 | I92: 569.75 | J92: 583.60 | K92: 595.20 | L92: 572 | M92: 546.55 | N92: 3614800 | O92: -1.83%
A93: 83 | B93: Banking | C93: KOTAKBANK | D93: 1598.45 | E93: 1591.97 | F93: 1579.23 | G93: 1560.02 | H93: 1547.28 | I93: 1611.18 | J93: 1623.92 | K93: 1643.13 | L93: 1604.7 | M93: 1572.75 | N93: 8697600 | O93: 4.34%
A94: 84 | B94: Finance | C94: L&TFH | D94: 99.90 | E94: 99.77 | F94: 97.13 | G94: 94.37 | H94: 91.73 | I94: 102.53 | J94: 105.17 | K94: 107.93 | L94: 102.4 | M94: 97 | N94: 33938900 | O94: -1.37%
A95: 85 | B95: Finance | C95: LICHSGFIN | D95: 439.15 | E95: 439.60 | F95: 432.90 | G95: 426.65 | H95: 419.95 | I95: 445.85 | J95: 452.55 | K95: 458.80 | L95: 446.3 | M95: 433.35 | N95: 9178000 | O95: -5.48%
A96: 86 | B96: Capital_Goods | C96: LT | D96: 1426.80 | E96: 1433.50 | F96: 1415.90 | G96: 1405.00 | H96: 1387.40 | I96: 1444.40 | J96: 1462.00 | K96: 1472.90 | L96: 1451.1 | M96: 1422.6 | N96: 12153000 | O96: 1.25%
A97: 87 | B97: Pharma | C97: LUPIN | D97: 720.00 | E97: 727.52 | F97: 709.33 | G97: 698.67 | H97: 680.48 | I97: 738.18 | J97: 756.37 | K97: 767.03 | L97: 745.7 | M97: 716.85 | N97: 8654800 | O97: 3.19%
A98: 88 | B98: Automobile | C98: M&M | D98: 582.00 | E98: 585.97 | F98: 574.03 | G98: 566.07 | H98: 554.13 | I98: 593.93 | J98: 605.87 | K98: 613.83 | L98: 597.9 | M98: 578 | N98: 21098000 | O98: 3.98%
A99: 89 | B99: Finance | C99: M&MFIN | D99: 330.05 | E99: 332.82 | F99: 325.53 | G99: 321.02 | H99: 313.73 | I99: 337.33 | J99: 344.62 | K99: 349.13 | L99: 340.1 | M99: 328.3 | N99: 12750000 | O99: 1.89%
A100: 90 | B100: Finance | C100: MANAPPURAM | D100: 166.40 | E100: 167.40 | F100: 164.85 | G100: 163.30 | H100: 160.75 | I100: 168.95 | J100: 171.50 | K100: 173.05 | L100: 169.95 | M100: 165.85 | N100: 14970000 | O100: -1.93%
A101: 91 | B101: FMCG | C101: MARICO | D101: 370.45 | E101: 370.00 | F101: 367.55 | G101: 364.65 | H101: 362.20 | I101: 372.90 | J101: 375.35 | K101: 378.25 | L101: 372.45 | M101: 367.1 | N101: 11124100 | O101: -2.44%
A102: 92 | B102: Automobile | C102: MARUTI | D102: 7225.00 | E102: 7273.75 | F102: 7154.50 | G102: 7084.00 | H102: 6964.75 | I102: 7344.25 | J102: 7463.50 | K102: 7534.00 | L102: 7393 | M102: 7203.25 | N102: 2658900 | O102: 0.93%
A103: 93 | B103: FMCG | C103: MCDOWELL-N | D103: 634.35 | E103: 639.30 | F103: 626.90 | G103: 619.45 | H103: 607.05 | I103: 646.75 | J103: 659.15 | K103: 666.60 | L103: 651.7 | M103: 631.85 | N103: 10427500 | O103: -1.04%
A104: 94 | B104: Finance | C104: MFSL | D104: 481.15 | E104: 481.72 | F104: 465.43 | G104: 449.72 | H104: 433.43 | I104: 497.43 | J104: 513.72 | K104: 529.43 | L104: 498 | M104: 466 | N104: 4828900 | O104: 9.20%
A105: 95 | B105: Oil_Gas | C105: MGL | D105: 973.40 | E105: 972.00 | F105: 956.55 | G105: 939.70 | H105: 924.25 | I105: 988.85 | J105: 1004.30 | K105: 1021.15 | L105: 987.45 | M105: 955.15 | N105: 1855800 | O105: 18.05%
A106: 96 | B106: Technology | C106: MINDTREE | D106: 695.35 | E106: 698.57 | F106: 689.68 | G106: 684.02 | H106: 675.13 | I106: 704.23 | J106: 713.12 | K106: 718.78 | L106: 707.45 | M106: 692.9 | N106: 1449000 | O106: 0.37%
A107: 97 | B107: Automobile | C107: MOTHERSUMI | D107: 129.20 | E107: 131.23 | F107: 126.47 | G107: 123.73 | H107: 118.97 | I107: 133.97 | J107: 138.73 | K107: 141.47 | L107: 136 | M107: 128.5 | N107: 27898500 | O107: -0.81%
A108: 98 | B108: Automobile | C108: MRF | D108: 64600.25 | E108: 64353.47 | F108: 62997.03 | G108: 61393.82 | H108: 60037.38 | I108: 65956.68 | J108: 67313.12 | K108: 68916.33 | L108: 65709.9 | M108: 62750.25 | N108: 18320 | O108: -5.71%
A109: 99 | B109: Finance | C109: MUTHOOTFIN | D109: 676.90 | E109: 680.65 | F109: 671.80 | G109: 666.70 | H109: 657.85 | I109: 685.75 | J109: 694.60 | K109: 699.70 | L109: 689.5 | M109: 675.55 | N109: 2670000 | O109: 1.89%
A110: 100 | B110: Metals | C110: NATIONALUM | D110: 46.10 | E110: 46.50 | F110: 45.55 | G110: 45.00 | H110: 44.05 | I110: 47.05 | J110: 48.00 | K110: 48.55 | L110: 47.45 | M110: 45.95 | N110: 46530400 | O110: 0.09%
A111: 101 | B111: Infrastructure | C111: NBCC | D111: 40.90 | E111: 41.17 | F111: 40.23 | G111: 39.57 | H111: 38.63 | I111: 41.83 | J111: 42.77 | K111: 43.43 | L111: 42.1 | M111: 40.5 | N111: 34806000 | O111: -1.22%
A112: 102 | B112: Infrastructure | C112: NCC | D112: 58.70 | E112: 58.33 | F112: 55.17 | G112: 51.63 | H112: 48.47 | I112: 61.87 | J112: 65.03 | K112: 68.57 | L112: 61.5 | M112: 54.8 | N112: 43776000 | O112: -1.63%
A113: 103 | B113: FMCG | C113: NESTLEIND | D113: 14491.05 | E113: 14590.70 | F113: 14317.45 | G113: 14143.85 | H113: 13870.60 | I113: 14764.30 | J113: 15037.55 | K113: 15211.15 | L113: 14863.95 | M113: 14417.1 | N113: 479300 | O113: 1.91%
A114: 104 | B114: Technology | C114: NIITTECH | D114: 1545.60 | E114: 1560.20 | F114: 1527.40 | G114: 1509.20 | H114: 1476.40 | I114: 1578.40 | J114: 1611.20 | K114: 1629.40 | L114: 1593 | M114: 1542 | N114: 568125 | O114: 4.84%
A115: 105 | B115: Metals | C115: NMDC | D115: 104.20 | E115: 105.83 | F115: 102.27 | G115: 100.33 | H115: 96.77 | I115: 107.77 | J115: 111.33 | K115: 113.27 | L115: 109.4 | M115: 103.9 | N115: 19374000 | O115: -1.28%
A116: 106 | B116: Power | C116: NTPC | D116: 117.80 | E116: 118.27 | F116: 117.08 | G116: 116.37 | H116: 115.18 | I116: 118.98 | J116: 120.17 | K116: 120.88 | L116: 119.45 | M116: 117.55 | N116: 48686400 | O116: -0.65%
A117: 107 | B117: Oil_Gas | C117: OIL | D117: 165.65 | E117: 166.32 | F117: 164.33 | G117: 163.02 | H117: 161.03 | I117: 167.63 | J117: 169.62 | K117: 170.93 | L117: 168.3 | M117: 165 | N117: 8969961 | O117: -0.98%
A118: 108 | B118: Oil_Gas | C118: ONGC | D118: 138.70 | E118: 140.03 | F118: 136.82 | G118: 134.93 | H118: 131.72 | I118: 141.92 | J118: 145.13 | K118: 147.02 | L118: 143.25 | M118: 138.15 | N118: 21009450 | O118: 7.03%
A119: 109 | B119: Textile | C119: PAGEIND | D119: 24358.20 | E119: 24314.07 | F119: 23853.13 | G119: 23348.07 | H119: 22887.13 | I119: 24819.13 | J119: 25280.07 | K119: 25785.13 | L119: 24775 | M119: 23809 | N119: 169250 | O119: -2.07%
A120: 110 | B120: Pharma | C120: PEL | D120: 1765.65 | E120: 1776.92 | F120: 1743.83 | G120: 1722.02 | H120: 1688.93 | I120: 1798.73 | J120: 1831.82 | K120: 1853.63 | L120: 1810 | M120: 1755.1 | N120: 4635700 | O120: -3.06%
A121: 111 | B121: Oil_Gas | C121: PETRONET | D121: 283.45 | E121: 284.32 | F121: 282.13 | G121: 280.82 | H121: 278.63 | I121: 285.63 | J121: 287.82 | K121: 289.13 | L121: 286.5 | M121: 283 | N121: 18693000 | O121: -1.11%
A122: 112 | B122: Finance | C122: PFC | D122: 110.90 | E122: 111.60 | F122: 109.85 | G122: 108.80 | H122: 107.05 | I122: 112.65 | J122: 114.40 | K122: 115.45 | L122: 113.35 | M122: 110.55 | N122: 30020400 | O122: -3.51%
A123: 113 | B123: FMCG | C123: PIDILITIND | D123: 1351.45 | E123: 1361.70 | F123: 1334.95 | G123: 1318.45 | H123: 1291.70 | I123: 1378.20 | J123: 1404.95 | K123: 1421.45 | L123: 1388.45 | M123: 1345.2 | N123: 3780000 | O123: 1.52%
A124: 114 | B124: Banking | C124: PNB | D124: 61.50 | E124: 61.78 | F124: 60.92 | G124: 60.33 | H124: 59.47 | I124: 62.37 | J124: 63.23 | K124: 63.82 | L124: 62.65 | M124: 61.2 | N124: 109366600 | O124: 1.33%
A125: 115 | B125: Power | C125: POWERGRID | D125: 192.45 | E125: 193.33 | F125: 190.67 | G125: 188.88 | H125: 186.22 | I125: 195.12 | J125: 197.78 | K125: 199.57 | L125: 196 | M125: 191.55 | N125: 33640000 | O125: 6.79%
A126: 116 | B126: Media | C126: PVR | D126: 1761.40 | E126: 1769.88 | F126: 1747.82 | G126: 1734.23 | H126: 1712.17 | I126: 1783.47 | J126: 1805.53 | K126: 1819.12 | L126: 1791.95 | M126: 1756.3 | N126: 1298000 | O126: -2.29%
A127: 117 | B127: Cement | C127: RAMCOCEM | D127: 797.05 | E127: 801.03 | F127: 786.97 | G127: 776.88 | H127: 762.82 | I127: 811.12 | J127: 825.18 | K127: 835.27 | L127: 815.1 | M127: 790.95 | N127: 1092000 | O127: -2.64%
A128: 118 | B128: Banking | C128: RBLBANK | D128: 324.40 | E128: 321.05 | F128: 308.35 | G128: 292.30 | H128: 279.60 | I128: 337.10 | J128: 349.80 | K128: 365.85 | L128: 333.75 | M128: 305 | N128: 11385600 | O128: 7.28%
A129: 119 | B129: Power | C129: RECLTD | D129: 139.25 | E129: 140.50 | F129: 137.55 | G129: 135.85 | H129: 132.90 | I129: 142.20 | J129: 145.15 | K129: 146.85 | L129: 143.45 | M129: 138.8 | N129: 19872000 | O129: -3.66%
A130: 120 | B130: Oil_Gas | C130: RELIANCE | D130: 1448.30 | E130: 1451.73 | F130: 1440.57 | G130: 1432.83 | H130: 1421.67 | I130: 1459.47 | J130: 1470.63 | K130: 1478.37 | L130: 1462.9 | M130: 1444 | N130: 49365000 | O130: -0.74%
A131: 121 | B131: Metals | C131: SAIL | D131: 38.70 | E131: 39.08 | F131: 38.12 | G131: 37.53 | H131: 36.57 | I131: 39.67 | J131: 40.63 | K131: 41.22 | L131: 40.05 | M131: 38.5 | N131: 75065600 | O131: -1.16%
A132: 122 | B132: Banking | C132: SBIN | D132: 316.15 | E132: 317.67 | F132: 313.63 | G132: 311.12 | H132: 307.08 | I132: 320.18 | J132: 324.22 | K132: 326.73 | L132: 321.7 | M132: 315.15 | N132: 87801000 | O132: 3.76%
A133: 123 | B133: Cement | C133: SHREECEM | D133: 19978.00 | E133: 19983.52 | F133: 19734.58 | G133: 19491.17 | H133: 19242.23 | I133: 20226.93 | J133: 20475.87 | K133: 20719.28 | L133: 20232.45 | M133: 19740.1 | N133: 151700 | O133: -2.88%
A134: 124 | B134: Capital_Goods | C134: SIEMENS | D134: 1643.35 | E134: 1653.90 | F134: 1627.80 | G134: 1612.25 | H134: 1586.15 | I134: 1669.45 | J134: 1695.55 | K134: 1711.10 | L134: 1680 | M134: 1638.35 | N134: 1561450 | O134: 17.17%
A135: 125 | B135: Textile | C135: SRF | D135: 3146.70 | E135: 3167.35 | F135: 3111.70 | G135: 3076.70 | H135: 3021.05 | I135: 3202.35 | J135: 3258.00 | K135: 3293.00 | L135: 3223 | M135: 3132.35 | N135: 886500 | O135: -4.37%
A136: 126 | B136: Finance | C136: SRTRANSFIN | D136: 1118.55 | E136: 1130.60 | F136: 1101.00 | G136: 1083.45 | H136: 1053.85 | I136: 1148.15 | J136: 1177.75 | K136: 1195.30 | L136: 1160.2 | M136: 1113.05 | N136: 4170000 | O136: 2.39%
A137: 127 | B137: Pharma | C137: SUNPHARMA | D137: 423.45 | E137: 429.72 | F137: 415.68 | G137: 407.92 | H137: 393.88 | I137: 437.48 | J137: 451.52 | K137: 459.28 | L137: 443.75 | M137: 421.95 | N137: 61404050 | O137: -1.24%
A138: 128 | B138: Media | C138: SUNTV | D138: 510.00 | E138: 515.67 | F138: 499.93 | G138: 489.87 | H138: 474.13 | I138: 525.73 | J138: 541.47 | K138: 551.53 | L138: 531.4 | M138: 505.6 | N138: 2809200 | O138: -3.63%
A139: 129 | B139: Fertilisers | C139: TATACHEM | D139: 632.35 | E139: 636.02 | F139: 625.78 | G139: 619.22 | H139: 608.98 | I139: 642.58 | J139: 652.82 | K139: 659.38 | L139: 646.25 | M139: 629.45 | N139: 2490300 | O139: -4.16%
A140: 130 | B140: Technology | C140: TATAELXSI | D140: 814.30 | E140: 822.85 | F140: 802.05 | G140: 789.80 | H140: 769.00 | I140: 835.10 | J140: 855.90 | K140: 868.15 | L140: 843.65 | M140: 810.6 | N140: 1049400 | O140: -1.96%
A141: 131 | B141: FMCG | C141: TATAGLOBAL | D141: 295.55 | E141: 296.82 | F141: 293.53 | G141: 291.52 | H141: 288.23 | I141: 298.83 | J141: 302.12 | K141: 304.13 | L141: 300.1 | M141: 294.8 | N141: 13535100 | O141: 1.54%
A142: 132 | B142: Automobile | C142: TATAMOTORS | D142: 169.70 | E142: 172.58 | F142: 165.67 | G142: 161.63 | H142: 154.72 | I142: 176.62 | J142: 183.53 | K142: 187.57 | L142: 179.5 | M142: 168.55 | N142: 57485500 | O142: 0.09%
A143: 133 | B143: Automobile | C143: TATAMTRDVR | D143: 77.95 | E143: 79.22 | F143: 76.03 | G143: 74.12 | H143: 70.93 | I143: 81.13 | J143: 84.32 | K143: 86.23 | L143: 82.4 | M143: 77.3 | N143: 35904000 | O143: 2.24%
A144: 134 | B144: Power | C144: TATAPOWER | D144: 59.85 | E144: 59.82 | F144: 58.88 | G144: 57.92 | H144: 56.98 | I144: 60.78 | J144: 61.72 | K144: 62.68 | L144: 60.75 | M144: 58.85 | N144: 71046000 | O144: 15.82%
A145: 135 | B145: Metals | C145: TATASTEEL | D145: 398.60 | E145: 400.67 | F145: 393.63 | G145: 388.67 | H145: 381.63 | I145: 405.63 | J145: 412.67 | K145: 417.63 | L145: 407.7 | M145: 395.7 | N145: 25311435 | O145: 0.02%
A146: 136 | B146: Technology | C146: TCS | D146: 2139.20 | E146: 2157.25 | F146: 2115.50 | G146: 2091.80 | H146: 2050.05 | I146: 2180.95 | J146: 2222.70 | K146: 2246.40 | L146: 2199 | M146: 2133.55 | N146: 19198750 | O146: 4.20%
A147: 137 | B147: Technology | C147: TECHM | D147: 772.15 | E147: 774.00 | F147: 769.25 | G147: 766.35 | H147: 761.60 | I147: 776.90 | J147: 781.65 | K147: 784.55 | L147: 778.75 | M147: 771.1 | N147: 16542000 | O147: -0.32%
A148: 138 | B148: FMCG | C148: TITAN | D148: 1161.10 | E148: 1165.15 | F148: 1154.70 | G148: 1148.30 | H148: 1137.85 | I148: 1171.55 | J148: 1182.00 | K148: 1188.40 | L148: 1175.6 | M148: 1158.75 | N148: 13049250 | O148: -0.20%
A149: 139 | B149: Pharma | C149: TORNTPHARM | D149: 1819.50 | E149: 1812.97 | F149: 1786.63 | G149: 1753.77 | H149: 1727.43 | I149: 1845.83 | J149: 1872.17 | K149: 1905.03 | L149: 1839.3 | M149: 1780.1 | N149: 293500 | O149: -8.99%
A150: 140 | B150: Power | C150: TORNTPOWER | D150: 294.20 | E150: 297.18 | F150: 290.17 | G150: 286.13 | H150: 279.12 | I150: 301.22 | J150: 308.23 | K150: 312.27 | L150: 304.2 | M150: 293.15 | N150: 4407000 | O150: 1.31%
A151: 141 | B151: Automobile | C151: TVSMOTOR | D151: 443.75 | E151: 445.22 | F151: 438.63 | G151: 433.52 | H151: 426.93 | I151: 450.33 | J151: 456.92 | K151: 462.03 | L151: 451.8 | M151: 440.1 | N151: 8416150 | O151: -1.92%
A152: 142 | B152: FMCG | C152: UBL | D152: 1257.50 | E152: 1255.87 | F152: 1212.73 | G152: 1167.97 | H152: 1124.83 | I152: 1300.63 | J152: 1343.77 | K152: 1388.53 | L152: 1299 | M152: 1211.1 | N152: 2165800 | O152: -10.66%
A153: 143 | B153: Finance | C153: UJJIVAN | D153: 272.95 | E153: 275.35 | F153: 268.80 | G153: 264.65 | H153: 258.10 | I153: 279.50 | J153: 286.05 | K153: 290.20 | L153: 281.9 | M153: 271.2 | N153: 8656000 | O153: -1.37%
A154: 144 | B154: Cement | C154: ULTRACEMCO | D154: 4150.80 | E154: 4163.90 | F154: 4117.90 | G154: 4085.00 | H154: 4039.00 | I154: 4196.80 | J154: 4242.80 | K154: 4275.70 | L154: 4209.9 | M154: 4131 | N154: 2561200 | O154: 1.51%
A155: 145 | B155: Banking | C155: UNIONBANK | D155: 54.75 | E155: 55.13 | F155: 54.02 | G155: 53.28 | H155: 52.17 | I155: 55.87 | J155: 56.98 | K155: 57.72 | L155: 56.25 | M155: 54.4 | N155: 31297000 | O155: 1.78%
A156: 146 | B156: Fertilisers | C156: UPL | D156: 557.20 | E156: 562.40 | F156: 548.30 | G156: 539.40 | H156: 525.30 | I156: 571.30 | J156: 585.40 | K156: 594.30 | L156: 576.5 | M156: 553.5 | N156: 15437700 | O156: 2.20%
A157: 147 | B157: Metals | C157: VEDL | D157: 156.05 | E157: 157.90 | F157: 153.45 | G157: 150.85 | H157: 146.40 | I157: 160.50 | J157: 164.95 | K157: 167.55 | L157: 162.35 | M157: 155.3 | N157: 55831500 | O157: 0.02%
A158: 148 | B158: Capital_Goods | C158: VOLTAS | D158: 693.75 | E158: 687.75 | F158: 672.50 | G158: 651.25 | H158: 636.00 | I158: 709.00 | J158: 724.25 | K158: 745.50 | L158: 703 | M158: 666.5 | N158: 2897000 | O158: -2.88%
A159: 149 | B159: Technology | C159: WIPRO | D159: 257.05 | E159: 258.22 | F159: 255.43 | G159: 253.82 | H159: 251.03 | I159: 259.83 | J159: 262.62 | K159: 264.23 | L159: 261 | M159: 256.6 | N159: 24844800 | O159: -0.93%
A160: 150 | B160: Banking | C160: YESBANK | D160: 69.20 | E160: 68.50 | F160: 64.50 | G160: 59.80 | H160: 55.80 | I160: 73.20 | J160: 77.20 | K160: 81.90 | L160: 72.5 | M160: 63.8 | N160: 180490200 | O160: 7.77%
A161: 151 | B161: Media | C161: ZEEL | D161: 287.65 | E161: 289.02 | F161: 282.03 | G161: 276.42 | H161: 269.43 | I161: 294.63 | J161: 301.62 | K161: 307.23 | L161: 296 | M161: 283.4 | N161: 30478400 | O161: 0.47%
A178: Pivot Point: This is trigger point for intra day buy/sell based on the price range of the previous day
A179: As per the tool,the trader should take BUY position just above Pivot and keep the stop loss of pivot point and the first target would be Resistance 1(R1)
A180: If R1 is crossed then R2 becomes the next target with stop loss of at R1
A181: Similarly if price goes below pivot point then the trader should sell and keep a stop loss of pivot point and the first target would be S1
A182: If S1 is crossed then S2 becomes the next target with stop loss of at S1
A184: Disclaimer:
A185: This document has been prepared by the Retail Research Desk of Asit C Mehta
A186: Investment Intermediates Ltd. and is meant for use of the recipient only
A187: and is not for circulation. This document is not to be reported or
A188: copied or made available to others. It should not be considered to be
A189: taken as an offer to sell or a solicitation to buy any security. The
A190: information contained herein is from sources believed reliable. We do
A191: not represent that it is accurate or complete and it should not be
A192: relied upon as such. We may from time to time have positions in and buy
A193: and sell securities referred to herein

Sheet Cash Intra
M5: Back to Main Page
A6: FOR INTRA DAY TRADING | K6: =Main!B10 -> 2019-11-11
A8: Sr.no | B8: Scrip | C8: CLOSE RATE | D8: Pivot Point | E8: Supports | H8: Resistances
C9: Point | E9: S1 | F9: S2 | G9: S3 | H9: R1 | I9: R2 | J9: R3 | K9: HIGH | L9: LOW | M9: Total Trade Quanity in Lakhs
A10: 1 | B10: Nifty 50 | C10: 11908.15 | D10: 11943.68 | E10: 11853.22 | F10: 11798.28 | G10: 11707.82 | H10: 11998.62 | I10: 12089.08 | J10: 12144.02 | K10: 12034.15 | L10: 11888.75
A11: 2 | B11: Nifty Bank | C11: 30749.4 | D11: 30787.28 | E11: 30466.17 | F11: 30182.93 | G11: 29861.82 | H11: 31070.52 | I11: 31391.63 | J11: 31674.87 | K11: 31108.4 | L11: 30504.05
A12: 3 | B12: Nifty CPSE | C12: 1990 | D12: 2003.00 | E12: 1973.70 | F12: 1957.40 | G12: 1928.10 | H12: 2019.30 | I12: 2048.60 | J12: 2064.90 | K12: 2032.3 | L12: 1986.7
A13: 4 | B13: Nifty Infra | C13: 3254.6 | D13: 3263.93 | E13: 3240.52 | F13: 3226.43 | G13: 3203.02 | H13: 3278.02 | I13: 3301.43 | J13: 3315.52 | K13: 3287.35 | L13: 3249.85
A14: 5 | B14: Nifty IT | C14: 15383.3 | D14: 15465.72 | E14: 15273.28 | F14: 15163.27 | G14: 14970.83 | H14: 15575.73 | I14: 15768.17 | J14: 15878.18 | K14: 15658.15 | L14: 15355.7
A15: 6 | B15: Nifty PSE | C15: 3301.85 | D15: 3323.55 | E15: 3274.00 | F15: 3246.15 | G15: 3196.60 | H15: 3351.40 | I15: 3400.95 | J15: 3428.80 | K15: 3373.1 | L15: 3295.7
A16: 7 | B16: Nifty Midcap 50 | C16: 4595.65 | D16: 4616.20 | E16: 4568.60 | F16: 4541.55 | G16: 4493.95 | H16: 4643.25 | I16: 4690.85 | J16: 4717.90 | K16: 4663.8 | L16: 4589.15
A17: 8 | B17: ACC | C17: 1506.4 | D17: 1516.48 | E17: 1488.97 | F17: 1471.53 | G17: 1444.02 | H17: 1533.92 | I17: 1561.43 | J17: 1578.87 | K17: 1544 | L17: 1499.05 | M17: 6.35287
A18: 9 | B18: AUBANK | C18: 689.5 | D18: 687.50 | E18: 678.00 | F18: 666.50 | G18: 657.00 | H18: 699.00 | I18: 708.50 | J18: 720.00 | K18: 697 | L18: 676 | M18: 2.67306
A19: 10 | B19: ADANIPORTS | C19: 386.15 | D19: 387.62 | E19: 384.03 | F19: 381.92 | G19: 378.33 | H19: 389.73 | I19: 393.32 | J19: 395.43 | K19: 391.2 | L19: 385.5 | M19: 12.06504
A20: 11 | B20: ADANIPOWER | C20: 68.7 | D20: 69.70 | E20: 67.30 | F20: 65.90 | G20: 63.50 | H20: 71.10 | I20: 73.50 | J20: 74.90 | K20: 72.1 | L20: 68.3 | M20: 85.59882
A21: 12 | B21: ABCAPITAL | C21: 86.85 | D21: 87.02 | E21: 85.43 | F21: 84.02 | G21: 82.43 | H21: 88.43 | I21: 90.02 | J21: 91.43 | K21: 88.6 | L21: 85.6 | M21: 62.58041
A22: 13 | B22: ABFRL | C22: 204.6 | D22: 210.93 | E22: 194.17 | F22: 183.73 | G22: 166.97 | H22: 221.37 | I22: 238.13 | J22: 248.57 | K22: 227.7 | L22: 200.5 | M22: 4.6814
A23: 14 | B23: AJANTPHARM | C23: 988.8 | D23: 992.27 | E23: 981.53 | F23: 974.27 | G23: 963.53 | H23: 999.53 | I23: 1010.27 | J23: 1017.53 | K23: 1003 | L23: 985 | M23: 0.91434
A24: 15 | B24: ALKEM | C24: 2034.25 | D24: 2029.22 | E24: 2010.13 | F24: 1986.02 | G24: 1966.93 | H24: 2053.33 | I24: 2072.42 | J24: 2096.53 | K24: 2048.3 | L24: 2005.1 | M24: 0.10123
A25: 16 | B25: ALBK | C25: 25.95 | D25: 25.85 | E25: 24.10 | F25: 22.25 | G25: 20.50 | H25: 27.70 | I25: 29.45 | J25: 31.30 | K25: 27.6 | L25: 24 | M25: 62.14896
A26: 17 | B26: AMARAJABAT | C26: 654.2 | D26: 659.63 | E26: 645.07 | F26: 635.93 | G26: 621.37 | H26: 668.77 | I26: 683.33 | J26: 692.47 | K26: 674.2 | L26: 650.5 | M26: 3.74273
A27: 18 | B27: AMBUJACEM | C27: 202.25 | D27: 202.38 | E27: 199.87 | F27: 197.48 | G27: 194.97 | H27: 204.77 | I27: 207.28 | J27: 209.67 | K27: 204.9 | L27: 200 | M27: 21.8187
A28: 19 | B28: APOLLOHOSP | C28: 1418.6 | D28: 1433.83 | E28: 1399.77 | F28: 1380.93 | G28: 1346.87 | H28: 1452.67 | I28: 1486.73 | J28: 1505.57 | K28: 1467.9 | L28: 1415 | M28: 5.0463
A29: 20 | B29: APOLLOTYRE | C29: 165.15 | D29: 166.15 | E29: 163.50 | F29: 161.85 | G29: 159.20 | H29: 167.80 | I29: 170.45 | J29: 172.10 | K29: 168.8 | L29: 164.5 | M29: 25.66305
A30: 21 | B30: ASHOKLEY | C30: 76.55 | D30: 77.17 | E30: 75.08 | F30: 73.62 | G30: 71.53 | H30: 78.63 | I30: 80.72 | J30: 82.18 | K30: 79.25 | L30: 75.7 | M30: 283.84175
A31: 22 | B31: ASIANPAINT | C31: 1794.85 | D31: 1804.15 | E31: 1781.50 | F31: 1768.15 | G31: 1745.50 | H31: 1817.50 | I31: 1840.15 | J31: 1853.50 | K31: 1826.8 | L31: 1790.8 | M31: 10.77136
A32: 23 | B32: AUROPHARMA | C32: 439.95 | D32: 444.23 | E32: 432.22 | F32: 424.48 | G32: 412.47 | H32: 451.97 | I32: 463.98 | J32: 471.72 | K32: 456.25 | L32: 436.5 | M32: 31.89184
A33: 24 | B33: DMART | C33: 1968.85 | D33: 1979.62 | E33: 1949.23 | F33: 1929.62 | G33: 1899.23 | H33: 1999.23 | I33: 2029.62 | J33: 2049.23 | K33: 2010 | L33: 1960 | M33: 3.72365
A34: 25 | B34: AXISBANK | C34: 725.5 | D34: 728.07 | E34: 720.23 | F34: 714.97 | G34: 707.13 | H34: 733.33 | I34: 741.17 | J34: 746.43 | K34: 735.9 | L34: 722.8 | M34: 74.27196
A35: 26 | B35: BAJAJ-AUTO | C35: 3245.55 | D35: 3256.63 | E35: 3224.47 | F35: 3203.38 | G35: 3171.22 | H35: 3277.72 | I35: 3309.88 | J35: 3330.97 | K35: 3288.8 | L35: 3235.55 | M35: 4.83871
A36: 27 | B36: BAJFINANCE | C36: 4159.45 | D36: 4182.48 | E36: 4124.97 | F36: 4090.48 | G36: 4032.97 | H36: 4216.97 | I36: 4274.48 | J36: 4308.97 | K36: 4240 | L36: 4148 | M36: 15.09693
A37: 28 | B37: BAJAJFINSV | C37: 8818.85 | D37: 8839.62 | E37: 8729.23 | F37: 8639.62 | G37: 8529.23 | H37: 8929.23 | I37: 9039.62 | J37: 9129.23 | K37: 8950 | L37: 8750 | M37: 2.94904
A38: 29 | B38: BAJAJHLDNG | C38: 3777.1 | D38: 3814.75 | E38: 3725.55 | F38: 3674.00 | G38: 3584.80 | H38: 3866.30 | I38: 3955.50 | J38: 4007.05 | K38: 3903.95 | L38: 3763.2 | M38: 0.34834
A39: 30 | B39: BALKRISIND | C39: 850.75 | D39: 855.73 | E39: 840.47 | F39: 830.18 | G39: 814.92 | H39: 866.02 | I39: 881.28 | J39: 891.57 | K39: 871 | L39: 845.45 | M39: 1.35534
A40: 31 | B40: BANDHANBNK | C40: 550.8 | D40: 557.85 | E40: 541.45 | F40: 532.10 | G40: 515.70 | H40: 567.20 | I40: 583.60 | J40: 592.95 | K40: 574.25 | L40: 548.5 | M40: 19.79356
A41: 32 | B41: BANKBARODA | C41: 93.8 | D41: 94.77 | E41: 92.38 | F41: 90.97 | G41: 88.58 | H41: 96.18 | I41: 98.57 | J41: 99.98 | K41: 97.15 | L41: 93.35 | M41: 362.65152
A42: 33 | B42: BANKINDIA | C42: 66.45 | D42: 67.25 | E42: 65.30 | F42: 64.15 | G42: 62.20 | H42: 68.40 | I42: 70.35 | J42: 71.50 | K42: 69.2 | L42: 66.1 | M42: 80.766
A43: 34 | B43: BATAINDIA | C43: 1697.75 | D43: 1709.13 | E43: 1677.27 | F43: 1656.78 | G43: 1624.92 | H43: 1729.62 | I43: 1761.48 | J43: 1781.97 | K43: 1741 | L43: 1688.65 | M43: 4.56488
A44: 35 | B44: BERGEPAINT | C44: 485.4 | D44: 492.48 | E44: 476.57 | F44: 467.73 | G44: 451.82 | H44: 501.32 | I44: 517.23 | J44: 526.07 | K44: 508.4 | L44: 483.65 | M44: 46.04427
A45: 36 | B45: BEL | C45: 109.45 | D45: 110.30 | E45: 107.80 | F45: 106.15 | G45: 103.65 | H45: 111.95 | I45: 114.45 | J45: 116.10 | K45: 112.8 | L45: 108.65 | M45: 133.85907
A46: 37 | B46: BHARATFORG | C46: 426.65 | D46: 440.32 | E46: 407.18 | F46: 387.72 | G46: 354.58 | H46: 459.78 | I46: 492.92 | J46: 512.38 | K46: 473.45 | L46: 420.85 | M46: 70.61664
A47: 38 | B47: BHEL | C47: 54.25 | D47: 54.52 | E47: 53.03 | F47: 51.82 | G47: 50.33 | H47: 55.73 | I47: 57.22 | J47: 58.43 | K47: 56 | L47: 53.3 | M47: 217.20965
A48: 39 | B48: BPCL | C48: 502.75 | D48: 506.32 | E48: 496.93 | F48: 491.12 | G48: 481.73 | H48: 512.13 | I48: 521.52 | J48: 527.33 | K48: 515.7 | L48: 500.5 | M48: 98.623
A49: 40 | B49: BHARTIARTL | C49: 369.15 | D49: 370.53 | E49: 365.22 | F49: 361.28 | G49: 355.97 | H49: 374.47 | I49: 379.78 | J49: 383.72 | K49: 375.85 | L49: 366.6 | M49: 59.82102
A50: 41 | B50: INFRATEL | C50: 218.3 | D50: 221.10 | E50: 213.20 | F50: 208.10 | G50: 200.20 | H50: 226.20 | I50: 234.10 | J50: 239.20 | K50: 229 | L50: 216 | M50: 84.52515
A51: 42 | B51: BIOCON | C51: 265 | D51: 265.20 | E51: 261.90 | F51: 258.80 | G51: 255.50 | H51: 268.30 | I51: 271.60 | J51: 274.70 | K51: 268.5 | L51: 262.1 | M51: 33.80307
A52: 43 | B52: BBTC | C52: 1201.25 | D52: 1210.02 | E52: 1172.03 | F52: 1142.82 | G52: 1104.83 | H52: 1239.23 | I52: 1277.22 | J52: 1306.43 | K52: 1248 | L52: 1180.8 | M52: 3.67624
A53: 44 | B53: BOSCHLTD | C53: 15353.85 | D53: 15313.97 | E53: 15092.93 | F53: 14832.02 | G53: 14610.98 | H53: 15574.88 | I53: 15795.92 | J53: 16056.83 | K53: 15535 | L53: 15053.05 | M53: 0.17292
A54: 45 | B54: BRITANNIA | C54: 3158 | D54: 3182.15 | E54: 3118.85 | F54: 3079.70 | G54: 3016.40 | H54: 3221.30 | I54: 3284.60 | J54: 3323.75 | K54: 3245.45 | L54: 3143 | M54: 3.76182
A55: 46 | B55: CESC | C55: 766.7 | D55: 770.10 | E55: 760.70 | F55: 754.70 | G55: 745.30 | H55: 776.10 | I55: 785.50 | J55: 791.50 | K55: 779.5 | L55: 764.1 | M55: 2.24536
A56: 47 | B56: CADILAHC | C56: 232.4 | D56: 234.02 | E56: 229.88 | F56: 227.37 | G56: 223.23 | H56: 236.53 | I56: 240.67 | J56: 243.18 | K56: 238.15 | L56: 231.5 | M56: 7.71808
A57: 48 | B57: CANBK | C57: 201.35 | D57: 203.67 | E57: 198.08 | F57: 194.82 | G57: 189.23 | H57: 206.93 | I57: 212.52 | J57: 215.78 | K57: 209.25 | L57: 200.4 | M57: 76.91214
A58: 49 | B58: CASTROLIND | C58: 146.15 | D58: 148.10 | E58: 143.80 | F58: 141.45 | G58: 137.15 | H58: 150.45 | I58: 154.75 | J58: 157.10 | K58: 152.4 | L58: 145.75 | M58: 13.44378
A59: 50 | B59: CHOLAFIN | C59: 296.65 | D59: 297.45 | E59: 293.90 | F59: 291.15 | G59: 287.60 | H59: 300.20 | I59: 303.75 | J59: 306.50 | K59: 301 | L59: 294.7 | M59: 9.03834
A60: 51 | B60: CIPLA | C60: 462.5 | D60: 464.62 | E60: 459.13 | F60: 455.77 | G60: 450.28 | H60: 467.98 | I60: 473.47 | J60: 476.83 | K60: 470.1 | L60: 461.25 | M60: 43.00075
A61: 52 | B61: CUB | C61: 213.35 | D61: 212.63 | E61: 210.77 | F61: 208.18 | G61: 206.32 | H61: 215.22 | I61: 217.08 | J61: 219.67 | K61: 214.5 | L61: 210.05 | M61: 4.37998
A62: 53 | B62: COALINDIA | C62: 209.25 | D62: 211.12 | E62: 206.23 | F62: 203.22 | G62: 198.33 | H62: 214.13 | I62: 219.02 | J62: 222.03 | K62: 216 | L62: 208.1 | M62: 63.24778
A63: 54 | B63: COLPAL | C63: 1579.65 | D63: 1594.75 | E63: 1546.90 | F63: 1514.15 | G63: 1466.30 | H63: 1627.50 | I63: 1675.35 | J63: 1708.10 | K63: 1642.6 | L63: 1562 | M63: 28.2981
A64: 55 | B64: CONCOR | C64: 570.9 | D64: 574.37 | E64: 564.58 | F64: 558.27 | G64: 548.48 | H64: 580.68 | I64: 590.47 | J64: 596.78 | K64: 584.15 | L64: 568.05 | M64: 12.1521
A65: 56 | B65: COROMANDEL | C65: 469.7 | D65: 470.15 | E65: 466.30 | F65: 462.90 | G65: 459.05 | H65: 473.55 | I65: 477.40 | J65: 480.80 | K65: 474 | L65: 466.75 | M65: 0.72309
A66: 57 | B66: CROMPTON | C66: 257.55 | D66: 257.67 | E66: 253.98 | F66: 250.42 | G66: 246.73 | H66: 261.23 | I66: 264.92 | J66: 268.48 | K66: 261.35 | L66: 254.1 | M66: 3.9329
A67: 58 | B67: CUMMINSIND | C67: 556.9 | D67: 555.88 | E67: 549.02 | F67: 541.13 | G67: 534.27 | H67: 563.77 | I67: 570.63 | J67: 578.52 | K67: 562.75 | L67: 548 | M67: 5.07267
A68: 59 | B68: DLF | C68: 203.1 | D68: 202.95 | E68: 196.15 | F68: 189.20 | G68: 182.40 | H68: 209.90 | I68: 216.70 | J68: 223.65 | K68: 209.75 | L68: 196 | M68: 456.66495
A69: 60 | B69: DABUR | C69: 473.65 | D69: 476.52 | E69: 468.73 | F69: 463.82 | G69: 456.03 | H69: 481.43 | I69: 489.22 | J69: 494.13 | K69: 484.3 | L69: 471.6 | M69: 15.61299
A70: 61 | B70: DALBHARAT | C70: 820.05 | D70: 824.42 | E70: 811.83 | F70: 803.62 | G70: 791.03 | H70: 832.63 | I70: 845.22 | J70: 853.43 | K70: 837 | L70: 816.2 | M70: 1.17768
A71: 62 | B71: DIVISLAB | C71: 1699.95 | D71: 1707.58 | E71: 1687.37 | F71: 1674.78 | G71: 1654.57 | H71: 1720.17 | I71: 1740.38 | J71: 1752.97 | K71: 1727.8 | L71: 1695 | M71: 4.69867
A72: 63 | B72: DRREDDY | C72: 2822.1 | D72: 2831.47 | E72: 2802.93 | F72: 2783.77 | G72: 2755.23 | H72: 2850.63 | I72: 2879.17 | J72: 2898.33 | K72: 2860 | L72: 2812.3 | M72: 3.18986
A73: 64 | B73: EDELWEISS | C73: 110.85 | D73: 110.85 | E73: 110.85 | F73: 110.85 | G73: 110.85 | H73: 110.85 | I73: 110.85 | J73: 110.85 | K73: 110.85 | L73: 110.85 | M73: 1.96976
A74: 65 | B74: EICHERMOT | C74: 21689.65 | D74: 21648.45 | E74: 21241.20 | F74: 20792.75 | G74: 20385.50 | H74: 22096.90 | I74: 22504.15 | J74: 22952.60 | K74: 22055.7 | L74: 21200 | M74: 1.87411
A75: 66 | B75: EMAMILTD | C75: 324.5 | D75: 324.52 | E75: 321.23 | F75: 317.97 | G75: 314.68 | H75: 327.78 | I75: 331.07 | J75: 334.33 | K75: 327.8 | L75: 321.25 | M75: 1.80342
A76: 67 | B76: ENDURANCE | C76: 1095.9 | D76: 1103.70 | E76: 1082.20 | F76: 1068.50 | G76: 1047.00 | H76: 1117.40 | I76: 1138.90 | J76: 1152.60 | K76: 1125.2 | L76: 1090 | M76: 0.13055
A77: 68 | B77: ENGINERSIN | C77: 105.55 | D77: 107.97 | E77: 102.43 | F77: 99.32 | G77: 93.78 | H77: 111.08 | I77: 116.62 | J77: 119.73 | K77: 113.5 | L77: 104.85 | M77: 16.24492
A78: 69 | B78: ESCORTS | C78: 653.75 | D78: 653.92 | E78: 641.88 | F78: 630.02 | G78: 617.98 | H78: 665.78 | I78: 677.82 | J78: 689.68 | K78: 665.95 | L78: 642.05 | M78: 22.72682
A79: 70 | B79: EXIDEIND | C79: 186.55 | D79: 187.93 | E79: 184.62 | F79: 182.68 | G79: 179.37 | H79: 189.87 | I79: 193.18 | J79: 195.12 | K79: 191.25 | L79: 186 | M79: 18.56594
A80: 71 | B80: FEDERALBNK | C80: 82.15 | D80: 82.67 | E80: 81.38 | F80: 80.62 | G80: 79.33 | H80: 83.43 | I80: 84.72 | J80: 85.48 | K80: 83.95 | L80: 81.9 | M80: 95.58248
A81: 72 | B81: FCONSUMER | C81: 25.2 | D81: 25.40 | E81: 24.85 | F81: 24.50 | G81: 23.95 | H81: 25.75 | I81: 26.30 | J81: 26.65 | K81: 25.95 | L81: 25.05 | M81: 7.71339
A82: 73 | B82: FRETAIL | C82: 359.5 | D82: 358.38 | E82: 352.77 | F82: 346.03 | G82: 340.42 | H82: 365.12 | I82: 370.73 | J82: 377.47 | K82: 364 | L82: 351.65 | M82: 2.43337
A83: 74 | B83: GAIL | C83: 127.05 | D83: 128.30 | E83: 124.65 | F83: 122.25 | G83: 118.60 | H83: 130.70 | I83: 134.35 | J83: 136.75 | K83: 131.95 | L83: 125.9 | M83: 213.00806
A84: 75 | B84: GMRINFRA | C84: 21.65 | D84: 21.90 | E84: 21.25 | F84: 20.85 | G84: 20.20 | H84: 22.30 | I84: 22.95 | J84: 23.35 | K84: 22.55 | L84: 21.5 | M84: 169.25349
A85: 76 | B85: GICRE | C85: 273.65 | D85: 277.45 | E85: 267.40 | F85: 261.15 | G85: 251.10 | H85: 283.70 | I85: 293.75 | J85: 300.00 | K85: 287.5 | L85: 271.2 | M85: 2.41131
A86: 77 | B86: GLENMARK | C86: 286.45 | D86: 289.18 | E86: 282.02 | F86: 277.58 | G86: 270.42 | H86: 293.62 | I86: 300.78 | J86: 305.22 | K86: 296.35 | L86: 284.75 | M86: 22.44016
A87: 78 | B87: GODREJAGRO | C87: 493.85 | D87: 496.08 | E87: 485.72 | F87: 477.58 | G87: 467.22 | H87: 504.22 | I87: 514.58 | J87: 522.72 | K87: 506.45 | L87: 487.95 | M87: 0.88573
A88: 79 | B88: GODREJCP | C88: 734.5 | D88: 738.80 | E88: 725.75 | F88: 717.00 | G88: 703.95 | H88: 747.55 | I88: 760.60 | J88: 769.35 | K88: 751.85 | L88: 730.05 | M88: 4.36629
A89: 80 | B89: GODREJIND | C89: 425.25 | D89: 425.88 | E89: 420.77 | F89: 416.28 | G89: 411.17 | H89: 430.37 | I89: 435.48 | J89: 439.97 | K89: 431 | L89: 421.4 | M89: 0.83691
A90: 81 | B90: GODREJPROP | C90: 961.25 | D90: 972.42 | E90: 944.83 | F90: 928.42 | G90: 900.83 | H90: 988.83 | I90: 1016.42 | J90: 1032.83 | K90: 1000 | L90: 956 | M90: 3.35133
A91: 82 | B91: GRAPHITE | C91: 302.45 | D91: 305.72 | E91: 296.98 | F91: 291.52 | G91: 282.78 | H91: 311.18 | I91: 319.92 | J91: 325.38 | K91: 314.45 | L91: 300.25 | M91: 23.36788
A92: 83 | B92: GRASIM | C92: 774 | D92: 776.63 | E92: 767.37 | F92: 760.73 | G92: 751.47 | H92: 783.27 | I92: 792.53 | J92: 799.17 | K92: 785.9 | L92: 770 | M92: 13.46108
A93: 84 | B93: GSPL | C93: 213.7 | D93: 213.73 | E93: 209.62 | F93: 205.53 | G93: 201.42 | H93: 217.82 | I93: 221.93 | J93: 226.02 | K93: 217.85 | L93: 209.65 | M93: 2.49319
A94: 85 | B94: HEG | C94: 1021 | D94: 1027.97 | E94: 1008.03 | F94: 995.07 | G94: 975.13 | H94: 1040.93 | I94: 1060.87 | J94: 1073.83 | K94: 1047.9 | L94: 1015 | M94: 5.46373
A95: 86 | B95: HCLTECH | C95: 1150.1 | D95: 1153.53 | E95: 1142.67 | F95: 1135.23 | G95: 1124.37 | H95: 1160.97 | I95: 1171.83 | J95: 1179.27 | K95: 1164.4 | L95: 1146.1 | M95: 20.1329
A96: 87 | B96: HDFCAMC | C96: 3191.55 | D96: 3152.82 | E96: 3056.73 | F96: 2921.92 | G96: 2825.83 | H96: 3287.63 | I96: 3383.72 | J96: 3518.53 | K96: 3248.9 | L96: 3018 | M96: 22.62911
A97: 88 | B97: HDFCBANK | C97: 1255.6 | D97: 1258.02 | E97: 1249.03 | F97: 1242.47 | G97: 1233.48 | H97: 1264.58 | I97: 1273.57 | J97: 1280.13 | K97: 1267 | L97: 1251.45 | M97: 66.25748
A98: 89 | B98: HDFCLIFE | C98: 567.9 | D98: 573.20 | E98: 561.20 | F98: 554.50 | G98: 542.50 | H98: 579.90 | I98: 591.90 | J98: 598.60 | K98: 585.2 | L98: 566.5 | M98: 36.30548
A99: 90 | B99: HAVELLS | C99: 707.5 | D99: 709.18 | E99: 701.12 | F99: 694.73 | G99: 686.67 | H99: 715.57 | I99: 723.63 | J99: 730.02 | K99: 717.25 | L99: 702.8 | M99: 11.29079
A100: 91 | B100: HEROMOTOCO | C100: 2646.95 | D100: 2659.87 | E100: 2627.73 | F100: 2608.52 | G100: 2576.38 | H100: 2679.08 | I100: 2711.22 | J100: 2730.43 | K100: 2692 | L100: 2640.65 | M100: 4.44717
A101: 92 | B101: HEXAWARE | C101: 338.8 | D101: 341.92 | E101: 334.48 | F101: 330.17 | G101: 322.73 | H101: 346.23 | I101: 353.67 | J101: 357.98 | K101: 349.35 | L101: 337.6 | M101: 4.89057
A102: 93 | B102: HINDALCO | C102: 203.85 | D102: 204.65 | E102: 202.30 | F102: 200.75 | G102: 198.40 | H102: 206.20 | I102: 208.55 | J102: 210.10 | K102: 207 | L102: 203.1 | M102: 100.82727
A103: 94 | B103: HINDPETRO | C103: 293.95 | D103: 299.08 | E103: 286.77 | F103: 279.58 | G103: 267.27 | H103: 306.27 | I103: 318.58 | J103: 325.77 | K103: 311.4 | L103: 291.9 | M103: 84.82305
A104: 95 | B104: HINDUNILVR | C104: 2086.4 | D104: 2104.85 | E104: 2064.55 | F104: 2042.70 | G104: 2002.40 | H104: 2126.70 | I104: 2167.00 | J104: 2188.85 | K104: 2145.15 | L104: 2083 | M104: 15.37851
A105: 96 | B105: HINDZINC | C105: 210.8 | D105: 211.45 | E105: 208.55 | F105: 206.30 | G105: 203.40 | H105: 213.70 | I105: 216.60 | J105: 218.85 | K105: 214.35 | L105: 209.2 | M105: 5.83212
A106: 97 | B106: HUDCO | C106: 40.65 | D106: 41.10 | E106: 39.95 | F106: 39.25 | G106: 38.10 | H106: 41.80 | I106: 42.95 | J106: 43.65 | K106: 42.25 | L106: 40.4 | M106: 12.91897
A107: 98 | B107: HDFC | C107: 2233.2 | D107: 2232.23 | E107: 2211.97 | F107: 2190.73 | G107: 2170.47 | H107: 2253.47 | I107: 2273.73 | J107: 2294.97 | K107: 2252.5 | L107: 2211 | M107: 33.15622
A108: 99 | B108: ICICIBANK | C108: 489.45 | D108: 488.58 | E108: 481.17 | F108: 472.88 | G108: 465.47 | H108: 496.87 | I108: 504.28 | J108: 512.57 | K108: 496 | L108: 480.3 | M108: 522.07121
A109: 100 | B109: ICICIGI | C109: 1320.45 | D109: 1321.48 | E109: 1308.97 | F109: 1297.48 | G109: 1284.97 | H109: 1332.97 | I109: 1345.48 | J109: 1356.97 | K109: 1334 | L109: 1310 | M109: 6.2735
A110: 101 | B110: ICICIPRULI | C110: 519.45 | D110: 520.63 | E110: 513.97 | F110: 508.48 | G110: 501.82 | H110: 526.12 | I110: 532.78 | J110: 538.27 | K110: 527.3 | L110: 515.15 | M110: 39.50161
A111: 102 | B111: IDBI | C111: 33.05 | D111: 33.15 | E111: 32.00 | F111: 30.95 | G111: 29.80 | H111: 34.20 | I111: 35.35 | J111: 36.40 | K111: 34.3 | L111: 32.1 | M111: 18.9149
A112: 103 | B112: IDFCFIRSTB | C112: 42.15 | D112: 42.42 | E112: 41.73 | F112: 41.32 | G112: 40.63 | H112: 42.83 | I112: 43.52 | J112: 43.93 | K112: 43.1 | L112: 42 | M112: 151.91473
A113: 104 | B113: ITC | C113: 260.5 | D113: 261.98 | E113: 258.52 | F113: 256.53 | G113: 253.07 | H113: 263.97 | I113: 267.43 | J113: 269.42 | K113: 265.45 | L113: 260 | M113: 118.99353
A114: 105 | B114: IBULHSGFIN | C114: 241.65 | D114: 243.33 | E114: 226.67 | F114: 211.68 | G114: 195.02 | H114: 258.32 | I114: 274.98 | J114: 289.97 | K114: 260 | L114: 228.35 | M114: 778.50817
A115: 106 | B115: IBVENTURES | C115: 134.95 | D115: 131.30 | E115: 127.65 | F115: 120.35 | G115: 116.70 | H115: 138.60 | I115: 142.25 | J115: 149.55 | K115: 134.95 | L115: 124 | M115: 14.37967
A116: 107 | B116: INDIANB | C116: 123.5 | D116: 124.63 | E116: 121.37 | F116: 119.23 | G116: 115.97 | H116: 126.77 | I116: 130.03 | J116: 132.17 | K116: 127.9 | L116: 122.5 | M116: 11.14274
A117: 108 | B117: INDHOTEL | C117: 149.35 | D117: 149.87 | E117: 148.48 | F117: 147.62 | G117: 146.23 | H117: 150.73 | I117: 152.12 | J117: 152.98 | K117: 151.25 | L117: 149 | M117: 2.65291
A118: 109 | B118: IOC | C118: 134.05 | D118: 134.57 | E118: 133.18 | F118: 132.32 | G118: 130.93 | H118: 135.43 | I118: 136.82 | J118: 137.68 | K118: 135.95 | L118: 133.7 | M118: 65.71737
A119: 110 | B119: IGL | C119: 418.15 | D119: 415.38 | E119: 403.77 | F119: 389.38 | G119: 377.77 | H119: 429.77 | I119: 441.38 | J119: 455.77 | K119: 427 | L119: 401 | M119: 129.21428
A120: 111 | B120: INDUSINDBK | C120: 1422.8 | D120: 1410.77 | E120: 1367.58 | F120: 1312.37 | G120: 1269.18 | H120: 1465.98 | I120: 1509.17 | J120: 1564.38 | K120: 1453.95 | L120: 1355.55 | M120: 85.06906
A121: 112 | B121: NAUKRI | C121: 2515.05 | D121: 2541.25 | E121: 2457.50 | F121: 2399.95 | G121: 2316.20 | H121: 2598.80 | I121: 2682.55 | J121: 2740.10 | K121: 2625 | L121: 2483.7 | M121: 9.31637
A122: 113 | B122: INFY | C122: 708.15 | D122: 712.63 | E122: 701.02 | F122: 693.88 | G122: 682.27 | H122: 719.77 | I122: 731.38 | J122: 738.52 | K122: 724.25 | L122: 705.5 | M122: 85.8563
A123: 114 | B123: INDIGO | C123: 1530 | D123: 1517.43 | E123: 1493.12 | F123: 1456.23 | G123: 1431.92 | H123: 1554.32 | I123: 1578.63 | J123: 1615.52 | K123: 1541.75 | L123: 1480.55 | M123: 24.00373
A124: 115 | B124: IPCALAB | C124: 1069.95 | D124: 1073.32 | E124: 1051.63 | F124: 1033.32 | G124: 1011.63 | H124: 1091.63 | I124: 1113.32 | J124: 1131.63 | K124: 1095 | L124: 1055 | M124: 8.11868
A125: 116 | B125: JSWENERGY | C125: 76.55 | D125: 77.52 | E125: 75.03 | F125: 73.52 | G125: 71.03 | H125: 79.03 | I125: 81.52 | J125: 83.03 | K125: 80 | L125: 76 | M125: 14.0912
A126: 117 | B126: JSWSTEEL | C126: 250 | D126: 251.67 | E126: 246.83 | F126: 243.67 | G126: 238.83 | H126: 254.83 | I126: 259.67 | J126: 262.83 | K126: 256.5 | L126: 248.5 | M126: 71.50985
A127: 118 | B127: JINDALSTEL | C127: 144.55 | D127: 146.30 | E127: 142.20 | F127: 139.85 | G127: 135.75 | H127: 148.65 | I127: 152.75 | J127: 155.10 | K127: 150.4 | L127: 143.95 | M127: 292.59836
A128: 119 | B128: JUBLFOOD | C128: 1614.2 | D128: 1617.72 | E128: 1603.43 | F128: 1592.67 | G128: 1578.38 | H128: 1628.48 | I128: 1642.77 | J128: 1653.53 | K128: 1632 | L128: 1606.95 | M128: 9.35316
A129: 120 | B129: JUBILANT | C129: 539.1 | D129: 539.35 | E129: 533.90 | F129: 528.70 | G129: 523.25 | H129: 544.55 | I129: 550.00 | J129: 555.20 | K129: 544.8 | L129: 534.15 | M129: 1.39826
A130: 121 | B130: KOTAKBANK | C130: 1600.25 | D130: 1592.75 | E130: 1579.50 | F130: 1558.75 | G130: 1545.50 | H130: 1613.50 | I130: 1626.75 | J130: 1647.50 | K130: 1606 | L130: 1572 | M130: 39.13627
A131: 122 | B131: L&TFH | C131: 99.55 | D131: 99.40 | E131: 96.80 | F131: 94.05 | G131: 91.45 | H131: 102.15 | I131: 104.75 | J131: 107.50 | K131: 102 | L131: 96.65 | M131: 127.67085
A132: 123 | B132: LTTS | C132: 1454.65 | D132: 1458.57 | E132: 1443.08 | F132: 1431.52 | G132: 1416.03 | H132: 1470.13 | I132: 1485.62 | J132: 1497.18 | K132: 1474.05 | L132: 1447 | M132: 0.71132
A133: 124 | B133: LICHSGFIN | C133: 439.55 | D133: 438.98 | E133: 432.57 | F133: 425.58 | G133: 419.17 | H133: 445.97 | I133: 452.38 | J133: 459.37 | K133: 445.4 | L133: 432 | M133: 33.989
A134: 125 | B134: LTI | C134: 1652.6 | D134: 1659.13 | E134: 1643.47 | F134: 1634.33 | G134: 1618.67 | H134: 1668.27 | I134: 1683.93 | J134: 1693.07 | K134: 1674.8 | L134: 1650 | M134: 0.31375
A135: 126 | B135: LT | C135: 1423 | D135: 1430.33 | E135: 1412.67 | F135: 1402.33 | G135: 1384.67 | H135: 1440.67 | I135: 1458.33 | J135: 1468.67 | K135: 1448 | L135: 1420 | M135: 22.17408
A136: 127 | B136: LUPIN | C136: 718.75 | D136: 725.67 | E136: 708.33 | F136: 697.92 | G136: 680.58 | H136: 736.08 | I136: 753.42 | J136: 763.83 | K136: 743 | L136: 715.25 | M136: 15.23794
A137: 128 | B137: MRF | C137: 64454.45 | D137: 64266.72 | E137: 63043.43 | F137: 61632.42 | G137: 60409.13 | H137: 65677.73 | I137: 66901.02 | J137: 68312.03 | K137: 65490 | L137: 62855.7 | M137: 0.15991
A138: 129 | B138: MGL | C138: 969.6 | D138: 968.22 | E138: 952.38 | F138: 935.17 | G138: 919.33 | H138: 985.43 | I138: 1001.27 | J138: 1018.48 | K138: 984.05 | L138: 951 | M138: 11.97308
A139: 130 | B139: M&MFIN | C139: 329 | D139: 332.05 | E139: 324.70 | F139: 320.40 | G139: 313.05 | H139: 336.35 | I139: 343.70 | J139: 348.00 | K139: 339.4 | L139: 327.75 | M139: 10.99647
A140: 131 | B140: M&M | C140: 580 | D140: 584.45 | E140: 572.40 | F140: 564.80 | G140: 552.75 | H140: 592.05 | I140: 604.10 | J140: 611.70 | K140: 596.5 | L140: 576.85 | M140: 83.74614
A141: 132 | B141: MANAPPURAM | C141: 166.3 | D141: 167.32 | E141: 164.73 | F141: 163.17 | G141: 160.58 | H141: 168.88 | I141: 171.47 | J141: 173.03 | K141: 169.9 | L141: 165.75 | M141: 33.72286
A142: 133 | B142: MRPL | C142: 48.75 | D142: 49.13 | E142: 48.12 | F142: 47.48 | G142: 46.47 | H142: 49.77 | I142: 50.78 | J142: 51.42 | K142: 50.15 | L142: 48.5 | M142: 4.21272
A143: 134 | B143: MARICO | C143: 370.6 | D143: 369.97 | E143: 367.48 | F143: 364.37 | G143: 361.88 | H143: 373.08 | I143: 375.57 | J143: 378.68 | K143: 372.45 | L143: 366.85 | M143: 13.34062
A144: 135 | B144: MARUTI | C144: 7200.55 | D144: 7249.53 | E144: 7129.07 | F144: 7057.58 | G144: 6937.12 | H144: 7321.02 | I144: 7441.48 | J144: 7512.97 | K144: 7370 | L144: 7178.05 | M144: 9.83936
A145: 136 | B145: MFSL | C145: 482 | D145: 481.38 | E145: 465.62 | F145: 449.23 | G145: 433.47 | H145: 497.77 | I145: 513.53 | J145: 529.92 | K145: 497.15 | L145: 465 | M145: 59.03904
A146: 137 | B146: MINDTREE | C146: 693.8 | D146: 697.15 | E146: 688.30 | F146: 682.80 | G146: 673.95 | H146: 702.65 | I146: 711.50 | J146: 717.00 | K146: 706 | L146: 691.65 | M146: 2.84043
A147: 138 | B147: MOTHERSUMI | C147: 129.25 | D147: 131.07 | E147: 126.78 | F147: 124.32 | G147: 120.03 | H147: 133.53 | I147: 137.82 | J147: 140.28 | K147: 135.35 | L147: 128.6 | M147: 121.51485
A148: 139 | B148: MPHASIS | C148: 879.55 | D148: 889.55 | E148: 865.10 | F148: 850.65 | G148: 826.20 | H148: 904.00 | I148: 928.45 | J148: 942.90 | K148: 914 | L148: 875.1 | M148: 1.00609
A149: 140 | B149: MUTHOOTFIN | C149: 674.9 | D149: 678.32 | E149: 669.78 | F149: 664.67 | G149: 656.13 | H149: 683.43 | I149: 691.97 | J149: 697.08 | K149: 686.85 | L149: 673.2 | M149: 3.30246
A150: 141 | B150: NATCOPHARM | C150: 577.8 | D150: 577.55 | E150: 573.30 | F150: 568.80 | G150: 564.55 | H150: 582.05 | I150: 586.30 | J150: 590.80 | K150: 581.8 | L150: 573.05 | M150: 0.48779
A151: 142 | B151: NBCC | C151: 40.75 | D151: 41.07 | E151: 40.23 | F151: 39.72 | G151: 38.88 | H151: 41.58 | I151: 42.42 | J151: 42.93 | K151: 41.9 | L151: 40.55 | M151: 204.78412
A152: 143 | B152: NHPC | C152: 23.35 | D152: 23.35 | E152: 23.20 | F152: 23.05 | G152: 22.90 | H152: 23.50 | I152: 23.65 | J152: 23.80 | K152: 23.5 | L152: 23.2 | M152: 19.65883
A153: 144 | B153: NMDC | C153: 103.75 | D153: 105.38 | E153: 101.77 | F153: 99.78 | G153: 96.17 | H153: 107.37 | I153: 110.98 | J153: 112.97 | K153: 109 | L153: 103.4 | M153: 63.84271
A154: 145 | B154: NTPC | C154: 117.4 | D154: 117.92 | E154: 116.48 | F154: 115.57 | G154: 114.13 | H154: 118.83 | I154: 120.27 | J154: 121.18 | K154: 119.35 | L154: 117 | M154: 97.71715
A155: 146 | B155: NATIONALUM | C155: 46.5 | D155: 46.78 | E155: 46.02 | F155: 45.53 | G155: 44.77 | H155: 47.27 | I155: 48.03 | J155: 48.52 | K155: 47.55 | L155: 46.3 | M155: 54.17065
A156: 147 | B156: NESTLEIND | C156: 14471.3 | D156: 14565.10 | E156: 14280.20 | F156: 14089.10 | G156: 13804.20 | H156: 14756.20 | I156: 15041.10 | J156: 15232.20 | K156: 14850 | L156: 14374 | M156: 0.82029
A157: 148 | B157: OBEROIRLTY | C157: 515.05 | D157: 511.80 | E157: 506.80 | F157: 498.55 | G157: 493.55 | H157: 520.05 | I157: 525.05 | J157: 533.30 | K157: 516.8 | L157: 503.55 | M157: 1.91156
A158: 149 | B158: ONGC | C158: 138.3 | D158: 139.80 | E158: 136.10 | F158: 133.90 | G158: 130.20 | H158: 142.00 | I158: 145.70 | J158: 147.90 | K158: 143.5 | L158: 137.6 | M158: 82.5293
A159: 150 | B159: OIL | C159: 165.55 | D159: 166.07 | E159: 164.13 | F159: 162.72 | G159: 160.78 | H159: 167.48 | I159: 169.42 | J159: 170.83 | K159: 168 | L159: 164.65 | M159: 3.34833
A160: 151 | B160: OFSS | C160: 3126.1 | D160: 3127.07 | E160: 3108.73 | F160: 3091.37 | G160: 3073.03 | H160: 3144.43 | I160: 3162.77 | J160: 3180.13 | K160: 3145.4 | L160: 3109.7 | M160: 0.0725
A161: 152 | B161: ORIENTBANK | C161: 52.85 | D161: 53.07 | E161: 52.38 | F161: 51.92 | G161: 51.23 | H161: 53.53 | I161: 54.22 | J161: 54.68 | K161: 53.75 | L161: 52.6 | M161: 4.24351
A162: 153 | B162: PIIND | C162: 1400.25 | D162: 1401.43 | E162: 1387.87 | F162: 1375.48 | G162: 1361.92 | H162: 1413.82 | I162: 1427.38 | J162: 1439.77 | K162: 1415 | L162: 1389.05 | M162: 0.71407
A163: 154 | B163: PNBHOUSING | C163: 570.5 | D163: 571.50 | E163: 557.25 | F163: 544.00 | G163: 529.75 | H163: 584.75 | I163: 599.00 | J163: 612.25 | K163: 585.75 | L163: 558.25 | M163: 6.36469
A164: 155 | B164: PAGEIND | C164: 24403.1 | D164: 24406.78 | E164: 23913.67 | F164: 23424.23 | G164: 22931.12 | H164: 24896.22 | I164: 25389.33 | J164: 25878.77 | K164: 24899.9 | L164: 23917.35 | M164: 0.34309
A165: 156 | B165: PETRONET | C165: 283.4 | D165: 284.12 | E165: 281.93 | F165: 280.47 | G165: 278.28 | H165: 285.58 | I165: 287.77 | J165: 289.23 | K165: 286.3 | L165: 282.65 | M165: 17.10718
A166: 157 | B166: PFIZER | C166: 4025.2 | D166: 4032.13 | E166: 3989.62 | F166: 3954.03 | G166: 3911.52 | H166: 4067.72 | I166: 4110.23 | J166: 4145.82 | K166: 4074.65 | L166: 3996.55 | M166: 0.2171
A167: 158 | B167: PIDILITIND | C167: 1354.15 | D167: 1362.78 | E167: 1336.87 | F167: 1319.58 | G167: 1293.67 | H167: 1380.07 | I167: 1405.98 | J167: 1423.27 | K167: 1388.7 | L167: 1345.5 | M167: 4.2296
A168: 159 | B168: PEL | C168: 1776.55 | D168: 1787.63 | E168: 1756.27 | F168: 1735.98 | G168: 1704.62 | H168: 1807.92 | I168: 1839.28 | J168: 1859.57 | K168: 1819 | L168: 1767.35 | M168: 13.42725
A169: 160 | B169: PFC | C169: 111.05 | D169: 111.87 | E169: 109.83 | F169: 108.62 | G169: 106.58 | H169: 113.08 | I169: 115.12 | J169: 116.33 | K169: 113.9 | L169: 110.65 | M169: 45.12934
A170: 161 | B170: POWERGRID | C170: 191.65 | D170: 192.63 | E170: 189.87 | F170: 188.08 | G170: 185.32 | H170: 194.42 | I170: 197.18 | J170: 198.97 | K170: 195.4 | L170: 190.85 | M170: 66.16268
A171: 162 | B171: PRESTIGE | C171: 310.3 | D171: 310.30 | E171: 306.00 | F171: 301.70 | G171: 297.40 | H171: 314.60 | I171: 318.90 | J171: 323.20 | K171: 314.6 | L171: 306 | M171: 2.52933
A172: 163 | B172: PGHH | C172: 11379.9 | D172: 11467.47 | E172: 11221.43 | F172: 11062.97 | G172: 10816.93 | H172: 11625.93 | I172: 11871.97 | J172: 12030.43 | K172: 11713.5 | L172: 11309 | M172: 0.03063
A173: 164 | B173: PNB | C173: 61.45 | D173: 61.72 | E173: 60.83 | F173: 60.22 | G173: 59.33 | H173: 62.33 | I173: 63.22 | J173: 63.83 | K173: 62.6 | L173: 61.1 | M173: 181.36704
A174: 165 | B174: QUESS | C174: 526.95 | D174: 523.48 | E174: 513.97 | F174: 500.98 | G174: 491.47 | H174: 536.47 | I174: 545.98 | J174: 558.97 | K174: 533 | L174: 510.5 | M174: 1.56171
A175: 166 | B175: RBLBANK | C175: 323.9 | D175: 320.67 | E175: 308.58 | F175: 293.27 | G175: 281.18 | H175: 335.98 | I175: 348.07 | J175: 363.38 | K175: 332.75 | L175: 305.35 | M175: 236.84769
A176: 167 | B176: RECLTD | C176: 138.75 | D176: 140.07 | E176: 137.13 | F176: 135.52 | G176: 132.58 | H176: 141.68 | I176: 144.62 | J176: 146.23 | K176: 143 | L176: 138.45 | M176: 50.53187
A177: 168 | B177: RAJESHEXPO | C177: 674.9 | D177: 676.85 | E177: 671.55 | F177: 668.20 | G177: 662.90 | H177: 680.20 | I177: 685.50 | J177: 688.85 | K177: 682.15 | L177: 673.5 | M177: 1.2072
A178: 169 | B178: RELIANCE | C178: 1445.5 | D178: 1448.82 | E178: 1437.98 | F178: 1430.47 | G178: 1419.63 | H178: 1456.33 | I178: 1467.17 | J178: 1474.68 | K178: 1459.65 | L178: 1441.3 | M178: 54.94844
A179: 170 | B179: RNAM | C179: 318.95 | D179: 324.70 | E179: 310.50 | F179: 302.05 | G179: 287.85 | H179: 333.15 | I179: 347.35 | J179: 355.80 | K179: 338.9 | L179: 316.25 | M179: 30.38431
A180: 171 | B180: SBILIFE | C180: 982.2 | D180: 993.57 | E180: 965.13 | F180: 948.07 | G180: 919.63 | H180: 1010.63 | I180: 1039.07 | J180: 1056.13 | K180: 1022 | L180: 976.5 | M180: 56.56687
A181: 172 | B181: SRF | C181: 3139.45 | D181: 3161.35 | E181: 3097.70 | F181: 3055.95 | G181: 2992.30 | H181: 3203.10 | I181: 3266.75 | J181: 3308.50 | K181: 3225 | L181: 3119.6 | M181: 7.99344
A182: 173 | B182: SHREECEM | C182: 19985.95 | D182: 19954.32 | E182: 19742.63 | F182: 19499.32 | G182: 19287.63 | H182: 20197.63 | I182: 20409.32 | J182: 20652.63 | K182: 20166 | L182: 19711 | M182: 0.22206
A183: 174 | B183: SRTRANSFIN | C183: 1116.35 | D183: 1129.95 | E183: 1097.40 | F183: 1078.45 | G183: 1045.90 | H183: 1148.90 | I183: 1181.45 | J183: 1200.40 | K183: 1162.5 | L183: 1111 | M183: 8.78154
A184: 175 | B184: SIEMENS | C184: 1648.5 | D184: 1657.23 | E184: 1631.47 | F184: 1614.43 | G184: 1588.67 | H184: 1674.27 | I184: 1700.03 | J184: 1717.07 | K184: 1683 | L184: 1640.2 | M184: 9.59073
A185: 176 | B185: SBIN | C185: 316 | D185: 317.17 | E185: 313.33 | F185: 310.67 | G185: 306.83 | H185: 319.83 | I185: 323.67 | J185: 326.33 | K185: 321 | L185: 314.5 | M185: 254.23362
A186: 177 | B186: SAIL | C186: 38.7 | D186: 39.07 | E186: 38.18 | F186: 37.67 | G186: 36.78 | H186: 39.58 | I186: 40.47 | J186: 40.98 | K186: 39.95 | L186: 38.55 | M186: 270.26861
A187: 178 | B187: STRTECH | C187: 136.85 | D187: 135.87 | E187: 129.23 | F187: 121.62 | G187: 114.98 | H187: 143.48 | I187: 150.12 | J187: 157.73 | K187: 142.5 | L187: 128.25 | M187: 40.4897
A188: 179 | B188: SUNPHARMA | C188: 422.1 | D188: 428.48 | E188: 414.47 | F188: 406.83 | G188: 392.82 | H188: 436.12 | I188: 450.13 | J188: 457.77 | K188: 442.5 | L188: 420.85 | M188: 119.0247
A189: 180 | B189: SUNTV | C189: 510.25 | D189: 515.38 | E189: 498.72 | F189: 487.18 | G189: 470.52 | H189: 526.92 | I189: 543.58 | J189: 555.12 | K189: 532.05 | L189: 503.85 | M189: 9.77588
A190: 181 | B190: SYNGENE | C190: 330.35 | D190: 327.78 | E190: 323.57 | F190: 316.78 | G190: 312.57 | H190: 334.57 | I190: 338.78 | J190: 345.57 | K190: 332 | L190: 321 | M190: 0.53983
A191: 182 | B191: TVSMOTOR | C191: 452.4 | D191: 451.28 | E191: 446.12 | F191: 439.83 | G191: 434.67 | H191: 457.57 | I191: 462.73 | J191: 469.02 | K191: 456.45 | L191: 445 | M191: 13.22514
A192: 183 | B192: TATACHEM | C192: 631.55 | D192: 635.15 | E192: 624.35 | F192: 617.15 | G192: 606.35 | H192: 642.35 | I192: 653.15 | J192: 660.35 | K192: 645.95 | L192: 627.95 | M192: 2.79708
A193: 184 | B193: TCS | C193: 2129.95 | D193: 2147.85 | E193: 2106.10 | F193: 2082.25 | G193: 2040.50 | H193: 2171.70 | I193: 2213.45 | J193: 2237.30 | K193: 2189.6 | L193: 2124 | M193: 27.88759
A194: 185 | B194: TATAGLOBAL | C194: 295.2 | D194: 296.07 | E194: 293.13 | F194: 291.07 | G194: 288.13 | H194: 298.13 | I194: 301.07 | J194: 303.13 | K194: 299 | L194: 294 | M194: 46.89759
A195: 186 | B195: TATAMTRDVR | C195: 77.6 | D195: 78.90 | E195: 75.80 | F195: 74.00 | G195: 70.90 | H195: 80.70 | I195: 83.80 | J195: 85.60 | K195: 82 | L195: 77.1 | M195: 61.45716
A196: 187 | B196: TATAMOTORS | C196: 169.05 | D196: 171.92 | E196: 164.93 | F196: 160.82 | G196: 153.83 | H196: 176.03 | I196: 183.02 | J196: 187.13 | K196: 178.9 | L196: 167.8 | M196: 391.02947
A197: 188 | B197: TATAPOWER | C197: 59.55 | D197: 59.52 | E197: 58.68 | F197: 57.82 | G197: 56.98 | H197: 60.38 | I197: 61.22 | J197: 62.08 | K197: 60.35 | L197: 58.65 | M197: 252.24076
A198: 189 | B198: TATASTEEL | C198: 397.95 | D198: 399.75 | E198: 393.30 | F198: 388.65 | G198: 382.20 | H198: 404.40 | I198: 410.85 | J198: 415.50 | K198: 406.2 | L198: 395.1 | M198: 214.2352
A199: 190 | B199: TECHM | C199: 771.35 | D199: 773.17 | E199: 768.48 | F199: 765.62 | G199: 760.93 | H199: 776.03 | I199: 780.72 | J199: 783.58 | K199: 777.85 | L199: 770.3 | M199: 23.68591
A200: 191 | B200: NIACL | C200: 145.05 | D200: 148.50 | E200: 141.00 | F200: 136.95 | G200: 129.45 | H200: 152.55 | I200: 160.05 | J200: 164.10 | K200: 156 | L200: 144.45 | M200: 4.10903
A201: 192 | B201: RAMCOCEM | C201: 796.2 | D201: 799.37 | E201: 786.13 | F201: 776.07 | G201: 762.83 | H201: 809.43 | I201: 822.67 | J201: 832.73 | K201: 812.6 | L201: 789.3 | M201: 1.69654
A202: 193 | B202: TITAN | C202: 1156.75 | D202: 1161.23 | E202: 1149.52 | F202: 1142.28 | G202: 1130.57 | H202: 1168.47 | I202: 1180.18 | J202: 1187.42 | K202: 1172.95 | L202: 1154 | M202: 27.96511
A203: 194 | B203: TORNTPHARM | C203: 1814.65 | D203: 1816.52 | E203: 1798.13 | F203: 1781.62 | G203: 1763.23 | H203: 1833.03 | I203: 1851.42 | J203: 1867.93 | K203: 1834.9 | L203: 1800 | M203: 0.6263
A204: 195 | B204: TORNTPOWER | C204: 292.9 | D204: 295.67 | E204: 288.33 | F204: 283.77 | G204: 276.43 | H204: 300.23 | I204: 307.57 | J204: 312.13 | K204: 303 | L204: 291.1 | M204: 25.75007
A205: 196 | B205: UPL | C205: 555.85 | D205: 560.97 | E205: 547.43 | F205: 539.02 | G205: 525.48 | H205: 569.38 | I205: 582.92 | J205: 591.33 | K205: 574.5 | L205: 552.55 | M205: 80.50823
... 30 more rows

Sheet MidCap Intra
L5: Back To Main Page
A6: FOR INTRA DAY TRADING | K6: =Main!B10 -> 2019-11-11
A9: Sr.no | B9: Scrip | C9: CLOSE RATE | D9: Pivot Point | E9: Supports | H9: Resistances
C10: Point | E10: S1 | F10: S2 | G10: S3 | H10: R1 | I10: R2 | J10: R3 | K10: HIGH | L10: LOW | M10: Total Trade Quanity in Lakhs
A11: 1 | B11: 3MINDIA | C11: 22392.9 | D11: 22507.52 | E11: 22171.03 | F11: 21949.17 | G11: 21612.68 | H11: 22729.38 | I11: 23065.87 | J11: 23287.73 | K11: 22844 | L11: 22285.65 | M11: 0.01601
A12: 2 | B12: ACC | C12: 1506.4 | D12: 1516.48 | E12: 1488.97 | F12: 1471.53 | G12: 1444.02 | H12: 1533.92 | I12: 1561.43 | J12: 1578.87 | K12: 1544 | L12: 1499.05 | M12: 6.35287
A13: 3 | B13: AIAENG | C13: 1686 | D13: 1686.00 | E13: 1670.00 | F13: 1654.00 | G13: 1638.00 | H13: 1702.00 | I13: 1718.00 | J13: 1734.00 | K13: 1702 | L13: 1670 | M13: 0.33519
A14: 4 | B14: APLAPOLLO | C14: 1438.55 | D14: 1450.33 | E14: 1414.67 | F14: 1390.78 | G14: 1355.12 | H14: 1474.22 | I14: 1509.88 | J14: 1533.77 | K14: 1486 | L14: 1426.45 | M14: 0.10272
A15: 5 | B15: AUBANK | C15: 689.5 | D15: 687.50 | E15: 678.00 | F15: 666.50 | G15: 657.00 | H15: 699.00 | I15: 708.50 | J15: 720.00 | K15: 697 | L15: 676 | M15: 2.67306
A16: 6 | B16: AAVAS | C16: 1564.2 | D16: 1561.73 | E16: 1522.47 | F16: 1480.73 | G16: 1441.47 | H16: 1603.47 | I16: 1642.73 | J16: 1684.47 | K16: 1601 | L16: 1520 | M16: 1.81039
A17: 7 | B17: ABBOTINDIA | C17: 11502.95 | D17: 11537.98 | E17: 11364.97 | F17: 11226.98 | G17: 11053.97 | H17: 11675.97 | I17: 11848.98 | J17: 11986.97 | K17: 11711 | L17: 11400 | M17: 0.05622
A18: 8 | B18: ADANIGAS | C18: 146.8 | D18: 147.37 | E18: 146.03 | F18: 145.27 | G18: 143.93 | H18: 148.13 | I18: 149.47 | J18: 150.23 | K18: 148.7 | L18: 146.6 | M18: 5.57647
A19: 9 | B19: ADANIGREEN | C19: 86.7 | D19: 86.63 | E19: 83.67 | F19: 80.63 | G19: 77.67 | H19: 89.67 | I19: 92.63 | J19: 95.67 | K19: 89.6 | L19: 83.6 | M19: 14.03419
A20: 10 | B20: ADANIPORTS | C20: 386.15 | D20: 387.62 | E20: 384.03 | F20: 381.92 | G20: 378.33 | H20: 389.73 | I20: 393.32 | J20: 395.43 | K20: 391.2 | L20: 385.5 | M20: 12.06504
A21: 11 | B21: ADANIPOWER | C21: 68.7 | D21: 69.70 | E21: 67.30 | F21: 65.90 | G21: 63.50 | H21: 71.10 | I21: 73.50 | J21: 74.90 | K21: 72.1 | L21: 68.3 | M21: 85.59882
A22: 12 | B22: ADANITRANS | C22: 286.85 | D22: 292.25 | E22: 279.60 | F22: 272.35 | G22: 259.70 | H22: 299.50 | I22: 312.15 | J22: 319.40 | K22: 304.9 | L22: 285 | M22: 6.64417
A23: 13 | B23: ABCAPITAL | C23: 86.85 | D23: 87.02 | E23: 85.43 | F23: 84.02 | G23: 82.43 | H23: 88.43 | I23: 90.02 | J23: 91.43 | K23: 88.6 | L23: 85.6 | M23: 62.58041
A24: 14 | B24: ABFRL | C24: 204.6 | D24: 210.93 | E24: 194.17 | F24: 183.73 | G24: 166.97 | H24: 221.37 | I24: 238.13 | J24: 248.57 | K24: 227.7 | L24: 200.5 | M24: 4.6814
A25: 15 | B25: ADVENZYMES | C25: 178.1 | D25: 179.65 | E25: 176.45 | F25: 174.80 | G25: 171.60 | H25: 181.30 | I25: 184.50 | J25: 186.15 | K25: 182.85 | L25: 178 | M25: 0.874
A26: 16 | B26: AEGISCHEM | C26: 163.45 | D26: 165.05 | E26: 161.00 | F26: 158.55 | G26: 154.50 | H26: 167.50 | I26: 171.55 | J26: 174.00 | K26: 169.1 | L26: 162.6 | M26: 1.58869
A27: 17 | B27: AJANTPHARM | C27: 988.8 | D27: 992.27 | E27: 981.53 | F27: 974.27 | G27: 963.53 | H27: 999.53 | I27: 1010.27 | J27: 1017.53 | K27: 1003 | L27: 985 | M27: 0.91434
A28: 18 | B28: AKZOINDIA | C28: 2152.7 | D28: 2172.25 | E28: 2105.55 | F28: 2058.40 | G28: 1991.70 | H28: 2219.40 | I28: 2286.10 | J28: 2333.25 | K28: 2238.95 | L28: 2125.1 | M28: 0.15021
A29: 19 | B29: APLLTD | C29: 577.05 | D29: 578.27 | E29: 570.08 | F29: 563.12 | G29: 554.93 | H29: 585.23 | I29: 593.42 | J29: 600.38 | K29: 586.45 | L29: 571.3 | M29: 0.82911
A30: 20 | B30: ALKEM | C30: 2034.25 | D30: 2029.22 | E30: 2010.13 | F30: 1986.02 | G30: 1966.93 | H30: 2053.33 | I30: 2072.42 | J30: 2096.53 | K30: 2048.3 | L30: 2005.1 | M30: 0.10123
A31: 21 | B31: ALBK | C31: 25.95 | D31: 25.85 | E31: 24.10 | F31: 22.25 | G31: 20.50 | H31: 27.70 | I31: 29.45 | J31: 31.30 | K31: 27.6 | L31: 24 | M31: 62.14896
A32: 22 | B32: ALLCARGO | C32: 101.75 | D32: 103.52 | E32: 98.73 | F32: 95.72 | G32: 90.93 | H32: 106.53 | I32: 111.32 | J32: 114.33 | K32: 108.3 | L32: 100.5 | M32: 1.66617
A33: 23 | B33: AMARAJABAT | C33: 654.2 | D33: 659.63 | E33: 645.07 | F33: 635.93 | G33: 621.37 | H33: 668.77 | I33: 683.33 | J33: 692.47 | K33: 674.2 | L33: 650.5 | M33: 3.74273
A34: 24 | B34: AMBER | C34: 976.05 | D34: 988.80 | E34: 952.25 | F34: 928.45 | G34: 891.90 | H34: 1012.60 | I34: 1049.15 | J34: 1072.95 | K34: 1025.35 | L34: 965 | M34: 1.73715
A35: 25 | B35: AMBUJACEM | C35: 202.25 | D35: 202.38 | E35: 199.87 | F35: 197.48 | G35: 194.97 | H35: 204.77 | I35: 207.28 | J35: 209.67 | K35: 204.9 | L35: 200 | M35: 21.8187
A36: 26 | B36: ANDHRABANK | C36: 18.05 | D36: 18.25 | E36: 17.35 | F36: 16.65 | G36: 15.75 | H36: 18.95 | I36: 19.85 | J36: 20.55 | K36: 19.15 | L36: 17.55 | M36: 16.38044
A37: 27 | B37: APOLLOHOSP | C37: 1418.6 | D37: 1433.83 | E37: 1399.77 | F37: 1380.93 | G37: 1346.87 | H37: 1452.67 | I37: 1486.73 | J37: 1505.57 | K37: 1467.9 | L37: 1415 | M37: 5.0463
A38: 28 | B38: APOLLOTYRE | C38: 165.15 | D38: 166.15 | E38: 163.50 | F38: 161.85 | G38: 159.20 | H38: 167.80 | I38: 170.45 | J38: 172.10 | K38: 168.8 | L38: 164.5 | M38: 25.66305
A39: 29 | B39: ARVINDFASN | C39: 425.35 | D39: 427.17 | E39: 420.33 | F39: 415.32 | G39: 408.48 | H39: 432.18 | I39: 439.02 | J39: 444.03 | K39: 434 | L39: 422.15 | M39: 0.43651
A40: 30 | B40: ASHOKLEY | C40: 76.55 | D40: 77.17 | E40: 75.08 | F40: 73.62 | G40: 71.53 | H40: 78.63 | I40: 80.72 | J40: 82.18 | K40: 79.25 | L40: 75.7 | M40: 283.84175
A41: 31 | B41: ASHOKA | C41: 96.95 | D41: 97.05 | E41: 96.20 | F41: 95.45 | G41: 94.60 | H41: 97.80 | I41: 98.65 | J41: 99.40 | K41: 97.9 | L41: 96.3 | M41: 1.85677
A42: 32 | B42: ASIANPAINT | C42: 1794.85 | D42: 1804.15 | E42: 1781.50 | F42: 1768.15 | G42: 1745.50 | H42: 1817.50 | I42: 1840.15 | J42: 1853.50 | K42: 1826.8 | L42: 1790.8 | M42: 10.77136
A43: 33 | B43: ASTERDM | C43: 144.75 | D43: 143.08 | E43: 139.67 | F43: 134.58 | G43: 131.17 | H43: 148.17 | I43: 151.58 | J43: 156.67 | K43: 146.5 | L43: 138 | M43: 1.08944
A44: 34 | B44: ASTRAZEN | C44: 2492 | D44: 2503.40 | E44: 2468.60 | F44: 2445.20 | G44: 2410.40 | H44: 2526.80 | I44: 2561.60 | J44: 2585.00 | K44: 2538.2 | L44: 2480 | M44: 0.10006
A45: 35 | B45: ASTRAL | C45: 1103.95 | D45: 1103.43 | E45: 1091.62 | F45: 1079.28 | G45: 1067.47 | H45: 1115.77 | I45: 1127.58 | J45: 1139.92 | K45: 1115.25 | L45: 1091.1 | M45: 5.59316
A46: 36 | B46: ATUL | C46: 4202.7 | D46: 4217.23 | E46: 4176.47 | F46: 4150.23 | G46: 4109.47 | H46: 4243.47 | I46: 4284.23 | J46: 4310.47 | K46: 4258 | L46: 4191 | M46: 0.04894
A47: 37 | B47: AUROPHARMA | C47: 439.95 | D47: 444.23 | E47: 432.22 | F47: 424.48 | G47: 412.47 | H47: 451.97 | I47: 463.98 | J47: 471.72 | K47: 456.25 | L47: 436.5 | M47: 31.89184
A48: 38 | B48: AVANTIFEED | C48: 553.95 | D48: 540.15 | E48: 518.30 | F48: 482.65 | G48: 460.80 | H48: 575.80 | I48: 597.65 | J48: 633.30 | K48: 562 | L48: 504.5 | M48: 29.64706
A49: 39 | B49: DMART | C49: 1968.85 | D49: 1979.62 | E49: 1949.23 | F49: 1929.62 | G49: 1899.23 | H49: 1999.23 | I49: 2029.62 | J49: 2049.23 | K49: 2010 | L49: 1960 | M49: 3.72365
A50: 40 | B50: AXISBANK | C50: 725.5 | D50: 728.07 | E50: 720.23 | F50: 714.97 | G50: 707.13 | H50: 733.33 | I50: 741.17 | J50: 746.43 | K50: 735.9 | L50: 722.8 | M50: 74.27196
A51: 41 | B51: BASF | C51: 985.7 | D51: 973.85 | E51: 953.75 | F51: 921.80 | G51: 901.70 | H51: 1005.80 | I51: 1025.90 | J51: 1057.85 | K51: 993.95 | L51: 941.9 | M51: 0.23068
A52: 42 | B52: BEML | C52: 961.7 | D52: 966.50 | E52: 952.95 | F52: 944.20 | G52: 930.65 | H52: 975.25 | I52: 988.80 | J52: 997.55 | K52: 980.05 | L52: 957.75 | M52: 3.34339
A53: 43 | B53: BSE | C53: 525.85 | D53: 530.27 | E53: 520.58 | F53: 515.32 | G53: 505.63 | H53: 535.53 | I53: 545.22 | J53: 550.48 | K53: 539.95 | L53: 525 | M53: 0.77642
A54: 44 | B54: BAJAJ-AUTO | C54: 3245.55 | D54: 3256.63 | E54: 3224.47 | F54: 3203.38 | G54: 3171.22 | H54: 3277.72 | I54: 3309.88 | J54: 3330.97 | K54: 3288.8 | L54: 3235.55 | M54: 4.83871
A55: 45 | B55: BAJAJCON | C55: 249.8 | D55: 251.50 | E55: 247.30 | F55: 244.80 | G55: 240.60 | H55: 254.00 | I55: 258.20 | J55: 260.70 | K55: 255.7 | L55: 249 | M55: 1.46067
A56: 46 | B56: BAJAJELEC | C56: 325.05 | D56: 329.35 | E56: 318.70 | F56: 312.35 | G56: 301.70 | H56: 335.70 | I56: 346.35 | J56: 352.70 | K56: 340 | L56: 323 | M56: 2.76634
A57: 47 | B57: BAJFINANCE | C57: 4159.45 | D57: 4182.48 | E57: 4124.97 | F57: 4090.48 | G57: 4032.97 | H57: 4216.97 | I57: 4274.48 | J57: 4308.97 | K57: 4240 | L57: 4148 | M57: 15.09693
A58: 48 | B58: BAJAJFINSV | C58: 8818.85 | D58: 8839.62 | E58: 8729.23 | F58: 8639.62 | G58: 8529.23 | H58: 8929.23 | I58: 9039.62 | J58: 9129.23 | K58: 8950 | L58: 8750 | M58: 2.94904
A59: 49 | B59: BAJAJHLDNG | C59: 3777.1 | D59: 3814.75 | E59: 3725.55 | F59: 3674.00 | G59: 3584.80 | H59: 3866.30 | I59: 3955.50 | J59: 4007.05 | K59: 3903.95 | L59: 3763.2 | M59: 0.34834
A60: 50 | B60: BALKRISIND | C60: 850.75 | D60: 855.73 | E60: 840.47 | F60: 830.18 | G60: 814.92 | H60: 866.02 | I60: 881.28 | J60: 891.57 | K60: 871 | L60: 845.45 | M60: 1.35534
A61: 51 | B61: BALMLAWRIE | C61: 198.05 | D61: 199.50 | E61: 195.55 | F61: 193.05 | G61: 189.10 | H61: 202.00 | I61: 205.95 | J61: 208.45 | K61: 203.45 | L61: 197 | M61: 0.93492
A62: 52 | B62: BALRAMCHIN | C62: 149.5 | D62: 150.63 | E62: 146.87 | F62: 144.23 | G62: 140.47 | H62: 153.27 | I62: 157.03 | J62: 159.67 | K62: 154.4 | L62: 148 | M62: 9.80459
A63: 53 | B63: BANDHANBNK | C63: 550.8 | D63: 557.85 | E63: 541.45 | F63: 532.10 | G63: 515.70 | H63: 567.20 | I63: 583.60 | J63: 592.95 | K63: 574.25 | L63: 548.5 | M63: 19.79356
A64: 54 | B64: BANKBARODA | C64: 93.8 | D64: 94.77 | E64: 92.38 | F64: 90.97 | G64: 88.58 | H64: 96.18 | I64: 98.57 | J64: 99.98 | K64: 97.15 | L64: 93.35 | M64: 362.65152
A65: 55 | B65: BANKINDIA | C65: 66.45 | D65: 67.25 | E65: 65.30 | F65: 64.15 | G65: 62.20 | H65: 68.40 | I65: 70.35 | J65: 71.50 | K65: 69.2 | L65: 66.1 | M65: 80.766
A66: 56 | B66: MAHABANK | C66: 11.8 | D66: 11.90 | E66: 11.60 | F66: 11.40 | G66: 11.10 | H66: 12.10 | I66: 12.40 | J66: 12.60 | K66: 12.2 | L66: 11.7 | M66: 4.18992
A67: 57 | B67: BATAINDIA | C67: 1697.75 | D67: 1709.13 | E67: 1677.27 | F67: 1656.78 | G67: 1624.92 | H67: 1729.62 | I67: 1761.48 | J67: 1781.97 | K67: 1741 | L67: 1688.65 | M67: 4.56488
A68: 58 | B68: BAYERCROP | C68: 3445.35 | D68: 3490.12 | E68: 3380.23 | F68: 3315.12 | G68: 3205.23 | H68: 3555.23 | I68: 3665.12 | J68: 3730.23 | K68: 3600 | L68: 3425 | M68: 0.04728
A69: 59 | B69: BERGEPAINT | C69: 485.4 | D69: 492.48 | E69: 476.57 | F69: 467.73 | G69: 451.82 | H69: 501.32 | I69: 517.23 | J69: 526.07 | K69: 508.4 | L69: 483.65 | M69: 46.04427
A70: 60 | B70: BDL | C70: 327.95 | D70: 328.62 | E70: 322.33 | F70: 316.72 | G70: 310.43 | H70: 334.23 | I70: 340.52 | J70: 346.13 | K70: 334.9 | L70: 323 | M70: 0.64135
A71: 61 | B71: BEL | C71: 109.45 | D71: 110.30 | E71: 107.80 | F71: 106.15 | G71: 103.65 | H71: 111.95 | I71: 114.45 | J71: 116.10 | K71: 112.8 | L71: 108.65 | M71: 133.85907
A72: 62 | B72: BHARATFORG | C72: 426.65 | D72: 440.32 | E72: 407.18 | F72: 387.72 | G72: 354.58 | H72: 459.78 | I72: 492.92 | J72: 512.38 | K72: 473.45 | L72: 420.85 | M72: 70.61664
A73: 63 | B73: BHEL | C73: 54.25 | D73: 54.52 | E73: 53.03 | F73: 51.82 | G73: 50.33 | H73: 55.73 | I73: 57.22 | J73: 58.43 | K73: 56 | L73: 53.3 | M73: 217.20965
A74: 64 | B74: BPCL | C74: 502.75 | D74: 506.32 | E74: 496.93 | F74: 491.12 | G74: 481.73 | H74: 512.13 | I74: 521.52 | J74: 527.33 | K74: 515.7 | L74: 500.5 | M74: 98.623
A75: 65 | B75: BHARTIARTL | C75: 369.15 | D75: 370.53 | E75: 365.22 | F75: 361.28 | G75: 355.97 | H75: 374.47 | I75: 379.78 | J75: 383.72 | K75: 375.85 | L75: 366.6 | M75: 59.82102
A76: 66 | B76: INFRATEL | C76: 218.3 | D76: 221.10 | E76: 213.20 | F76: 208.10 | G76: 200.20 | H76: 226.20 | I76: 234.10 | J76: 239.20 | K76: 229 | L76: 216 | M76: 84.52515
A77: 67 | B77: BIOCON | C77: 265 | D77: 265.20 | E77: 261.90 | F77: 258.80 | G77: 255.50 | H77: 268.30 | I77: 271.60 | J77: 274.70 | K77: 268.5 | L77: 262.1 | M77: 33.80307
A78: 68 | B78: BIRLACORPN | C78: 629.8 | D78: 639.15 | E78: 616.30 | F78: 602.80 | G78: 579.95 | H78: 652.65 | I78: 675.50 | J78: 689.00 | K78: 662 | L78: 625.65 | M78: 3.47136
A79: 69 | B79: BSOFT | C79: 63.4 | D79: 63.47 | E79: 61.03 | F79: 58.67 | G79: 56.23 | H79: 65.83 | I79: 68.27 | J79: 70.63 | K79: 65.9 | L79: 61.1 | M79: 8.88267
A80: 70 | B80: BLISSGVS | C80: 138.8 | D80: 138.58 | E80: 136.02 | F80: 133.23 | G80: 130.67 | H80: 141.37 | I80: 143.93 | J80: 146.72 | K80: 141.15 | L80: 135.8 | M80: 2.39211
A81: 71 | B81: BLUEDART | C81: 2260.8 | D81: 2269.35 | E81: 2246.45 | F81: 2232.10 | G81: 2209.20 | H81: 2283.70 | I81: 2306.60 | J81: 2320.95 | K81: 2292.25 | L81: 2255 | M81: 0.01641
A82: 72 | B82: BLUESTARCO | C82: 797.15 | D82: 803.05 | E82: 787.10 | F82: 777.05 | G82: 761.10 | H82: 813.10 | I82: 829.05 | J82: 839.10 | K82: 819 | L82: 793 | M82: 0.79186
A83: 73 | B83: BBTC | C83: 1201.25 | D83: 1210.02 | E83: 1172.03 | F83: 1142.82 | G83: 1104.83 | H83: 1239.23 | I83: 1277.22 | J83: 1306.43 | K83: 1248 | L83: 1180.8 | M83: 3.67624
A84: 74 | B84: BOMDYEING | C84: 90.85 | D84: 90.95 | E84: 84.40 | F84: 77.95 | G84: 71.40 | H84: 97.40 | I84: 103.95 | J84: 110.40 | K84: 97.5 | L84: 84.5 | M84: 126.43971
A85: 75 | B85: BOSCHLTD | C85: 15353.85 | D85: 15313.97 | E85: 15092.93 | F85: 14832.02 | G85: 14610.98 | H85: 15574.88 | I85: 15795.92 | J85: 16056.83 | K85: 15535 | L85: 15053.05 | M85: 0.17292
A86: 76 | B86: BRIGADE | C86: 212.9 | D86: 215.50 | E86: 207.40 | F86: 201.90 | G86: 193.80 | H86: 221.00 | I86: 229.10 | J86: 234.60 | K86: 223.6 | L86: 210 | M86: 6.24647
A87: 77 | B87: BRITANNIA | C87: 3158 | D87: 3182.15 | E87: 3118.85 | F87: 3079.70 | G87: 3016.40 | H87: 3221.30 | I87: 3284.60 | J87: 3323.75 | K87: 3245.45 | L87: 3143 | M87: 3.76182
A88: 78 | B88: CARERATING | C88: 534.35 | D88: 534.05 | E88: 532.10 | F88: 529.85 | G88: 527.90 | H88: 536.30 | I88: 538.25 | J88: 540.50 | K88: 536 | L88: 531.8 | M88: 0.6551
A89: 79 | B89: CCL | C89: 203.1 | D89: 203.50 | E89: 201.10 | F89: 199.10 | G89: 196.70 | H89: 205.50 | I89: 207.90 | J89: 209.90 | K89: 205.9 | L89: 201.5 | M89: 0.40486
A90: 80 | B90: CESC | C90: 766.7 | D90: 770.10 | E90: 760.70 | F90: 754.70 | G90: 745.30 | H90: 776.10 | I90: 785.50 | J90: 791.50 | K90: 779.5 | L90: 764.1 | M90: 2.24536
A91: 81 | B91: CGPOWER | C91: 16.3 | D91: 16.63 | E91: 15.67 | F91: 15.03 | G91: 14.07 | H91: 17.27 | I91: 18.23 | J91: 18.87 | K91: 17.6 | L91: 16 | M91: 55.74119
A92: 82 | B92: CRISIL | C92: 1442.3 | D92: 1453.18 | E92: 1413.52 | F92: 1384.73 | G92: 1345.07 | H92: 1481.97 | I92: 1521.63 | J92: 1550.42 | K92: 1492.85 | L92: 1424.4 | M92: 0.089
A93: 83 | B93: CADILAHC | C93: 232.4 | D93: 234.02 | E93: 229.88 | F93: 227.37 | G93: 223.23 | H93: 236.53 | I93: 240.67 | J93: 243.18 | K93: 238.15 | L93: 231.5 | M93: 7.71808
A94: 84 | B94: CANFINHOME | C94: 401.95 | D94: 405.48 | E94: 397.22 | F94: 392.48 | G94: 384.22 | H94: 410.22 | I94: 418.48 | J94: 423.22 | K94: 413.75 | L94: 400.75 | M94: 2.92005
A95: 85 | B95: CANBK | C95: 201.35 | D95: 203.67 | E95: 198.08 | F95: 194.82 | G95: 189.23 | H95: 206.93 | I95: 212.52 | J95: 215.78 | K95: 209.25 | L95: 200.4 | M95: 76.91214
A96: 86 | B96: CAPLIPOINT | C96: 375.1 | D96: 379.30 | E96: 363.80 | F96: 352.50 | G96: 337.00 | H96: 390.60 | I96: 406.10 | J96: 417.40 | K96: 394.8 | L96: 368 | M96: 1.69241
A97: 87 | B97: CGCL | C97: 217.05 | D97: 216.72 | E97: 211.43 | F97: 205.82 | G97: 200.53 | H97: 222.33 | I97: 227.62 | J97: 233.23 | K97: 222 | L97: 211.1 | M97: 3.3075
A98: 88 | B98: CARBORUNIV | C98: 307.8 | D98: 307.73 | E98: 303.07 | F98: 298.33 | G98: 293.67 | H98: 312.47 | I98: 317.13 | J98: 321.87 | K98: 312.4 | L98: 303 | M98: 0.27859
A99: 89 | B99: CASTROLIND | C99: 146.15 | D99: 148.10 | E99: 143.80 | F99: 141.45 | G99: 137.15 | H99: 150.45 | I99: 154.75 | J99: 157.10 | K99: 152.4 | L99: 145.75 | M99: 13.44378
A100: 90 | B100: CEATLTD | C100: 979.05 | D100: 982.72 | E100: 971.43 | F100: 963.82 | G100: 952.53 | H100: 990.33 | I100: 1001.62 | J100: 1009.23 | K100: 994 | L100: 975.1 | M100: 0.74052
A101: 91 | B101: CENTRALBK | C101: 20.35 | D101: 20.42 | E101: 20.13 | F101: 19.92 | G101: 19.63 | H101: 20.63 | I101: 20.92 | J101: 21.13 | K101: 20.7 | L101: 20.2 | M101: 4.38331
A102: 92 | B102: CDSL | C102: 227.75 | D102: 229.65 | E102: 224.30 | F102: 220.85 | G102: 215.50 | H102: 233.10 | I102: 238.45 | J102: 241.90 | K102: 235 | L102: 226.2 | M102: 4.24373
A103: 93 | B103: CENTURYPLY | C103: 164.7 | D103: 165.82 | E103: 156.88 | F103: 149.07 | G103: 140.13 | H103: 173.63 | I103: 182.57 | J103: 190.38 | K103: 174.75 | L103: 158 | M103: 5.09777
A104: 94 | B104: CERA | C104: 2578.5 | D104: 2590.33 | E104: 2541.67 | F104: 2504.83 | G104: 2456.17 | H104: 2627.17 | I104: 2675.83 | J104: 2712.67 | K104: 2639 | L104: 2553.5 | M104: 0.01992
A105: 95 | B105: CHALET | C105: 325.85 | D105: 326.65 | E105: 324.20 | F105: 322.55 | G105: 320.10 | H105: 328.30 | I105: 330.75 | J105: 332.40 | K105: 329.1 | L105: 325 | M105: 0.02783
A106: 96 | B106: CHAMBLFERT | C106: 168.15 | D106: 172.45 | E106: 159.90 | F106: 151.65 | G106: 139.10 | H106: 180.70 | I106: 193.25 | J106: 201.50 | K106: 185 | L106: 164.2 | M106: 28.15416
A107: 97 | B107: CHENNPETRO | C107: 152.35 | D107: 153.48 | E107: 149.97 | F107: 147.58 | G107: 144.07 | H107: 155.87 | I107: 159.38 | J107: 161.77 | K107: 157 | L107: 151.1 | M107: 1.15277
A108: 98 | B108: CHOLAHLDNG | C108: 479.95 | D108: 476.63 | E108: 468.42 | F108: 456.88 | G108: 448.67 | H108: 488.17 | I108: 496.38 | J108: 507.92 | K108: 484.85 | L108: 465.1 | M108: 0.25903
A109: 99 | B109: CHOLAFIN | C109: 296.65 | D109: 297.45 | E109: 293.90 | F109: 291.15 | G109: 287.60 | H109: 300.20 | I109: 303.75 | J109: 306.50 | K109: 301 | L109: 294.7 | M109: 9.03834
A110: 100 | B110: CIPLA | C110: 462.5 | D110: 464.62 | E110: 459.13 | F110: 455.77 | G110: 450.28 | H110: 467.98 | I110: 473.47 | J110: 476.83 | K110: 470.1 | L110: 461.25 | M110: 43.00075
A111: 101 | B111: CUB | C111: 213.35 | D111: 212.63 | E111: 210.77 | F111: 208.18 | G111: 206.32 | H111: 215.22 | I111: 217.08 | J111: 219.67 | K111: 214.5 | L111: 210.05 | M111: 4.37998
A112: 102 | B112: COALINDIA | C112: 209.25 | D112: 211.12 | E112: 206.23 | F112: 203.22 | G112: 198.33 | H112: 214.13 | I112: 219.02 | J112: 222.03 | K112: 216 | L112: 208.1 | M112: 63.24778
A113: 103 | B113: COCHINSHIP | C113: 395.55 | D113: 398.93 | E113: 387.87 | F113: 380.18 | G113: 369.12 | H113: 406.62 | I113: 417.68 | J113: 425.37 | K113: 410 | L113: 391.25 | M113: 1.41844
A114: 104 | B114: COFFEEDAY | C114: 40.8 | D114: 39.90 | E114: 39.00 | F114: 37.20 | G114: 36.30 | H114: 41.70 | I114: 42.60 | J114: 44.40 | K114: 40.8 | L114: 38.1 | M114: 18.5971
A115: 105 | B115: COLPAL | C115: 1579.65 | D115: 1594.75 | E115: 1546.90 | F115: 1514.15 | G115: 1466.30 | H115: 1627.50 | I115: 1675.35 | J115: 1708.10 | K115: 1642.6 | L115: 1562 | M115: 28.2981
A116: 106 | B116: CONCOR | C116: 570.9 | D116: 574.37 | E116: 564.58 | F116: 558.27 | G116: 548.48 | H116: 580.68 | I116: 590.47 | J116: 596.78 | K116: 584.15 | L116: 568.05 | M116: 12.1521
A117: 107 | B117: COROMANDEL | C117: 469.7 | D117: 470.15 | E117: 466.30 | F117: 462.90 | G117: 459.05 | H117: 473.55 | I117: 477.40 | J117: 480.80 | K117: 474 | L117: 466.75 | M117: 0.72309
A118: 108 | B118: CORPBANK | C118: 17.1 | D118: 17.33 | E118: 16.77 | F118: 16.43 | G118: 15.87 | H118: 17.67 | I118: 18.23 | J118: 18.57 | K118: 17.9 | L118: 17 | M118: 3.26216
A119: 109 | B119: COX&KINGS | C119: 1.55 | D119: 1.52 | E119: 1.48 | F119: 1.42 | G119: 1.38 | H119: 1.58 | I119: 1.62 | J119: 1.68 | K119: 1.55 | L119: 1.45 | M119: 58.47391
A120: 110 | B120: CREDITACC | C120: 682.05 | D120: 687.42 | E120: 665.83 | F120: 649.62 | G120: 628.03 | H120: 703.63 | I120: 725.22 | J120: 741.43 | K120: 709 | L120: 671.2 | M120: 0.48532
A121: 111 | B121: CROMPTON | C121: 257.55 | D121: 257.67 | E121: 253.98 | F121: 250.42 | G121: 246.73 | H121: 261.23 | I121: 264.92 | J121: 268.48 | K121: 261.35 | L121: 254.1 | M121: 3.9329
A122: 112 | B122: CUMMINSIND | C122: 556.9 | D122: 555.88 | E122: 549.02 | F122: 541.13 | G122: 534.27 | H122: 563.77 | I122: 570.63 | J122: 578.52 | K122: 562.75 | L122: 548 | M122: 5.07267
A123: 113 | B123: CYIENT | C123: 391.55 | D123: 391.00 | E123: 389.00 | F123: 386.45 | G123: 384.45 | H123: 393.55 | I123: 395.55 | J123: 398.10 | K123: 393 | L123: 388.45 | M123: 0.80626
A124: 114 | B124: DBCORP | C124: 146.55 | D124: 148.33 | E124: 143.67 | F124: 140.78 | G124: 136.12 | H124: 151.22 | I124: 155.88 | J124: 158.77 | K124: 153 | L124: 145.45 | M124: 0.11878
A125: 115 | B125: DCBBANK | C125: 183.85 | D125: 183.80 | E125: 182.90 | F125: 181.95 | G125: 181.05 | H125: 184.75 | I125: 185.65 | J125: 186.60 | K125: 184.7 | L125: 182.85 | M125: 4.08078
A126: 116 | B126: DCMSHRIRAM | C126: 337.45 | D126: 343.40 | E126: 329.05 | F126: 320.65 | G126: 306.30 | H126: 351.80 | I126: 366.15 | J126: 374.55 | K126: 357.75 | L126: 335 | M126: 1.59253
A127: 117 | B127: DLF | C127: 203.1 | D127: 202.95 | E127: 196.15 | F127: 189.20 | G127: 182.40 | H127: 209.90 | I127: 216.70 | J127: 223.65 | K127: 209.75 | L127: 196 | M127: 456.66495
A128: 118 | B128: DABUR | C128: 473.65 | D128: 476.52 | E128: 468.73 | F128: 463.82 | G128: 456.03 | H128: 481.43 | I128: 489.22 | J128: 494.13 | K128: 484.3 | L128: 471.6 | M128: 15.61299
A129: 119 | B129: DALBHARAT | C129: 820.05 | D129: 824.42 | E129: 811.83 | F129: 803.62 | G129: 791.03 | H129: 832.63 | I129: 845.22 | J129: 853.43 | K129: 837 | L129: 816.2 | M129: 1.17768
A130: 120 | B130: DEEPAKNTR | C130: 352.45 | D130: 355.78 | E130: 346.67 | F130: 340.88 | G130: 331.77 | H130: 361.57 | I130: 370.68 | J130: 376.47 | K130: 364.9 | L130: 350 | M130: 4.04703
A131: 121 | B131: DELTACORP | C131: 195.25 | D131: 197.12 | E131: 192.23 | F131: 189.22 | G131: 184.33 | H131: 200.13 | I131: 205.02 | J131: 208.03 | K131: 202 | L131: 194.1 | M131: 6.34732
A132: 122 | B132: DEN | C132: 44.4 | D132: 43.33 | E132: 42.17 | F132: 39.93 | G132: 38.77 | H132: 45.57 | I132: 46.73 | J132: 48.97 | K132: 44.5 | L132: 41.1 | M132: 0.7137
A133: 123 | B133: DHFL | C133: 23.3 | D133: 22.75 | E133: 22.20 | F133: 21.10 | G133: 20.55 | H133: 23.85 | I133: 24.40 | J133: 25.50 | K133: 23.3 | L133: 21.65 | M133: 28.33541
A134: 124 | B134: DBL | C134: 407.25 | D134: 411.32 | E134: 399.93 | F134: 392.62 | G134: 381.23 | H134: 418.63 | I134: 430.02 | J134: 437.33 | K134: 422.7 | L134: 404 | M134: 2.29343
A135: 125 | B135: DISHTV | C135: 13.7 | D135: 14.00 | E135: 13.25 | F135: 12.80 | G135: 12.05 | H135: 14.45 | I135: 15.20 | J135: 15.65 | K135: 14.75 | L135: 13.55 | M135: 383.57137
A136: 126 | B136: DCAL | C136: 122.9 | D136: 124.10 | E136: 120.90 | F136: 118.90 | G136: 115.70 | H136: 126.10 | I136: 129.30 | J136: 131.30 | K136: 127.3 | L136: 122.1 | M136: 2.68253
A137: 127 | B137: DIVISLAB | C137: 1699.95 | D137: 1707.58 | E137: 1687.37 | F137: 1674.78 | G137: 1654.57 | H137: 1720.17 | I137: 1740.38 | J137: 1752.97 | K137: 1727.8 | L137: 1695 | M137: 4.69867
A138: 128 | B138: DIXON | C138: 2729.1 | D138: 2739.37 | E138: 2690.73 | F138: 2652.37 | G138: 2603.73 | H138: 2777.73 | I138: 2826.37 | J138: 2864.73 | K138: 2788 | L138: 2701 | M138: 0.09336
A139: 129 | B139: LALPATHLAB | C139: 1452.9 | D139: 1471.10 | E139: 1422.20 | F139: 1391.50 | G139: 1342.60 | H139: 1501.80 | I139: 1550.70 | J139: 1581.40 | K139: 1520 | L139: 1440.4 | M139: 3.7763
A140: 130 | B140: DRREDDY | C140: 2822.1 | D140: 2831.47 | E140: 2802.93 | F140: 2783.77 | G140: 2755.23 | H140: 2850.63 | I140: 2879.17 | J140: 2898.33 | K140: 2860 | L140: 2812.3 | M140: 3.18986
A141: 131 | B141: EIDPARRY | C141: 165.1 | D141: 166.45 | E141: 163.00 | F141: 160.90 | G141: 157.45 | H141: 168.55 | I141: 172.00 | J141: 174.10 | K141: 169.9 | L141: 164.35 | M141: 1.72677
A142: 132 | B142: EIHOTEL | C142: 157.05 | D142: 157.38 | E142: 155.77 | F142: 154.48 | G142: 152.87 | H142: 158.67 | I142: 160.28 | J142: 161.57 | K142: 159 | L142: 156.1 | M142: 0.52214
A143: 133 | B143: EDELWEISS | C143: 110.85 | D143: 110.85 | E143: 110.85 | F143: 110.85 | G143: 110.85 | H143: 110.85 | I143: 110.85 | J143: 110.85 | K143: 110.85 | L143: 110.85 | M143: 1.96976
A144: 134 | B144: EICHERMOT | C144: 21689.65 | D144: 21648.45 | E144: 21241.20 | F144: 20792.75 | G144: 20385.50 | H144: 22096.90 | I144: 22504.15 | J144: 22952.60 | K144: 22055.7 | L144: 21200 | M144: 1.87411
A145: 135 | B145: ELGIEQUIP | C145: 280.85 | D145: 280.28 | E145: 276.57 | F145: 272.28 | G145: 268.57 | H145: 284.57 | I145: 288.28 | J145: 292.57 | K145: 284 | L145: 276 | M145: 0.11309
A146: 136 | B146: EMAMILTD | C146: 324.5 | D146: 324.52 | E146: 321.23 | F146: 317.97 | G146: 314.68 | H146: 327.78 | I146: 331.07 | J146: 334.33 | K146: 327.8 | L146: 321.25 | M146: 1.80342
A147: 137 | B147: ENDURANCE | C147: 1095.9 | D147: 1103.70 | E147: 1082.20 | F147: 1068.50 | G147: 1047.00 | H147: 1117.40 | I147: 1138.90 | J147: 1152.60 | K147: 1125.2 | L147: 1090 | M147: 0.13055
A148: 138 | B148: ENGINERSIN | C148: 105.55 | D148: 107.97 | E148: 102.43 | F148: 99.32 | G148: 93.78 | H148: 111.08 | I148: 116.62 | J148: 119.73 | K148: 113.5 | L148: 104.85 | M148: 16.24492
A149: 139 | B149: EQUITAS | C149: 97.35 | D149: 97.68 | E149: 95.67 | F149: 93.98 | G149: 91.97 | H149: 99.37 | I149: 101.38 | J149: 103.07 | K149: 99.7 | L149: 96 | M149: 15.34083
A150: 140 | B150: ERIS | C150: 416.5 | D150: 419.50 | E150: 410.25 | F150: 404.00 | G150: 394.75 | H150: 425.75 | I150: 435.00 | J150: 441.25 | K150: 428.75 | L150: 413.25 | M150: 0.69674
A151: 141 | B151: ESCORTS | C151: 653.75 | D151: 653.92 | E151: 641.88 | F151: 630.02 | G151: 617.98 | H151: 665.78 | I151: 677.82 | J151: 689.68 | K151: 665.95 | L151: 642.05 | M151: 22.72682
A152: 142 | B152: ESSELPACK | C152: 117.9 | D152: 117.78 | E152: 116.12 | F152: 114.33 | G152: 112.67 | H152: 119.57 | I152: 121.23 | J152: 123.02 | K152: 119.45 | L152: 116 | M152: 0.64004
A153: 143 | B153: EXIDEIND | C153: 186.55 | D153: 187.93 | E153: 184.62 | F153: 182.68 | G153: 179.37 | H153: 189.87 | I153: 193.18 | J153: 195.12 | K153: 191.25 | L153: 186 | M153: 18.56594
A154: 144 | B154: FDC | C154: 177.95 | D154: 180.73 | E154: 174.47 | F154: 170.98 | G154: 164.72 | H154: 184.22 | I154: 190.48 | J154: 193.97 | K154: 187 | L154: 177.25 | M154: 0.62464
A155: 145 | B155: FEDERALBNK | C155: 82.15 | D155: 82.67 | E155: 81.38 | F155: 80.62 | G155: 79.33 | H155: 83.43 | I155: 84.72 | J155: 85.48 | K155: 83.95 | L155: 81.9 | M155: 95.58248
A156: 146 | B156: FMGOETZE | C156: 594.1 | D156: 607.47 | E156: 576.13 | F156: 558.17 | G156: 526.83 | H156: 625.43 | I156: 656.77 | J156: 674.73 | K156: 638.8 | L156: 589.5 | M156: 0.61562
A157: 147 | B157: FINEORG | C157: 1893.85 | D157: 1905.85 | E157: 1873.00 | F157: 1852.15 | G157: 1819.30 | H157: 1926.70 | I157: 1959.55 | J157: 1980.40 | K157: 1938.7 | L157: 1885 | M157: 0.07568
A158: 148 | B158: FINCABLES | C158: 371.05 | D158: 372.73 | E158: 368.32 | F158: 365.58 | G158: 361.17 | H158: 375.47 | I158: 379.88 | J158: 382.62 | K158: 377.15 | L158: 370 | M158: 0.43451
A159: 149 | B159: FINPIPE | C159: 592.15 | D159: 599.65 | E159: 582.55 | F159: 572.95 | G159: 555.85 | H159: 609.25 | I159: 626.35 | J159: 635.95 | K159: 616.75 | L159: 590.05 | M159: 0.2814
A160: 150 | B160: FSL | C160: 45.1 | D160: 45.47 | E160: 44.63 | F160: 44.17 | G160: 43.33 | H160: 45.93 | I160: 46.77 | J160: 47.23 | K160: 46.3 | L160: 45 | M160: 15.05963
A161: 151 | B161: FORTIS | C161: 152.05 | D161: 151.78 | E161: 150.07 | F161: 148.08 | G161: 146.37 | H161: 153.77 | I161: 155.48 | J161: 157.47 | K161: 153.5 | L161: 149.8 | M161: 34.04637
A162: 152 | B162: FCONSUMER | C162: 25.2 | D162: 25.40 | E162: 24.85 | F162: 24.50 | G162: 23.95 | H162: 25.75 | I162: 26.30 | J162: 26.65 | K162: 25.95 | L162: 25.05 | M162: 7.71339
A163: 153 | B163: FLFL | C163: 396 | D163: 399.63 | E163: 384.32 | F163: 372.63 | G163: 357.32 | H163: 411.32 | I163: 426.63 | J163: 438.32 | K163: 414.95 | L163: 387.95 | M163: 0.62886
A164: 154 | B164: FRETAIL | C164: 359.5 | D164: 358.38 | E164: 352.77 | F164: 346.03 | G164: 340.42 | H164: 365.12 | I164: 370.73 | J164: 377.47 | K164: 364 | L164: 351.65 | M164: 2.43337
A165: 155 | B165: GAIL | C165: 127.05 | D165: 128.30 | E165: 124.65 | F165: 122.25 | G165: 118.60 | H165: 130.70 | I165: 134.35 | J165: 136.75 | K165: 131.95 | L165: 125.9 | M165: 213.00806
A166: 156 | B166: GEPIL | C166: 688.05 | D166: 689.72 | E166: 679.43 | F166: 670.82 | G166: 660.53 | H166: 698.33 | I166: 708.62 | J166: 717.23 | K166: 700 | L166: 681.1 | M166: 0.13131
A167: 157 | B167: GET&D | C167: 167.1 | D167: 168.25 | E167: 164.55 | F167: 162.00 | G167: 158.30 | H167: 170.80 | I167: 174.50 | J167: 177.05 | K167: 171.95 | L167: 165.7 | M167: 0.21447
A168: 158 | B168: GHCL | C168: 207.6 | D168: 209.02 | E168: 204.83 | F168: 202.07 | G168: 197.88 | H168: 211.78 | I168: 215.97 | J168: 218.73 | K168: 213.2 | L168: 206.25 | M168: 1.15832
A169: 159 | B169: GMRINFRA | C169: 21.65 | D169: 21.90 | E169: 21.25 | F169: 20.85 | G169: 20.20 | H169: 22.30 | I169: 22.95 | J169: 23.35 | K169: 22.55 | L169: 21.5 | M169: 169.25349
A170: 160 | B170: GALAXYSURF | C170: 1567.75 | D170: 1565.38 | E170: 1482.32 | F170: 1396.88 | G170: 1313.82 | H170: 1650.82 | I170: 1733.88 | J170: 1819.32 | K170: 1648.45 | L170: 1479.95 | M170: 0.95378
A171: 161 | B171: GARFIBRES | C171: 1200.75 | D171: 1205.23 | E171: 1195.47 | F171: 1190.18 | G171: 1180.42 | H171: 1210.52 | I171: 1220.28 | J171: 1225.57 | K171: 1215 | L171: 1199.95 | M171: 0.04887
A172: 162 | B172: GAYAPROJ | C172: 108.5 | D172: 109.78 | E172: 105.67 | F172: 102.83 | G172: 98.72 | H172: 112.62 | I172: 116.73 | J172: 119.57 | K172: 113.9 | L172: 106.95 | M172: 0.23199
A173: 163 | B173: GICRE | C173: 273.65 | D173: 277.45 | E173: 267.40 | F173: 261.15 | G173: 251.10 | H173: 283.70 | I173: 293.75 | J173: 300.00 | K173: 287.5 | L173: 271.2 | M173: 2.41131
A174: 164 | B174: GILLETTE | C174: 7287.95 | D174: 7380.80 | E174: 7168.15 | F174: 7048.35 | G174: 6835.70 | H174: 7500.60 | I174: 7713.25 | J174: 7833.05 | K174: 7593.45 | L174: 7261 | M174: 0.06517
A175: 165 | B175: GLAXO | C175: 1612.1 | D175: 1616.05 | E175: 1588.10 | F175: 1564.10 | G175: 1536.15 | H175: 1640.05 | I175: 1668.00 | J175: 1692.00 | K175: 1644 | L175: 1592.05 | M175: 0.55396
A176: 166 | B176: GLENMARK | C176: 286.45 | D176: 289.18 | E176: 282.02 | F176: 277.58 | G176: 270.42 | H176: 293.62 | I176: 300.78 | J176: 305.22 | K176: 296.35 | L176: 284.75 | M176: 22.44016
A177: 167 | B177: GODFRYPHLP | C177: 1146.1 | D177: 1157.87 | E177: 1122.73 | F177: 1099.37 | G177: 1064.23 | H177: 1181.23 | I177: 1216.37 | J177: 1239.73 | K177: 1193 | L177: 1134.5 | M177: 1.89655
A178: 168 | B178: GODREJAGRO | C178: 493.85 | D178: 496.08 | E178: 485.72 | F178: 477.58 | G178: 467.22 | H178: 504.22 | I178: 514.58 | J178: 522.72 | K178: 506.45 | L178: 487.95 | M178: 0.88573
A179: 169 | B179: GODREJCP | C179: 734.5 | D179: 738.80 | E179: 725.75 | F179: 717.00 | G179: 703.95 | H179: 747.55 | I179: 760.60 | J179: 769.35 | K179: 751.85 | L179: 730.05 | M179: 4.36629
A180: 170 | B180: GODREJIND | C180: 425.25 | D180: 425.88 | E180: 420.77 | F180: 416.28 | G180: 411.17 | H180: 430.37 | I180: 435.48 | J180: 439.97 | K180: 431 | L180: 421.4 | M180: 0.83691
A181: 171 | B181: GODREJPROP | C181: 961.25 | D181: 972.42 | E181: 944.83 | F181: 928.42 | G181: 900.83 | H181: 988.83 | I181: 1016.42 | J181: 1032.83 | K181: 1000 | L181: 956 | M181: 3.35133
A182: 172 | B182: GRANULES | C182: 120.1 | D182: 122.43 | E182: 116.67 | F182: 113.23 | G182: 107.47 | H182: 125.87 | I182: 131.63 | J182: 135.07 | K182: 128.2 | L182: 119 | M182: 27.50197
A183: 173 | B183: GRAPHITE | C183: 302.45 | D183: 305.72 | E183: 296.98 | F183: 291.52 | G183: 282.78 | H183: 311.18 | I183: 319.92 | J183: 325.38 | K183: 314.45 | L183: 300.25 | M183: 23.36788
A184: 174 | B184: GRASIM | C184: 774 | D184: 776.63 | E184: 767.37 | F184: 760.73 | G184: 751.47 | H184: 783.27 | I184: 792.53 | J184: 799.17 | K184: 785.9 | L184: 770 | M184: 13.46108
A185: 175 | B185: GESHIP | C185: 299.25 | D185: 299.62 | E185: 291.53 | F185: 283.82 | G185: 275.73 | H185: 307.33 | I185: 315.42 | J185: 323.13 | K185: 307.7 | L185: 291.9 | M185: 2.00308
A186: 176 | B186: GREAVESCOT | C186: 133.75 | D186: 132.75 | E186: 131.10 | F186: 128.45 | G186: 126.80 | H186: 135.40 | I186: 137.05 | J186: 139.70 | K186: 134.4 | L186: 130.1 | M186: 1.18974
A187: 177 | B187: GRINDWELL | C187: 590.45 | D187: 593.25 | E187: 583.20 | F187: 575.95 | G187: 565.90 | H187: 600.50 | I187: 610.55 | J187: 617.80 | K187: 603.3 | L187: 586 | M187: 0.0923
A188: 178 | B188: GUJALKALI | C188: 415.3 | D188: 413.47 | E188: 403.93 | F188: 392.57 | G188: 383.03 | H188: 424.83 | I188: 434.37 | J188: 445.73 | K188: 423 | L188: 402.1 | M188: 1.35606
A189: 179 | B189: GUJGASLTD | C189: 196.35 | D189: 196.05 | E189: 190.30 | F189: 184.25 | G189: 178.50 | H189: 202.10 | I189: 207.85 | J189: 213.90 | K189: 201.8 | L189: 190 | M189: 14.72105
A190: 180 | B190: GMDCLTD | C190: 62.65 | D190: 62.67 | E190: 62.08 | F190: 61.52 | G190: 60.93 | H190: 63.23 | I190: 63.82 | J190: 64.38 | K190: 63.25 | L190: 62.1 | M190: 0.77035
A191: 181 | B191: GNFC | C191: 202.85 | D191: 205.05 | E191: 199.10 | F191: 195.35 | G191: 189.40 | H191: 208.80 | I191: 214.75 | J191: 218.50 | K191: 211 | L191: 201.3 | M191: 4.19821
A192: 182 | B192: GPPL | C192: 84.1 | D192: 84.67 | E192: 83.23 | F192: 82.37 | G192: 80.93 | H192: 85.53 | I192: 86.97 | J192: 87.83 | K192: 86.1 | L192: 83.8 | M192: 0.99043
A193: 183 | B193: GSFC | C193: 77.75 | D193: 78.20 | E193: 76.70 | F193: 75.65 | G193: 74.15 | H193: 79.25 | I193: 80.75 | J193: 81.80 | K193: 79.7 | L193: 77.15 | M193: 2.45749
A194: 184 | B194: GSPL | C194: 213.7 | D194: 213.73 | E194: 209.62 | F194: 205.53 | G194: 201.42 | H194: 217.82 | I194: 221.93 | J194: 226.02 | K194: 217.85 | L194: 209.65 | M194: 2.49319
A195: 185 | B195: GULFOILLUB | C195: 858.3 | D195: 851.08 | E195: 842.22 | F195: 826.13 | G195: 817.27 | H195: 867.17 | I195: 876.03 | J195: 892.12 | K195: 859.95 | L195: 835 | M195: 0.03895
A196: 186 | B196: HEG | C196: 1021 | D196: 1027.97 | E196: 1008.03 | F196: 995.07 | G196: 975.13 | H196: 1040.93 | I196: 1060.87 | J196: 1073.83 | K196: 1047.9 | L196: 1015 | M196: 5.46373
A197: 187 | B197: HCLTECH | C197: 1150.1 | D197: 1153.53 | E197: 1142.67 | F197: 1135.23 | G197: 1124.37 | H197: 1160.97 | I197: 1171.83 | J197: 1179.27 | K197: 1164.4 | L197: 1146.1 | M197: 20.1329
A198: 188 | B198: HDFCAMC | C198: 3191.55 | D198: 3152.82 | E198: 3056.73 | F198: 2921.92 | G198: 2825.83 | H198: 3287.63 | I198: 3383.72 | J198: 3518.53 | K198: 3248.9 | L198: 3018 | M198: 22.62911
A199: 189 | B199: HDFCBANK | C199: 1255.6 | D199: 1258.02 | E199: 1249.03 | F199: 1242.47 | G199: 1233.48 | H199: 1264.58 | I199: 1273.57 | J199: 1280.13 | K199: 1267 | L199: 1251.45 | M199: 66.25748
A200: 190 | B200: HDFCLIFE | C200: 567.9 | D200: 573.20 | E200: 561.20 | F200: 554.50 | G200: 542.50 | H200: 579.90 | I200: 591.90 | J200: 598.60 | K200: 585.2 | L200: 566.5 | M200: 36.30548
A201: 191 | B201: HATHWAY | C201: 20.9 | D201: 21.00 | E201: 20.60 | F201: 20.30 | G201: 19.90 | H201: 21.30 | I201: 21.70 | J201: 22.00 | K201: 21.4 | L201: 20.7 | M201: 1.18744
A202: 192 | B202: HATSUN | C202: 590.75 | D202: 594.97 | E202: 585.78 | F202: 580.82 | G202: 571.63 | H202: 599.93 | I202: 609.12 | J202: 614.08 | K202: 604.15 | L202: 590 | M202: 0.02899
A203: 193 | B203: HAVELLS | C203: 707.5 | D203: 709.18 | E203: 701.12 | F203: 694.73 | G203: 686.67 | H203: 715.57 | I203: 723.63 | J203: 730.02 | K203: 717.25 | L203: 702.8 | M203: 11.29079
A204: 194 | B204: HEIDELBERG | C204: 191.2 | D204: 191.13 | E204: 186.57 | F204: 181.93 | G204: 177.37 | H204: 195.77 | I204: 200.33 | J204: 204.97 | K204: 195.7 | L204: 186.5 | M204: 5.45829
A205: 195 | B205: HERITGFOOD | C205: 337.9 | D205: 339.93 | E205: 325.57 | F205: 313.23 | G205: 298.87 | H205: 352.27 | I205: 366.63 | J205: 378.97 | K205: 354.3 | L205: 327.6 | M205: 0.22607
A206: 196 | B206: HEROMOTOCO | C206: 2646.95 | D206: 2659.87 | E206: 2627.73 | F206: 2608.52 | G206: 2576.38 | H206: 2679.08 | I206: 2711.22 | J206: 2730.43 | K206: 2692 | L206: 2640.65 | M206: 4.44717
... 320 more rows

Sheet Bulk Deals
E6: Back To Main Page
A7: Subject : | B7: BULK DEAL | D7: =Main!B10 -> 2019-11-11
A9: Date | B9: Scrip code | C9: Scrip Name | D9: Client Name | E9: Buy / Sell | F9: Quantity Traded | G9: Trade Price / Wt.Avg.trade price | H9: Exchange
A10: 2019-11-08 | B10: 538812 | C10: AANCHALISP | D10: NANDKISORE KAKANI | E10: BUY | F10: 200,000 | G10: 17.44 | H10: BSE
A11: 2019-11-08 | B11: 538812 | C11: AANCHALISP | D11: TWINKLE STOCK CONSULTANTS P LTD | E11: BUY | F11: 200,000 | G11: 16.14 | H11: BSE
A12: 2019-11-08 | B12: 538812 | C12: AANCHALISP | D12: TWINKLE STOCK CONSULTANTS P LTD | E12: SELL | F12: 200,000 | G12: 17.44 | H12: BSE
A13: 2019-11-08 | B13: 530187 | C13: ATHARVENT | D13: ABHISHEK MUKUND BAJAJ | E13: BUY | F13: 87,198 | G13: 1.16 | H13: BSE
A14: 2019-11-08 | B14: 539251 | C14: BALKRISHNA | D14: PAWAN KUMAR PODDAR | E14: BUY | F14: 164,279 | G14: 19.05 | H14: BSE
A15: 2019-11-08 | B15: 539251 | C15: BALKRISHNA | D15: AVNISH PODDAR | E15: BUY | F15: 227,566 | G15: 19.05 | H15: BSE
A16: 2019-11-08 | B16: 539251 | C16: BALKRISHNA | D16: KHUSHBOO RAJIV PODDAR | E16: SELL | F16: 421,823 | G16: 19.05 | H16: BSE
A17: 2019-11-08 | B17: 533144 | C17: COX&KINGS | D17: PRITESH PRAVIN VORA | E17: BUY | F17: 1,000,000 | G17: 1.31 | H17: BSE
A18: 2019-11-08 | B18: 533144 | C18: COX&KINGS | D18: PRITESH PRAVIN VORA | E18: SELL | F18: 1,000,000 | G18: 1.31 | H18: BSE
A19: 2019-11-08 | B19: 533144 | C19: COX&KINGS | D19: MULTIPLIER SHARE & STOCK ADVISORS PRIVATE LIMITED | E19: BUY | F19: 1,601,666 | G19: 1.32 | H19: BSE
A20: 2019-11-08 | B20: 533144 | C20: COX&KINGS | D20: MULTIPLIER SHARE & STOCK ADVISORS PRIVATE LIMITED | E20: SELL | F20: 701,666 | G20: 1.43 | H20: BSE
A21: 2019-11-08 | B21: 533144 | C21: COX&KINGS | D21: TANISH TRADEFIN LLP | E21: BUY | F21: 1,508,313 | G21: 1.31 | H21: BSE
A22: 2019-11-08 | B22: 533144 | C22: COX&KINGS | D22: TANISH TRADEFIN LLP | E22: SELL | F22: 1,005,000 | G22: 1.31 | H22: BSE
A23: 2019-11-08 | B23: 533144 | C23: COX&KINGS | D23: MANOJKUMAR MEHTA (HUF) | E23: BUY | F23: 2,270 | G23: 1.37 | H23: BSE
A24: 2019-11-08 | B24: 533144 | C24: COX&KINGS | D24: SWAPNIL MEHTA | E24: BUY | F24: 14,351 | G24: 1.37 | H24: BSE
A25: 2019-11-08 | B25: 533144 | C25: COX&KINGS | D25: MANOJKUMAR MEHTA (HUF) | E25: SELL | F25: 1,000,000 | G25: 1.31 | H25: BSE
A26: 2019-11-08 | B26: 533144 | C26: COX&KINGS | D26: SWAPNIL MEHTA | E26: SELL | F26: 1,750,000 | G26: 1.31 | H26: BSE
A27: 2019-11-08 | B27: 533144 | C27: COX&KINGS | D27: ALPHA LEON ENTERPRISES LLP | E27: BUY | F27: 1,345,023 | G27: 1.31 | H27: BSE
A28: 2019-11-08 | B28: 533144 | C28: COX&KINGS | D28: ALPHA LEON ENTERPRISES LLP | E28: SELL | F28: 1,316,694 | G28: 1.31 | H28: BSE
A29: 2019-11-08 | B29: 541299 | C29: DLCL | D29: RAJESH JOSEPH | E29: BUY | F29: 24,000 | G29: 15.25 | H29: BSE
A30: 2019-11-08 | B30: 542850 | C30: GOBLIN | D30: KASTURI VIPIN GALA | E30: BUY | F30: 66,000 | G30: 119.96 | H30: BSE
A31: 2019-11-08 | B31: 542850 | C31: GOBLIN | D31: KASTURI VIPIN GALA | E31: SELL | F31: 82,000 | G31: 116.13 | H31: BSE
A32: 2019-11-08 | B32: 540938 | C32: GUJHYSPIN | D32: HEENA ULLASH SHAH | E32: SELL | F32: 160,000 | G32: 2.76 | H32: BSE
A33: 2019-11-08 | B33: 541304 | C33: INDOUS | D33: JAGRUTIBEN C SHAH | E33: BUY | F33: 35,000 | G33: 76.46 | H33: BSE
A34: 2019-11-08 | B34: 538765 | C34: JSHL | D34: AVINASH TIWARI | E34: SELL | F34: 50,000 | G34: 10.5 | H34: BSE
A35: 2019-11-08 | B35: 538765 | C35: JSHL | D35: SANJIV KUMAR MISHRA | E35: SELL | F35: 50,000 | G35: 10.5 | H35: BSE
A36: 2019-11-08 | B36: 539910 | C36: KOCL | D36: MAHESHBHAI NAROTTAMBHAI PATEL | E36: SELL | F36: 151,168 | G36: 0.5 | H36: BSE
A37: 2019-11-08 | B37: 539814 | C37: RADHEY | D37: SHIV PARVATI LEASING PRIVATE LIMITED | E37: SELL | F37: 19,714 | G37: 19.8 | H37: BSE
A38: 2019-11-08 | B38: 539814 | C38: RADHEY | D38: DARSHIT KIRITKUMAR VASSA | E38: SELL | F38: 22,500 | G38: 19.5 | H38: BSE
A39: 2019-11-08 | B39: 502742 | C39: SINTEX | D39: VISTRA ITCL (INDIA) LIMITED | E39: SELL | F39: 15,000,000 | G39: 0.56 | H39: BSE
A40: 2019-11-08 | B40: 502742 | C40: SINTEX | D40: IDBI TRUSTEESHIP SERVICES LTD | E40: SELL | F40: 10,558,084 | G40: 0.57 | H40: BSE
A41: 2019-11-08 | B41: 502742 | C41: SINTEX | D41: ALPHA LEON ENTERPRISES LLP | E41: BUY | F41: 17,183,670 | G41: 0.56 | H41: BSE
A42: 2019-11-08 | B42: 502742 | C42: SINTEX | D42: ALPHA LEON ENTERPRISES LLP | E42: SELL | F42: 7,183,670 | G42: 0.57 | H42: BSE
A43: 2019-11-08 | B43: 540653 | C43: SINTEXPLAST | D43: IDBI TRUSTEESHIP SERVICES LTD | E43: SELL | F43: 5,131,473 | G43: 1.01 | H43: BSE
A44: 2019-11-08 | B44: 532070 | C44: SUPRBPA | D44: HEMANT BABULAL KHALAS | E44: BUY | F44: 30,300 | G44: 9.98 | H44: BSE
A45: 2019-11-08 | B45: 532070 | C45: SUPRBPA | D45: NAYAN MAHENDRABHAI RATHOD | E45: SELL | F45: 27,500 | G45: 9.98 | H45: BSE
A46: 2019-11-08 | B46: 533200 | C46: TALWALKARS | D46: DHANANJAY NARENDRA MUNGALE | E46: BUY | F46: 245,000 | G46: 5.48 | H46: BSE
A47: 2019-11-08 | B47: 540955 | C47: TDSL | D47: SUNCARE TRADERS LIMITED | E47: SELL | F47: 120,000 | G47: 22.37 | H47: BSE
A48: 2019-11-08 | B48: 540955 | C48: TDSL | D48: MIKER FINANCIAL CONSULTANTS PRIVATE LIMITED . | E48: BUY | F48: 120,000 | G48: 22.37 | H48: BSE
A49: 2019-11-08 | B49: 530045 | C49: TITANSEC | D49: CORONET TELECOM PRIVATE LIMITED | E49: SELL | F49: 154,100 | G49: 2.9 | H49: BSE
A50: 2019-11-08 | B50: 530045 | C50: TITANSEC | D50: RAJESH AGRAWAL HUF | E50: BUY | F50: 150,000 | G50: 2.9 | H50: BSE
A51: 2019-11-08 | B51: 542765 | C51: TRANSPACT | D51: ARYAMAN BROKING LIMITED | E51: SELL | F51: 10,000 | G51: 135 | H51: BSE
A52: 2019-11-08 | B52: 542765 | C52: TRANSPACT | D52: OVERSKUD MULTI ASSET MANAGEMENT PRIVATE LIMITED | E52: BUY | F52: 10,000 | G52: 135 | H52: BSE
A53: 2019-11-08 | B53: 534755 | C53: TRIOMERC | D53: NAVEEN KUMAR AGARWAL | E53: BUY | F53: 60,000 | G53: 22.27 | H53: BSE
A54: 2019-11-08 | B54: AGROPHOS | C54: Agro Phos India Limited | D54: ANUPAM NARAIN GUPTA | E54: BUY | F54: 125,000 | G54: 120.75 | H54: NSE
A55: 2019-11-08 | B55: COX&KINGS | C55: Cox & Kings Limited | D55: ALPHA LEON ENTERPRISES LLP | E55: BUY | F55: 234 | G55: 1.55 | H55: NSE
A56: 2019-11-08 | B56: COX&KINGS | C56: Cox & Kings Limited | D56: MULTIPLIER S AND S ADV PVT LTD | E56: BUY | F56: 700,001 | G56: 1.54 | H56: NSE
A57: 2019-11-08 | B57: IBULHSGFIN | C57: Indiabulls Hsg Fin Ltd | D57: TOWER RESEARCH CAPITAL MARKETS INDIA PRIVATE LIMITED | E57: BUY | F57: 5,580,961 | G57: 245.35 | H57: NSE
A58: 2019-11-08 | B58: IBULHSGFIN | C58: Indiabulls Hsg Fin Ltd | D58: SURJECTIVE RESEARCH CAPITAL LLP | E58: BUY | F58: 5,334,654 | G58: 244.96 | H58: NSE
A59: 2019-11-08 | B59: IBULHSGFIN | C59: Indiabulls Hsg Fin Ltd | D59: GRAVITON RESEARCH CAPITAL LLP | E59: BUY | F59: 2,199,125 | G59: 244.25 | H59: NSE
A60: 2019-11-08 | B60: LIBERTSHOE | C60: Liberty Shoes Ltd | D60: ANKITA VISHAL SHAH | E60: BUY | F60: 393,662 | G60: 137.05 | H60: NSE
A61: 2019-11-08 | B61: NCC | C61: NCC Limited | D61: TOWER RESEARCH CAPITAL MARKETS INDIA PRIVATE LIMITED | E61: BUY | F61: 5,214,472 | G61: 58.74 | H61: NSE
A62: 2019-11-08 | B62: SINTEX | C62: Sintex Industries Ltd. | D62: TANISH TRADEFIN LLP | E62: BUY | F62: 8,880,004 | G62: 0.58 | H62: NSE
A63: 2019-11-08 | B63: SINTEX | C63: Sintex Industries Ltd. | D63: MEHER ENTERPRISES | E63: BUY | F63: 4,800,000 | G63: 0.55 | H63: NSE
A64: 2019-11-08 | B64: SINTEX | C64: Sintex Industries Ltd. | D64: CHETAN RASIKLAL SHAH | E64: BUY | F64: 5882709 | G64: 0.55 | H64: NSE
A65: 2019-11-08 | B65: SINTEX | C65: Sintex Industries Ltd. | D65: ALPHA LEON ENTERPRISES LLP | E65: BUY | F65: 14386449 | G65: 0.56 | H65: NSE
A66: 2019-11-08 | B66: SINTEX | C66: Sintex Industries Ltd. | D66: MULTIPLIER S AND S ADV PVT LTD | E66: BUY | F66: 6600001 | G66: 0.58 | H66: NSE
A67: 2019-11-08 | B67: YESBANK | C67: Yes Bank Limited | D67: SURJECTIVE RESEARCH CAPITAL LLP | E67: BUY | F67: 32332126 | G67: 69.46 | H67: NSE
A68: 2019-11-08 | B68: YESBANK | C68: Yes Bank Limited | D68: TOWER RESEARCH CAPITAL MARKETS INDIA PRIVATE LIMITED | E68: BUY | F68: 33242345 | G68: 69.33 | H68: NSE
A69: 2019-11-08 | B69: AGROPHOS | C69: Agro Phos India Limited | D69: ANUPAM NARAIN GUPTA | E69: SELL | F69: 54198 | G69: 120.77 | H69: NSE
A70: 2019-11-08 | B70: AMJUMBO | C70: A and M Jumbo Bags Ltd | D70: JIGAR PRAMODBHAI SHAH | E70: SELL | F70: 48000 | G70: 13.4 | H70: NSE
A71: 2019-11-08 | B71: COX&KINGS | C71: Cox & Kings Limited | D71: ALPHA LEON ENTERPRISES LLP | E71: SELL | F71: 890035 | G71: 1.54 | H71: NSE
A72: 2019-11-08 | B72: COX&KINGS | C72: Cox & Kings Limited | D72: MULTIPLIER S AND S ADV PVT LTD | E72: SELL | F72: 1172814 | G72: 1.5 | H72: NSE
A73: 2019-11-08 | B73: IBULHSGFIN | C73: Indiabulls Hsg Fin Ltd | D73: GRAVITON RESEARCH CAPITAL LLP | E73: SELL | F73: 2199125 | G73: 244.35 | H73: NSE
A74: 2019-11-08 | B74: IBULHSGFIN | C74: Indiabulls Hsg Fin Ltd | D74: TOWER RESEARCH CAPITAL MARKETS INDIA PRIVATE LIMITED | E74: SELL | F74: 5430723 | G74: 245.93 | H74: NSE
A75: 2019-11-08 | B75: IBULHSGFIN | C75: Indiabulls Hsg Fin Ltd | D75: SURJECTIVE RESEARCH CAPITAL LLP | E75: SELL | F75: 5336649 | G75: 245.09 | H75: NSE
A76: 2019-11-08 | B76: LIBERTSHOE | C76: Liberty Shoes Ltd | D76: ANKITA VISHAL SHAH | E76: SELL | F76: 337662 | G76: 138.27 | H76: NSE
A77: 2019-11-08 | B77: NCC | C77: NCC Limited | D77: TOWER RESEARCH CAPITAL MARKETS INDIA PRIVATE LIMITED | E77: SELL | F77: 5345671 | G77: 59.02 | H77: NSE
A78: 2019-11-08 | B78: PENTAGOLD | C78: Penta Gold Limited | D78: NISHA BARUAH | E78: SELL | F78: 150000 | G78: 34 | H78: NSE
A79: 2019-11-08 | B79: SHIRPUR-G | C79: AgeeGoldRefn-Roll Sett | D79: IFCI LTD. | E79: SELL | F79: 296154 | G79: 6.1 | H79: NSE
A80: 2019-11-08 | B80: SINTEX | C80: Sintex Industries Ltd. | D80: VISTRA ITCL (INDIA) LIMITED | E80: SELL | F80: 9000000 | G80: 0.55 | H80: NSE
A81: 2019-11-08 | B81: SINTEX | C81: Sintex Industries Ltd. | D81: VANGUARD ENERGY FUND | E81: SELL | F81: 8487047 | G81: 0.55 | H81: NSE
A82: 2019-11-08 | B82: SINTEX | C82: Sintex Industries Ltd. | D82: TANISH TRADEFIN LLP | E82: SELL | F82: 6850004 | G82: 0.63 | H82: NSE
A83: 2019-11-08 | B83: SINTEX | C83: Sintex Industries Ltd. | D83: NORGES BANK A/C NORGES BANK ON ACCOUNT OF THE GOVERNMENT PENSION FUND GLOBAL | E83: SELL | F83: 4147781 | G83: 0.61 | H83: NSE
A84: 2019-11-08 | B84: SINTEX | C84: Sintex Industries Ltd. | D84: IDBI TRUSTEESHIP SERVICES LTD | E84: SELL | F84: 15200000 | G84: 0.57 | H84: NSE
A85: 2019-11-08 | B85: SINTEX | C85: Sintex Industries Ltd. | D85: CHETAN RASIKLAL SHAH | E85: SELL | F85: 2882709 | G85: 0.65 | H85: NSE
A86: 2019-11-08 | B86: SINTEX | C86: Sintex Industries Ltd. | D86: ALPHA LEON ENTERPRISES LLP | E86: SELL | F86: 24386440 | G86: 0.62 | H86: NSE
A87: 2019-11-08 | B87: SINTEX | C87: Sintex Industries Ltd. | D87: MULTIPLIER S AND S ADV PVT LTD | E87: SELL | F87: 5800000 | G87: 0.56 | H87: NSE
A88: 2019-11-08 | B88: VIPCLOTHNG | C88: Vip Clothing Ltd. | D88: SURYAVANSHI COMMOTRADE PVT LTD | E88: SELL | F88: 502473 | G88: 7.34 | H88: NSE
A89: 2019-11-08 | B89: YESBANK | C89: Yes Bank Limited | D89: SURJECTIVE RESEARCH CAPITAL LLP | E89: SELL | F89: 32333713 | G89: 69.5 | H89: NSE
A90: 2019-11-08 | B90: YESBANK | C90: Yes Bank Limited | D90: TOWER RESEARCH CAPITAL MARKETS INDIA PRIVATE LIMITED | E90: SELL | F90: 33880223 | G90: 69.47 | H90: NSE

Sheet Call Tracker (Equity & F&O)
M5: Back To Main Page
A6: Retail Research Technical Calls & Fundamental Performance Report for the month of November-2019
M7: =Main!B10 -> 2019-11-11
B8: Positional Call
A9: Sr.no | B9: Date | D9: Company | E9: Rec | F9: Rec Price | G9: Stop Loss*** | H9: Call Closed At | I9: Target | J9: Remark | K9: Profit / Loss per Share | L9: Gain / Loss % | M9: Status | N9: Closed Date | O9: NSE Closed Price
A10: 1 | B10: 2019-09-26 | D10: HDFC | E10: Buy | F10: 2070 | G10: 1940 | H10: 2165 | I10: 2250-2300 | J10: Profit of Rs.95/- | K10: =H10-F10 -> 95 | L10: =K10/F10 -> 4.59% | M10: Successful | N10: 2019-11-01 | R10: H
A11: 2 | B11: 2019-10-01 | D11: UPL | E11: Buy{} | F11: 595 | G11: 564 | H11: 599.5 | I11: 650-660 | J11: Profit of Rs.4.50/- | K11: 4.5 | L11: 0.76% | M11: Neutral | N11: 2019-11-07 | R11: R
A12: 3 | B12: 2019-10-07 | D12: PIDILITIND | E12: Buy{} | F12: 1367.5 | G12: 1297 | H12: 1413.5 | I12: 1500-1520 | J12: Part Profit of Rs.46/- | K12: =H12-F12 -> 46 | L12: =K12/F12 -> 3.36% | M12: Successful | N12: 2019-10-31 | O12: =VLOOKUP(D12,Sheet2!A51:M1690,6,0) -> 1354.15 | R12: R
A13: 4 | B13: 2019-10-22 | D13: HEIDELBERG | E13: Buy | F13: 188.5 | G13: 178 | H13: 199 | I13: 205-210 | J13: Profit of Rs.10.50/- | K13: 10.5 | L13: 5.57% | M13: Successful | N13: 2019-11-05 | R13: H
A14: 5 | B14: 2019-10-27 | D14: AMBUJACEM | E14: Buy{} | F14: 197 | G14: 185.4 | H14: 203.5 | I14: 216-220 | J14: Part Profit of Rs.6.5/- | K14: =H14-F14 -> 6.5 | L14: =K14/F14 -> 3.30% | M14: Successful | N14: 2019-10-30 | O14: =VLOOKUP(D14,Sheet2!A60:M1699,6,0) -> 202.25 | R14: R
A15: 6 | B15: 2019-11-04 | D15: UBL | E15: Buy{} | F15: 1240 | G15: 1178 | H15: 1292.5 | I15: 1340-1360 | J15: Profit of Rs.52.5/- | K15: =H15-F15 -> 52.5 | L15: =K15/F15 -> 4.23% | M15: Successful | N15: 2019-11-08 | R15: H
A16: 7 | B16: 2019-11-05 | D16: TATAMOTORS | E16: Sell | F16: 172-174 | G16: 183.3 | I16: 158-155 | J16: Open | O16: =VLOOKUP(D16,Sheet2!A62:M1701,6,0) -> 169.05 | R16: R
A17: 8 | B17: 2019-11-06 | D17: BANDHANBNK | E17: Buy | F17: 570-575 | G17: 538 | I17: 630-650 | J17: Open | O17: =VLOOKUP(D17,Sheet2!A63:M1702,6,0) -> 550.8 | R17: H
A18: 9 | B18: 2019-11-07 | D18: PRESTIGE | E18: Buy | F18: 310-314 | G18: 288 | I18: 340-360 | J18: Open | O18: =VLOOKUP(D18,Sheet2!A64:M1703,6,0) -> 310.3 | R18: H
A19: 10 | B19: 2019-11-07 | D19: JINDALSTEL | E19: Sell | F19: 138 | G19: 148.3 | H19: 143 | I19: 120-117 | J19: Loss of Rs.5/- | K19: =F19-H19 -> -5 | L19: =K19/F19 -> -3.62% | M19: Unsuccessful | N19: 2019-11-07 | R19: R
A20: 11 | B20: 2019-11-08 | D20: CIPLA | E20: Sell | F20: 464-466 | G20: 491.3 | I20: 425-418 | J20: Open | O20: =VLOOKUP(D20,Sheet2!A66:M1705,6,0) -> 462.5 | R20: R
A30: CLBS = Closing Basis ***
A31: Dividend adjusted <> | F31: Reinitiated $
A32: Part book {} | F32: Revised stoploss #
B34: Momentum Call
A35: Sr.no | B35: Date | D35: Company | E35: Rec | F35: Rec Price | G35: Stop Loss | H35: Call Closed At | I35: Target | J35: Remark | K35: Profit / Loss per Share/Lot | L35: Gain / Loss % | M35: Gain / Loss per Lot | N35: Lot | O35: Status | P35: Closed Date
A36: 1 | B36: 2019-10-29 | D36: INDUSINDBK | E36: Buy | F36: 1319 | G36: 1278 | H36: 1347.5 | I36: 1370-1390 | J36: Profit of Rs.28.5/- | K36: =H36-F36 -> 28.5 | L36: =K36/F36 -> 2.16% | O36: Successful | P36: 2019-11-01 | R36: H
A37: 2 | B37: 2019-10-30 | D37: POWERGRID | E37: Buy | F37: 199.5 | G37: 194.5 | H37: 194.5 | I37: 210 | J37: Loss of Rs.5/- | K37: -5 | L37: -2.51% | O37: Unsuccessful | P37: 2019-11-07 | R37: H
A38: 3 | B38: 2019-10-31 | D38: MFSL NOV FUT | E38: Buy | F38: 407 | G38: 396 | H38: 414 | I38: 425 | J38: Profit of Rs.7/- | K38: 7 | M38: =N38*K38 -> 8400 | N38: 1200 | O38: Successful | P38: 2019-11-04 | R38: N
A39: 4 | B39: 2019-10-31 | D39: HDFCBANK NOV FUT | E39: Buy | F39: 1239 | G39: 1215 | H39: 1251 | I39: 1280 | J39: Profit of Rs.12/- | K39: 12 | M39: =N39*K39 -> 6000 | N39: 500 | O39: Successful | P39: 2019-11-06 | R39: N
A40: 5 | B40: 2019-11-01 | D40: TORNTPOWER NOV FUT | E40: Sell | F40: 285 | G40: 289 | H40: 282 | I40: 276 | J40: Profit of Rs.3/- | K40: =F40-H40 -> 3 | M40: =N40*K40 -> 9000 | N40: 3000 | O40: Successful | P40: 2019-11-01 | R40: N
A41: 6 | B41: 2019-11-01 | D41: SBIN | E41: Sell | F41: 314 | G41: 322 | H41: 323 | I41: 300-395 | J41: Loss of Rs.9/- | K41: =F41-H41 -> -9 | L41: =K41/F41 -> -2.87% | O41: Unsuccessful | P41: 2019-11-07 | R41: R
A42: 7 | B42: 2019-11-04 | D42: AXISBANK NOV FUT | E42: Sell | F42: 749 | G42: 758.3 | H42: 742.5 | I42: 733 | J42: Profit of Rs.6.50/- | K42: =F42-H42 -> 6.5 | M42: =N42*K42 -> 7800 | N42: 1200 | O42: Successful | P42: 2019-11-04 | R42: R
A43: 8 | B43: 2019-11-04 | D43: COLPAL NOV FUT | E43: Buy | F43: 1527.5 | G43: 1510 | H43: 1539 | I43: 1560 | J43: Profit of Rs.11.50/- | K43: =H43-F43 -> 11.5 | M43: =N43*K43 -> 8050 | N43: 700 | O43: Successful | P43: 2019-11-04 | R43: N
A44: 9 | B44: 2019-11-04 | D44: LUPIN | E44: Buy | F44: 762.5 | G44: 747 | H44: 781 | I44: 790-800 | J44: Profit of Rs.18.50/- | K44: 18.5 | L44: =K44/F44 -> 2.43% | O44: Successful | P44: 2019-11-06 | R44: H
A45: 10 | B45: 2019-11-04 | D45: MARUTI | E45: Sell | F45: 7515 | G45: 7777.7 | H45: 7335 | I45: 7100-7000 | J45: Profit of Rs.180/- | K45: =F45-H45 -> 180 | L45: 2.40% | O45: Successful | P45: 2019-11-05 | R45: R
A46: 11 | B46: 2019-11-04 | D46: BANKBARODA | E46: Sell | F46: 101.5 | G46: 105 | H46: 99.6 | I46: 97-95 | J46: Profit of Rs.1.90/- | K46: =F46-H46 -> 1.9 | L46: 1.87% | O46: Successful | P46: 2019-11-06 | R46: H
A47: 12 | B47: 2019-11-04 | D47: COALINDIA | E47: Sell | F47: 210-212 | G47: 216.3 | I47: 200-198 | J47: Open | R47: R
A48: 13 | B48: 2019-11-05 | D48: TCS | E48: Buy | F48: 2170 | G48: 2097 | H48: 2205 | I48: 2300-2330 | J48: Profit of Rs.35/- | K48: =H48-F48 -> 35 | L48: =K48/F48 -> 1.61% | O48: Successful | P48: 2019-11-05 | R48: R
A49: 14 | B49: 2019-11-05 | D49: COLPAL NOV FUT | E49: Buy | F49: 1527 | G49: 1509 | H49: 1540 | I49: 1560 | J49: Profit of Rs.13/- | K49: 13 | M49: =N49*K49 -> 9100 | N49: 700 | O49: Successful | P49: 2019-11-06 | R49: N
A50: 15 | B50: 2019-11-05 | D50: HDFCLIFE | E50: Buy | F50: 588.5 | G50: 569 | H50: 571.5 | I50: 620-630 | J50: Loss of Rs.17/- | K50: -17 | L50: =K50/F50 -> -2.89% | O50: Unsuccessful | P50: 2019-11-08 | R50: H
A51: 16 | B51: 2019-11-05 | D51: ICICIBANK NOV FUT | E51: Sell | F51: 470 | G51: 480.2 | H51: 480.2 | I51: 450 | J51: Loss of Rs.10.20/- | K51: =F51-H51 -> -10.2 | M51: =N51*K51 -> -14025 | N51: 1375 | O51: Unsuccessful | P51: 2019-11-06 | R51: R
A52: 17 | B52: 2019-11-06 | D52: HINDALCO | E52: Sell | F52: 202.35 | G52: 208.3 | H52: 199 | I52: 193-190 | J52: Profit of Rs.3.35/- | K52: =F52-H52 -> 3.35 | L52: =K52/F52 -> 1.66% | O52: Successful | P52: 2019-11-06 | R52: R
A53: 18 | B53: 2019-11-06 | D53: KOTAKBANK NOV FUT | E53: Buy | F53: 1568 | G53: 1544 | H53: 1588 | I53: 1600-1620 | J53: Profit of Rs.20/- | K53: =H53-F53 -> 20 | M53: =N53*K53 -> 8000 | N53: 400 | O53: Successful | P53: 2019-11-06 | R53: R
A54: 19 | B54: 2019-11-07 | D54: MGL NOV FUT | E54: Sell | F54: 979.5 | G54: 959 | H54: 960 | I54: 1020 | J54: Loss of Rs.19.50/- | K54: =F54-H54 -> 19.5 | M54: =N54*K54 -> 11700 | N54: 600 | O54: Unsuccessful | P54: 2019-11-07 | R54: N
A55: 20 | B55: 2019-11-07 | D55: HINDALCO | E55: Sell | F55: 202-203 | G55: 208.3 | I55: 193-190 | J55: Open | R55: R
A56: 21 | B56: 2019-11-07 | D56: AXISBANK NOV FUT | E56: Buy | F56: 739 | G56: 729 | H56: 729 | I56: 760 | J56: Loss of Rs.10/- | K56: =F56-H56 -> 10 | M56: =N56*K56 -> 12000 | N56: 1200 | O56: Unsuccessful | P56: 2019-11-08 | R56: N
A57: 22 | B57: 2019-11-08 | D57: HINDPETRO | E57: Buy | F57: 304.5 | G57: 296.3 | H57: 296.3 | I57: 317-320 | J57: Loss of Rs.8.2/- | K57: =H57-F57 -> -8.2 | L57: =K57/F57 -> -2.69% | O57: Unsuccessful | P57: 2019-11-08 | R57: R
A58: 23 | B58: 2019-11-08 | D58: COLPAL NOV FUT | E58: Buy | F58: 1578 | G58: 1560 | H58: 1591 | I58: 1600 | J58: Profit of Rs.13/- | K58: 13 | M58: =N58*K58 -> 9100 | N58: 700 | O58: Successful | P58: 2019-11-08 | R58: N
A59: 24 | B59: 2019-11-08 | D59: AXISBANK | E59: Buy | F59: 731-735 | G59: 715 | I59: 760-765 | J59: Open | R59: H
A60: 25 | B60: 2019-11-08 | D60: HINDUNILVR | E60: Buy | F60: 2080-2090 | G60: 2035 | I60: 2160-2180 | J60: Open | R60: H
A61: 26 | B61: 2019-11-08 | D61: RELIANCE | E61: Sell | F61: 1445-1450 | G61: 1505 | I61: 1380-1350 | J61: Open | R61: H
A62: 27 | B62: 2019-11-08 | D62: COLPAL NOV FUT | E62: Buy | F62: 1573-1575 | G62: 1556 | I62: 1600-1620 | J62: Open | R62: N
A63: 28
A64: 29
A65: 30
A66: 31
A67: 32
A68: 33
A69: 34
A72: CLBS = Closing Basis ***
A73: Dividend adjusted <> | F73: Reinitiated $
F74: Revised stoploss #
A76: Master Trade High Risk
A77: Sr.no | B77: Date | D77: Company | E77: Rec | F77: Rec Price | G77: Stop Loss | H77: Call Closed At | I77: Target | J77: Remark | K77: Profit / Loss per share | L77: Gain / Loss per Lot | M77: Lot | N77: Status | O77: Closed Date
A78: 1 | B78: 2019-10-30 | D78: BAJAJ-AUTO NOV FUT | E78: Sell | F78: 3240 | G78: 3360 | H78: 3205 | I78: 3040 | J78: Profit of Rs.36.50/- | K78: =F78-H78 -> 35 | L78: =M78*36.5 -> 9125 | M78: 250 | N78: Successful | O78: 2019-11-04 | R78: H
D79: BAJAJ-AUTO 3100 PE NOV | E79: Sell | F79: 49.50 | H79: 48 | K79: =F79-H79 -> 1.5 | R79: H
A80: 2 | B80: 2019-10-30 | D80: LT NOV FUT | E80: Buy | F80: 1476.5 | G80: 1418 | H80: 1427.5 | I80: 1550 | J80: Loss of Rs.28/- | K80: =H80-F80 -> -49 | L80: =M80*-28 -> -10500 | M80: 375 | N80: Unsuccessful | O80: 2019-11-08 | R80: H
D81: LT 1520 CE NOV | E81: Sell | F81: 28 | H81: 7 | K81: =F81-H81 -> 21 | R81: H
A82: 3 | B82: 2019-10-30 | D82: HEROMOTOCO NOV FUT | E82: Buy | F82: 2715 | G82: 2640 | H82: 2747.5 | I82: 2900 | J82: Profit of Rs.27.50/- | K82: =H82-F82 -> 32.5 | L82: =M82*27.5 -> 5500 | M82: 200 | N82: Successful | O82: 2019-11-01 | R82: N
D83: HEROMOTOCO 2850 CE NOV | E83: Sell | F83: 55 | H83: 60 | K83: =F83-H83 -> -5 | R83: N
A84: 4 | B84: 2019-10-31 | D84: AXISBANK NOV FUT | E84: Buy | F84: 738 | G84: 718 | H84: 743.5 | I84: 760 | J84: Profit of Rs.5/- | K84: =H84-F84 -> 5.5 | L84: =M84*5 -> 6000 | M84: 1200 | N84: Successful | O84: 2019-11-01 | R84: H
D85: AXISBANK 760 CE NOV | E85: Sell | F85: 17.50 | H85: 18 | K85: =F85-H85 -> -0.5 | R85: H
A86: 5 | B86: 2019-11-01 | D86: NIFTY NOV FUT | E86: Sell | F86: 11907.5 | G86: 12060 | H86: 12060 | I86: 11700 | J86: Loss of Rs.82.50/- | K86: =F86-H86 -> -152.5 | L86: =M86*-82.5 -> -6187.5 | M86: 75 | N86: Unsuccessful | O86: 2019-11-08 | R86: H
D87: Nifty 11750 PE 14-NOV | E87: Sell | F87: 78 | H87: 8 | K87: =F87-H87 -> 70 | R87: H
A88: 6 | B88: 2019-11-05 | D88: HAVELLS NOV FUT | E88: Buy | F88: 687 | G88: 670 | H88: 696 | I88: 720-730 | J88: Profit of Rs.8.50/- | K88: =H88-F88 -> 9 | L88: =M88*8.5 -> 8500 | M88: 1000 | N88: Successful | O88: 2019-11-06 | R88: N
D89: HAVELLS 710 CE NOV | E89: Sell | F89: 13.50 | H89: 14 | K89: =F89-H89 -> -0.5 | R89: N
A90: 7 | B90: 2019-11-05 | D90: BATAINDIA NOV FUT | E90: Buy | F90: 1735 | G90: 1701 | H90: 1701 | I90: 1820 | J90: Loss of Rs.22.50/- | K90: =H90-F90 -> -34 | L90: =M90*-22.5 -> -12375 | M90: 550 | N90: Unsuccessful | O90: 2019-11-06 | R90: N
D91: BATAINDIA 1800 CE NOV | E91: Sell | F91: 35 | H91: 23.5 | K91: =F91-H91 -> 11.5 | R91: N
A92: 8 | B92: 2019-11-06 | D92: GRASIM NOV FUT | E92: Buy | F92: 775 | G92: 754 | H92: 788 | I92: 820 | J92: Profit of Rs.11/- | K92: =H92-F92 -> 13 | L92: =M92*11 -> 8250 | M92: 750 | N92: Successful | O92: 2019-11-08 | R92: N
D93: GRASIM 820 CE NOV | E93: Sell | F93: 15.5 | H93: 17.5 | K93: =F93-H93 -> -2 | R93: N
A94: 9 | B94: 2019-11-06 | D94: ULTRACEMCO NOV FUT | E94: Buy | F94: 4150 | G94: 4070 | H94: 4195 | I94: 4350 | J94: Profit of Rs.37.50/- | K94: =H94-F94 -> 45 | L94: =M94*37.5 -> 7500 | M94: 200 | N94: Successful | O94: 2019-11-07 | R94: N
D95: ULTRACEMCO 4300 CE NOV | E95: Sell | F95: 70 | H95: 77.5 | K95: =F95-H95 -> -7.5 | R95: N
A96: 10 | B96: 2019-11-07 | D96: BAJAJ-AUTO NOV FUT | E96: Sell | F96: 3235-3245 | G96: 3355 | I96: 3100 | J96: Open
D97: BAJAJ-AUTO 3150 PE NOV | E97: Sell | F97: 45-50
A111: Master Trade Medium Risk
A112: Sr.no | B112: Date | D112: Company | E112: Rec | F112: Rec Price | G112: Stop Loss | H112: Call Closed At | I112: Target | J112: Remark | K112: Profit/ Loss per lot | L112: Gain / Loss per Lot | M112: Lot | N112: Status | O112: Closed Date
A113: 1 | B113: 2019-11-01 | D113: INFRATEL NOV 200 CE | E113: Buy | F113: 16.50 | H113: 21.5 | J113: Profit of Rs.2/- | K113: =H113-F113 -> 5 | L113: =2000*2 -> 4000 | M113: 2000 | N113: Successful | O113: 2019-11-04 | R113: H
D114: INFRATEL NOV 210 CE | E114: Sell | F114: 12.50 | H114: 15.5 | K114: -3 | R114: H
A115: 2 | B115: 2019-11-01 | D115: MARUTI NOV 7500 PE | E115: Buy | F115: 200 | H115: 270 | J115: Profit of Rs.30/- | K115: =H115-F115 -> 70 | L115: =30*M115 -> 2250 | M115: 75 | N115: Successful | O115: 2019-11-05 | R115: N
D116: MARUTI NOV 7300 PE | E116: Sell | F116: 132.50 | H116: 172.5 | K116: -40 | R116: N
A117: 3 | B117: 2019-11-01 | D117: BANKNIFTY 30000 PE 7-NOV | E117: Buy | F117: 250 | G117: 130 | H117: 130 | I117: 450-500 | J117: Loss of Rs.120/- | K117: =H117-F117 -> -120 | L117: =M117*K117 -> -2400 | M117: 20 | N117: Unsuccessful | O117: 2019-11-04 | R117: H
A118: 4 | B118: 2019-11-04 | D118: BANKNIFTY 14 NOV 30400 PE | E118: Buy | F118: 400-420 | J118: Open | R118: H
D119: BANKNIFTY 14 NOV 30100 PE | E119: Sell | F119: 295-305 | R119: H
A120: 5 | B120: 2019-11-04 | D120: MOTHERSUMI NOV 120 PE | E120: Buy | F120: 5.50-6.00 | J120: Open | R120: H
D121: MOTHERSUMI 115 PE | E121: Sell | F121: 4.00-4.20 | R121: H
A130: Techno -Funda (positional)
A131: Sr.no | B131: Date | D131: Company | E131: Rec | F131: Rec Price | G131: Stop Loss*** | H131: Call Closed At | I131: Target | J131: Remark | K131: Profit / Loss per Share | L131: Gain / Loss % | M131: Status | N131: Closed Date | O131: NSE Closed Price
A132: 1 | B132: 2019-08-13 | D132: ITC | E132: Buy | F132: 247 | G132: 228 | H132: 262.5 | I132: 290-300 | J132: Part Profit of Rs.15.5/- | K132: =H132-F132 -> 15.5 | L132: =K132/F132 -> 6.28% | M132: Successful | N132: 2019-10-01 | O132: =VLOOKUP(D132,Sheet2!A131:M1770,6,0) -> 260.5 | R132: H
A136: CLBS = Closing Basis *** | F136: Reinitiated $
A137: Dividend adjusted <> | F137: Revised stoploss #
B142: Investment Idea
A143: Sr.no | B143: Date | D143: Company | E143: Rec | F143: Rec Price | G143: Point of Review | H143: Close Rate | I143: Target | J143: Remark | K143: Profit / Loss per Share | L143: Gain / Loss % | M143: Status | N143: Closed Date
A144: 1 | B144: 2013-11-01 | D144: L&T Finance Holding | E144: Accu | F144: 82.00 | G144: - | H144: 100 | I144: 100.00 | J144: Target Achieved | K144: =H144-F144 -> 18.00 | L144: =K144/F144 -> 21.95% | M144: Successful | N144: 2016-10-14
A145: 2 | B145: 2014-06-04 | D145: Finolex Inds | E145: Buy | F145: 257.00 | G145: - | H145: 300 | I145: 300.00 | J145: Target Achieved | K145: 43.00 | L145: 16.73% | M145: Successful | N145: 2014-07-02
A146: 3 | B146: 2014-07-08 | D146: JK Cement | E146: Buy | F146: 393.00 | G146: - | H146: 468 | I146: 468.00 | J146: Target Achieved | K146: 75.00 | L146: 19.08% | M146: Successful | N146: 2014-08-12
A147: 4 | B147: 2014-08-06 | D147: Finolex Cables | E147: Buy | F147: 205.00 | G147: - | H147: 275 | I147: 250.00 | J147: Target Achieved | K147: 70.00 | L147: 34.15% | M147: Successful | N147: 2014-11-19
A148: 5 | B148: 2014-09-04 | D148: Exide Inds | E148: Buy | F148: 162.00 | G148: - | H148: 190 | I148: 190.00 | J148: Target Achieved | K148: 28.00 | L148: 17.28% | M148: Successful | N148: 2015-01-02
A149: 6 | B149: 2014-09-04 | D149: Deepak Nitrite | E149: Buy | F149: 75.00 | G149: - | H149: 91.5 | I149: 95-100 | J149: Profit of Rs.16.50/- | K149: 16.50 | L149: 22.00% | M149: Successful | N149: 2014-11-11
A150: 7 | B150: 2014-10-01 | D150: Mercks | E150: Buy | F150: 850.00 | G150: - | H150: 982.5 | I150: 1050.00 | J150: Profit of Rs.132.50/- | K150: 132.50 | L150: 15.59% | M150: Successful | N150: 2015-02-04
A151: 8 | B151: 2014-10-01 | D151: Grindwell Norton | E151: Buy | F151: 475.00 | G151: - | H151: 515 | I151: 600.00 | J151: Profit of Rs.40/- | K151: 40.00 | L151: 8.42% | M151: Successful | N151: 2014-10-27
A152: 9 | B152: 2014-10-01 | D152: Snowman Logistics | E152: Buy | F152: 86.00 | G152: - | H152: 99 | I152: 140.00 | J152: Profit of Rs.13.00/- | K152: 13.00 | L152: 15.12% | M152: Successful | N152: 2014-10-27
A153: 10 | B153: 2014-10-14 | D153: Birla Corp | E153: Buy | F153: 496.60 | G153: - | H153: 621 | I153: 580.00 | J153: Target Achieved | K153: 124.40 | L153: 25.05% | M153: Successful | N153: 2016-08-23
A154: 11 | B154: 2014-10-14 | D154: Ultratech Cem | E154: Buy | F154: 2481.90 | G154: - | H154: 2840 | I154: 2870.00 | J154: Profit of Rs.358.10/- | K154: 358.10 | L154: 14.43% | M154: Successful | N154: 2015-01-13
A155: 12 | B155: 2014-10-16 | D155: Sintex Inds | E155: Buy | F155: 84.50 | G155: - | H155: 93 | I155: 110.00 | J155: Profit of Rs.8.50/- | K155: 8.50 | L155: 10.06% | M155: Successful | N155: 2014-10-27
A156: 13 | B156: 2014-10-16 | D156: HSIL | E156: Buy | F156: 401.00 | G156: - | H156: 428 | I156: 450.00 | J156: Profit of Rs.27.00/- | K156: 27.00 | L156: 6.73% | M156: Successful | N156: 2015-01-16
A157: 14 | B157: 2014-10-16 | D157: Eveready Inds | E157: Buy | F157: 101.00 | G157: - | H157: 112 | I157: 120.00 | J157: Profit of Rs.11.00/- | K157: 11.00 | L157: 10.89% | M157: Successful | N157: 2014-10-27
A158: 15 | B158: 2014-11-11 | D158: Pennar Inds | E158: Buy | F158: 59.00 | G158: - | H158: 76 | I158: 76.00 | J158: Target Achieved | K158: 17.00 | L158: 28.81% | M158: Successful | N158: 2017-10-24
A159: 16 | B159: 2014-11-11 | D159: Snowman Logistics | E159: Buy | F159: 99.00 | G159: - | H159: 120 | I159: 120.00 | J159: Profit of Rs.21/- | K159: 21.00 | L159: 21.21% | M159: Successful | N159: 2014-11-17
A160: 17 | B160: 2014-11-13 | D160: Dharamsi Morarji Chem | E160: Buy | F160: 22.00 | G160: - | H160: 33.55 | I160: 32.00 | J160: Profit of Rs 11.55/- | K160: 11.55 | L160: 52.50% | M160: Successful | N160: 2015-07-03
A161: 18 | B161: 2014-12-03 | D161: Tatachem | E161: Buy | F161: 440.00 | G161: - | H161: 520 | I161: 520.00 | J161: Profit of Rs 80.00/- | K161: 80.00 | L161: 18.18% | M161: Successful | N161: 2015-07-23
A162: 19 | B162: 2014-12-03 | D162: Advanta | E162: Buy | F162: 360.00 | G162: - | H162: 427 | I162: 425.00 | J162: Profit of Rs.67.00/- | K162: 67.00 | L162: 18.61% | M162: Successful | N162: 2015-02-23
A163: 20 | B163: 2015-01-08 | D163: GDL | E163: Buy | F163: 360.00 | G163: - | H163: 455 | I163: 420.00 | J163: Profit of Rs.95.00/- | K163: 95.00 | L163: 26.39% | M163: Successful | N163: 2015-01-20
A164: 21 | B164: 2015-01-08 | D164: NRB Bearing | E164: Buy | F164: 130.00 | H164: 175.5 | I164: 165.00 | J164: Profit of Rs 45.50/- | K164: 45.50 | L164: 35.00% | M164: Successful | N164: 2017-12-19
A165: 22 | B165: 2015-02-05 | D165: GSFC | E165: Accu | F165: 98.00 | H165: 120 | I165: 120.00 | J165: Target Achieved | K165: 22.00 | L165: 22.45% | M165: Successful | N165: 2017-01-18
A166: 23 | B166: 2015-02-05 | D166: Sundrmfast | E166: Accu | F166: 196.00 | H166: 262 | I166: 255.00 | J166: Target Achieved | K166: 66.00 | L166: 33.67% | M166: Successful | N166: 2016-08-17
A167: 24 | B167: 2015-03-04 | D167: GPPL | E167: Accu | F167: 235 | H167: 77.00 | I167: 280-285 | J167: Loss of Rs.158/- | K167: -158.00 | L167: -67.23% | M167: Unsuccessful | N167: 2019-02-26
A168: 25 | B168: 2015-03-04 | D168: ORIENTCEM | E168: Accu | F168: 185.00 | H168: 224 | I168: 220-225 | J168: Target Achieved | K168: 39.00 | L168: 21.08% | M168: Successful | N168: 2016-10-04
A169: 26 | B169: 2015-03-27 | D169: PFS | E169: Accu | F169: 49.5 | H169: 15.85 | I169: 67.00 | J169: Loss of Rs.33.65/- | K169: -33.65 | L169: -68% | M169: Unsuccessful | N169: 2019-06-11
A170: 27 | B170: 2015-03-30 | D170: Walchandnagar Ind Ltd | E170: Accu | F170: 183.50 | H170: 219 | I170: 218.00 | J170: Profit of Rs.35.50/- | K170: 35.50 | L170: 19.35% | M170: Successful | N170: 2015-04-09
A171: 28 | B171: 2015-04-20 | D171: Kalpataru Power Transmission Ltd | E171: Accu | F171: =(227+237)/2 -> 232.00 | H171: 298 | I171: 298.00 | J171: Target Achieved | K171: 66.00 | L171: 28.45% | M171: Successful | N171: 2017-03-29
A172: 29 | B172: 2015-05-04 | D172: Mastek Ltd | E172: Buy | F172: 385.00 | H172: =212.5+331 -> 543.5 | I172: 510.00 | J172: Profit of Rs 158.50/- | K172: 158.50 | L172: 41.17% | M172: Successful | N172: 2015-08-19
A173: 30 | B173: 2015-05-04 | D173: Suprajit Eng | E173: Buy | F173: 115.50 | H173: 146 | I173: 142.00 | J173: Profit of Rs 30.50/- | K173: 30.50 | L173: 26.41% | M173: Successful | N173: 2015-07-17
A174: 31 | B174: 2015-05-27 | D174: TCI | E174: Buy | F174: 237.50 | H174: 279.5 | I174: 278.00 | J174: Target Achieved | K174: 42.00 | L174: 17.68% | M174: Successful | N174: 2015-08-06
A175: 32 | B175: 2015-06-19 | D175: HSIL | E175: Accu | F175: 340.00 | H175: 448 | I175: 448.00 | J175: Target Achieved | K175: 108.00 | L175: 31.76% | M175: Successful | N175: 2017-10-10
A176: 33 | B176: 2015-07-06 | D176: Capital First | E176: Accu | F176: 390.00 | H176: 460 | I176: 460.00 | J176: Target Achieved | K176: =H176-F176 -> 70.00 | L176: =K176/F176 -> 17.95% | M176: Successful | N176: 2016-04-18
A177: 34 | B177: 2015-07-10 | D177: Dolphin OffShore | E177: Accu | F177: 122.5 | H177: 61.00 | I177: 172.00 | J177: Loss of Rs.61.50/- | K177: -61.50 | L177: -50.20% | M177: Unsuccessful | N177: 2018-08-21
A178: 35 | B178: 2015-08-03 | D178: Allcargo logistics | E178: Accu | F178: 297.50 | H178: 350 | I178: 360.00 | J178: Profit of Rs 52.50/- | K178: 52.50 | L178: 17.65% | M178: Successful | N178: 2015-08-16
A179: 36 | B179: 2015-08-03 | D179: Camline Fine | E179: Accu | F179: 115.50 | H179: 149 | I179: 140.00 | J179: Profit of Rs 33.50/- | K179: 33.50 | L179: 29.00% | M179: Successful | N179: 2017-01-05
A180: 37 | B180: 2015-09-04 | D180: TCI | E180: Accu | F180: 226.00 | H180: 292 | I180: 292.00 | J180: Target Achieved | K180: 66.00 | L180: 29.20% | M180: Successful | N180: 2015-10-09
A181: 38 | B181: 2015-09-07 | D181: Kalpataru Power Transmission Ltd | E181: Accu | F181: 232.50 | H181: 312.5 | I181: 310.00 | J181: Target Achieved | K181: 80.00 | L181: 34.41% | M181: Successful | N181: 2017-03-29
A182: 39 | B182: 2015-09-21 | D182: LLOYD ELECTRIC & ENG LTD | E182: Accu | F182: 196.50 | H182: 238 | I182: 238.00 | J182: Target Achieved | K182: 41.50 | L182: 21.12% | M182: Successful | N182: 2015-10-14
A183: 40 | B183: 2015-09-24 | D183: L&T Finance Holding | E183: Accu | F183: 65.00 | H183: 82 | I183: 82.00 | J183: Target Achieved | K183: 17.00 | L183: 26.15% | M183: Successful | N183: 2016-07-27
A184: 41 | B184: 2015-10-14 | D184: KEC International ltd | E184: Accu | F184: 144.00 | H184: 182.5 | I184: 181.00 | J184: Target Achieved | K184: 38.50 | L184: 26.74% | M184: Successful | N184: 2017-03-23
A185: 42 | B185: 2015-10-14 | D185: Gruh Finance | E185: Accu | F185: 264.00 | H185: 311 | I185: 311.00 | J185: Target Achieved | K185: 47.00 | L185: 17.80% | M185: Successful | N185: 2016-08-22
A186: 43 | B186: 2015-11-10 | D186: Pidilitind | E186: Buy | F186: 549.50 | H186: 630 | I186: 630.00 | J186: Target Achieved | K186: 80.50 | L186: 14.65% | M186: Successful | N186: 2016-02-19
A187: 44 | B187: 2015-12-04 | D187: Zensar Technology | E187: Accu | F187: 1027.50 | H187: 1315 | I187: 1250.00 | J187: Target Achieved | K187: 287.50 | L187: 27.98% | M187: Successful | N187: 2018-05-24
A188: 45 | B188: 2015-12-29 | D188: Vinati Organics Ltd | E188: Accu | F188: 465.00 | H188: 540 | I188: 540.00 | J188: Target Achieved | K188: 75.00 | L188: 16.13% | M188: Successful | N188: 2016-06-09
A189: 46 | B189: 2016-01-11 | D189: GSFC | E189: Buy | F189: 81.00 | H189: 110 | I189: 110.00 | J189: Target Achieved | K189: 29.00 | L189: 35.80% | M189: Successful | N189: 2017-01-10
A190: 47 | B190: 2016-01-13 | D190: SSWL | E190: Buy | F190: 417.50 | H190: 547 | I190: 535.00 | J190: Target Achieved | K190: 129.50 | L190: 31.02% | M190: Successful | N190: 2016-07-27
A191: 48 | B191: 2016-02-08 | D191: Persistent System Ltd | E191: Accu | F191: 650.00 | H191: 800 | I191: 800.00 | J191: Target Achieved | K191: 150.00 | L191: 23.08% | M191: Successful | N191: 2018-02-23
A192: 49 | B192: 2016-03-04 | D192: UPL | E192: Accu | F192: 437.50 | H192: 504.5 | I192: 522.00 | J192: Profit of Rs.67/- | K192: 67.00 | L192: 15.31% | M192: Successful | N192: 2016-04-20
A193: 50 | B193: 2016-03-09 | D193: Ashoka Buildcon Ltd | E193: Accu | F193: 189.50 | H193: 218 | I193: 218.00 | J193: Target Achieved | K193: 28.50 | L193: 15.04% | M193: Successful | N193: 2017-10-26
A194: 51 | B194: 2016-04-11 | D194: PTC INDIA FIN SERV LTD | E194: Accu | F194: 36.5 | H194: 15.85 | I194: 60.00 | J194: Loss of Rs.20.65/- | K194: -20.65 | L194: -56.58% | M194: Unsuccessful | N194: 2019-06-11
A195: 52 | B195: 2016-04-12 | D195: CAMLINFINE $ | E195: Accu | F195: 93.00 | H195: 149 | I195: 140.00 | J195: Profit of Rs 56/- | K195: 56.00 | L195: 60.22% | M195: Successful | N195: 2017-01-05
A196: 53 | B196: 2016-04-12 | D196: Greaves Cotton Ltd. | E196: Accu | F196: 130.00 | H196: 150 | I196: 150-155 | J196: Target Achieved | K196: 20.00 | L196: 15.38% | M196: Successful | N196: 2016-07-13
A197: 54 | B197: 2016-04-13 | D197: DHFL | E197: Accu | F197: 196.00 | H197: 299 | I197: 299.00 | J197: Target Achieved | K197: 103.00 | L197: 52.55% | M197: Successful | N197: 2016-09-07
A198: 55 | B198: 2016-04-13 | D198: Magma | E198: Accu | F198: 88.00 | H198: 103 | I198: 103.00 | J198: Target Achieved | K198: 15.00 | L198: 17.05% | M198: Successful | N198: 2016-06-09
A199: 56 | B199: 2016-05-02 | D199: KEC International ltd $ | E199: Accu | F199: 127.50 | H199: 148 | I199: 148-150 | J199: Target Achieved | K199: =H199-F199 -> 20.50 | L199: =K199/F199 -> 16.08% | M199: Successful | N199: 2016-07-13
A200: 57 | B200: 2016-05-03 | D200: Mindtree | E200: Accu | F200: 675.00 | H200: 815 | I200: 790-800 | J200: Target Achieved | K200: =H200-F200 -> 140.00 | L200: =K200/F200 -> 20.74% | M200: Successful | N200: 2018-02-23
A201: 58 | B201: 2016-06-01 | D201: Atulauto | E201: Accu | F201: 500 | H201: 232.50 | I201: 565-570 | J201: Loss of Rs.267.50 /- | K201: =H201-F201 -> -267.50 | L201: =K201/F201 -> -53.50% | M201: Unsuccessful | N201: 2019-09-27
A202: 59 | B202: 2016-06-06 | D202: TRITURBINE | E202: Accu | F202: 110.00 | H202: 126.5 | I202: 125.00 | J202: Profit of Rs.16.50/- | K202: =H202-F202 -> 16.50 | L202: =K202/F202 -> 15.00% | M202: Successful | N202: 2016-07-01
A203: 60 | B203: 2016-06-17 | D203: Pennar Industries Ltd | E203: Accu | F203: 44.00 | H203: 69.5 | I203: 69.50 | J203: Profit of Rs.25.50/- | K203: =H203-F203 -> 25.50 | L203: =K203/F203 -> 57.95% | M203: Successful | N203: 2017-08-30
A204: 61 | B204: 2016-06-28 | D204: EVEREADY | E204: Accu | F204: 262.50 | H204: 340 | I204: 333.00 | J204: Profit of Rs.77.50/- | K204: 77.50 | L204: 29.52% | M204: Successful | N204: 2017-10-09
A205: 62 | B205: 2016-06-28 | D205: FIEMIND | E205: Accu | F205: 840.00 | H205: 1230 | I205: 1230.00 | J205: Target Achieved | K205: 390.00 | L205: 46.43% | M205: Successful | N205: 2016-10-06
A206: 63 | B206: 2016-07-05 | D206: Bajaj Corp Ltd | E206: Accu | F206: 395 | H206: =(468.5+342.5)/2 -> 405.50 | I206: 510.00 | J206: Profit of Rs.10.50/- | K206: =H206-F206 -> 10.50 | L206: =K206/F206 -> 3% | M206: Neutral | N206: 2019-05-21
A207: 64 | B207: 2016-08-02 | D207: GPPL $ | E207: Buy | F207: 169.5 | H207: 77.00 | I207: 198-200 | J207: Loss of Rs.92.5/- | K207: -92.50 | L207: -54.57% | M207: Unsuccessful | N207: 2019-02-26
A208: 65 | B208: 2016-08-04 | D208: WONDERLA HOLIDAYS LTD | E208: Accu | F208: 400 | H208: 305.00 | I208: 475.00 | J208: Loss of Rs.95/- | K208: -95.00 | L208: -23.75% | M208: Unsuccessful | N208: 2019-05-21
A209: 66 | B209: 2016-08-11 | D209: CAMLINFINE | E209: Accu | F209: 86.50 | H209: 130 | I209: 130.00 | J209: Profit of Rs.43.50/- | K209: 43.50 | L209: 50.29% | M209: Successful | N209: 2017-12-22
A210: 67 | B210: 2016-08-18 | D210: GRANULES | E210: Accu | F210: 133.5 | H210: 126.50 | I210: 178.00 | J210: Exit | K210: -7.00 | L210: -5.24% | M210: Unsuccessful | N210: 2016-09-02
A211: 68 | B211: 2016-08-31 | D211: VA TECH WABAG | E211: Accu | F211: 560.00 | H211: 725 | I211: 725.00 | J211: Target Achieved | K211: 165.00 | L211: 29.46% | M211: Successful | N211: 2016-03-27
A212: 69 | B212: 2016-09-01 | D212: SKIPPER LIMITED | E212: Accu | F212: 160.50 | H212: 210 | I212: 210.00 | J212: Target Achieved | K212: 49.50 | L212: 30.84% | M212: Successful | N212: 2017-05-16
A213: 70 | B213: 2016-10-03 | D213: IFBIND | E213: Accu | F213: 430.00 | H213: 596 | I213: 575.00 | J213: Profit of Rs.166/- | K213: 166.00 | L213: 38.60% | M213: Successful | N213: 2017-02-03
A214: 71 | B214: 2016-10-14 | D214: ASIANTILES | E214: Accu | F214: 280.00 | H214: 345 | I214: 345.00 | J214: Target Achieved | K214: =H214-F214 -> 65.00 | L214: =K214/F214 -> 23.21% | M214: Successful | N214: 2017-03-20
A215: 72 | B215: 2016-10-14 | D215: DEEPIND | E215: Accu | F215: 245.00 | H215: 325.5 | I215: 330.00 | J215: Profit of Rs.80.5/- | K215: 80.50 | L215: =K215/F215 -> 32.86% | M215: Successful | N215: 2017-02-03
A216: 73 | B216: 2016-10-17 | D216: DCBBANK | E216: Accu | F216: 125.00 | H216: 160 | I216: 160.00 | J216: Target Achieved | K216: 35.00 | L216: 28.00% | M216: Successful | N216: 2017-03-09
A217: 74 | B217: 2016-10-17 | D217: ORIENTREF | E217: Accu | F217: 114.00 | H217: 145 | I217: 145.00 | J217: Target Achieved | K217: 31.00 | L217: =K217/F217 -> 27.19% | M217: Successful | N217: 2017-05-04
A218: 75 | B218: 2016-10-17 | D218: GANECOS | E218: Accu | F218: 212.00 | H218: 280 | I218: 276.00 | J218: Profit of Rs.68/- | K218: 68.00 | L218: =K218/F218 -> 32.08% | M218: Successful | N218: 2017-05-03
A219: 76 | B219: 2016-11-04 | D219: NBCC | E219: Accu | F219: 155.00 | H219: 210 | I219: 210.00 | J219: Profit of Rs.55/- | K219: 55.00 | L219: =K219/F219 -> 35.48% | M219: Successful | N219: 2017-07-28
A220: 77 | B220: 2016-12-06 | D220: PRECAM | E220: Accu | F220: 150.5 | H220: 72.50 | I220: 174.00 | J220: Loss of Rs.78/- | K220: -78.00 | L220: -51.83% | M220: Unsuccessful | N220: 2018-08-21
A221: 78 | B221: 2016-12-08 | D221: INFRATEL | E221: Accu | F221: 380.00 | H221: 478 | I221: 468.00 | J221: Target Achieved | K221: =H221-F221 -> 98.00 | L221: =K221/F221 -> 25.79% | M221: Successful | N221: 2017-10-17
A222: 79 | B222: 2016-12-30 | D222: GODREJPROP | E222: Accu | F222: 305.00 | H222: 375 | I222: 375.00 | J222: Target Achieved | K222: =H222-F222 -> 70.00 | L222: =K222/F222 -> 22.95% | M222: Successful | N222: 2017-02-02
A223: 80 | B223: 2017-01-04 | D223: DEEPAKNTR | E223: Accu | F223: 99.50 | H223: 158 | I223: 158.00 | J223: Target Achieved | K223: =H223-F223 -> 58.50 | L223: =K223/F223 -> 58.79% | M223: Successful | N223: 2017-06-12
A224: 81 | B224: 2017-01-04 | D224: DEEPAKNTR | E224: Accu | F224: 99.50 | H224: 158 | I224: 158.00 | J224: Target Achieved | K224: 58.50 | L224: 58.79% | M224: Successful | N224: 2017-06-12
A225: 82 | B225: 2017-02-20 | D225: RECLTD | E225: Accu | F225: 140.50 | H225: 220 | I225: 220.00 | J225: Target Achieved | K225: =H225-F225 -> 79.50 | L225: =K225/F225 -> 56.58% | M225: Successful | N225: 2017-05-09
A226: 83 | B226: 2017-02-20 | D226: SUBROS | E226: Accu | F226: 202.50 | H226: 234 | I226: 234.00 | J226: Target Achieved | K226: 31.50 | L226: 15.56% | M226: Successful | N226: 2017-04-11
A227: 84 | B227: 2017-03-24 | D227: VRLLOG | E227: Accu | F227: 300.50 | H227: 417.5 | I227: 420.00 | J227: Profit of Rs.117/- | K227: =H227-F227 -> 117.00 | L227: =K227/F227 -> 38.94% | M227: Successful | N227: 2017-12-01
A228: 85 | B228: 2017-03-24 | D228: FIEMIND | E228: Accu | F228: 850.00 | H228: 1042.5 | I228: 1023.00 | J228: Profit of Rs 192.50/- | K228: 192.50 | L228: 22.65% | M228: Successful | N228: 2017-04-05
A229: 86 | B229: 2017-04-05 | D229: RATNAMANI | E229: Accu | F229: 785.00 | H229: 930 | I229: 920.00 | J229: Profit of Rs.145/- | K229: =H229-F229 -> 145.00 | L229: =K229/F229 -> 18.47% | M229: Successful | N229: 2017-08-29
A230: 87 | B230: 2017-04-06 | D230: ZEEMEDIA | E230: Accu | F230: 40 | H230: 13.10 | I230: 60.00 | J230: Loss of Rs.26.9/- | K230: -26.90 | L230: -67.25% | M230: Unsuccessful | N230: 2018-02-07
A231: 88 | B231: 2017-04-12 | D231: DABUR | E231: Accu | F231: 289.50 | H231: 354 | I231: 360.00 | J231: Profit of Rs.64.5/- | K231: =H231-F231 -> 64.50 | L231: =K231/F231 -> 22.28% | M231: Successful | N231: 2017-11-01
A232: 89 | B232: 2017-04-20 | D232: KPRMILL | E232: Accu | F232: 700.00 | H232: 840 | I232: 840.00 | J232: Profit of Rs.140/- | K232: 140.00 | L232: 20.00% | M232: Successful | N232: 2017-06-07
A233: 90 | B233: 2017-06-01 | D233: ESSELPACK | E233: Accu | F233: 130.00 | H233: 144.25 | I233: 170.00 | J233: Profit of Rs.14.25/- | K233: 14.25 | L233: 10.96% | M233: Successful | N233: 2019-07-29
A234: 91 | B234: 2017-06-15 | D234: KEI | E234: Accu | F234: 214.50 | H234: 262 | I234: 262.00 | J234: Profit of Rs.47.5/- | K234: 47.50 | L234: 22.14% | M234: Successful | N234: 2017-08-30
A235: 92 | B235: 2017-07-17 | D235: MAYURUNIQ | E235: Accu | F235: 370.00 | H235: 447.5 | I235: 450.00 | J235: Target Achieved | K235: 77.50 | L235: 20.95% | M235: Successful | N235: 2017-10-27
A236: 93 | B236: 2017-07-27 | D236: RAMCOCEM | E236: Accu | F236: 657.50 | H236: 825 | I236: 820.00 | J236: Target Achieved | K236: 167.50 | L236: 25.48% | M236: Successful | N236: 2017-12-21
A237: 94 | B237: 2017-08-17 | D237: FINPIPE | E237: Accu | F237: 605.00 | H237: 750 | I237: 750.00 | J237: Profit of Rs.145/- | K237: 145.00 | L237: 23.97% | M237: Successful | N237: 2017-10-19
A238: 95 | B238: 2017-09-01 | D238: SHK | E238: Accu | F238: 255 | H238: 217.25 | I238: 320.00 | J238: Loss of Rs.37.75/- | K238: -37.75 | L238: -15% | M238: Unsuccessful | N238: 2019-07-15
A239: 96 | B239: 2017-09-19 | D239: SKIPPER | E239: Accu | F239: 215.00 | H239: 258 | I239: 258.00 | J239: Target Achieved | K239: 43.00 | L239: 20.00% | M239: Successful | N239: 2017-11-01
A240: 97 | B240: 2017-09-19 | D240: SKIPPER | E240: Accu | F240: 215.00 | H240: 258 | I240: 258.00 | J240: Target Achieved | K240: 43.00 | L240: 20.00% | M240: Successful | N240: 2017-11-01
A241: 98 | B241: 2017-09-20 | D241: CAMLINFINE$ | E241: Accu | F241: 75.00 | H241: 90 | I241: 90.00 | J241: Profit of Rs.15.00/- | K241: =H241-F241 -> 15.00 | L241: =K241/F241 -> 20.00% | M241: Successful | N241: 2017-10-11
A242: 99 | B242: 2017-10-03 | D242: GNA | E242: Accu | F242: 315.00 | H242: 392 | I242: 384.00 | J242: Profit of Rs.77/- | K242: 77.00 | L242: 24.44% | M242: Successful | N242: 2017-10-09
A243: 100 | B243: 2017-10-05 | D243: NOCIL | E243: Accu | F243: 145.00 | H243: 179 | I243: 180.00 | J243: Profit of Rs.34/- | K243: 34.00 | L243: 23.45% | M243: Successful | N243: 2017-10-17
A244: 101 | B244: 2017-10-06 | D244: CENTURYPLY | E244: Accu | F244: 256.00 | H244: 323 | I244: 320.00 | J244: Target Achieved | K244: 67.00 | L244: 26.17% | M244: Successful | N244: 2017-11-28
A245: 102 | B245: 2017-10-09 | D245: EIHOTEL | E245: Accu | F245: 137.50 | H245: 184 | I245: 183.00 | J245: Profit of Rs.46.5/- | K245: 46.50 | L245: 33.82% | M245: Successful | N245: 2018-01-08
... 51 more rows

Sheet Sheet2 (hidden)
A1: SYMBOL | B1: SERIES | C1: OPEN | D1: HIGH | E1: LOW | F1: CLOSE | G1: LAST | H1: PREVCLOSE | I1: TOTTRDQTY | J1: TOTTRDVAL | K1: TIMESTAMP | L1: TOTALTRADES | M1: ISIN | N1: ISIN
A2: 20MICRONS | B2: EQ | C2: 38.45 | D2: 38.45 | E2: 36.65 | F2: 37.1 | G2: 37.4 | H2: 39.05 | I2: 101367 | J2: 3809072.4 | K2: 2019-11-08 | L2: 886 | M2: INE144J01027
A3: 21STCENMGM | B3: EQ | C3: 14 | D3: 14 | E3: 14 | F3: 14 | G3: 14 | H3: 14 | I3: 6 | J3: 84 | K3: 2019-11-08 | L3: 2 | M3: INE253B01015
A4: 3IINFOTECH | B4: EQ | C4: 1.95 | D4: 2 | E4: 1.95 | F4: 1.95 | G4: 2 | H4: 2 | I4: 859134 | J4: 1699724.7 | K4: 2019-11-08 | L4: 455 | M4: INE748C01020
A5: 3MINDIA | B5: EQ | C5: 22285.65 | D5: 22844 | E5: 22285.65 | F5: 22392.9 | G5: 22350 | H5: 22463.45 | I5: 1601 | J5: 36182186.45 | K5: 2019-11-08 | L5: 787 | M5: INE470A01017
A6: 3PLAND | B6: EQ | C6: 6.3 | D6: 6.3 | E6: 6.3 | F6: 6.3 | G6: 6.3 | H6: 6.3 | I6: 3 | J6: 18.9 | K6: 2019-11-08 | L6: 1 | M6: INE105C01023
A7: 5PAISA | B7: EQ | C7: 169.45 | D7: 169.5 | E7: 165.1 | F7: 165.85 | G7: 168 | H7: 167.35 | I7: 4080 | J7: 682729.7 | K7: 2019-11-08 | L7: 177 | M7: INE618L01018
A8: 63MOONS | B8: EQ | C8: 117.9 | D8: 119.65 | E8: 115 | F8: 115.85 | G8: 115.9 | H8: 118.2 | I8: 85270 | J8: 9998494.55 | K8: 2019-11-08 | L8: 1122 | M8: INE111B01023
A9: A2ZINFRA | B9: EQ | C9: 9.85 | D9: 10.3 | E9: 9.6 | F9: 10.05 | G9: 10.05 | H9: 9.7 | I9: 354119 | J9: 3568827.6 | K9: 2019-11-08 | L9: 661 | M9: INE619I01012
A10: AARTIDRUGS | B10: EQ | C10: 528 | D10: 537.85 | E10: 515.95 | F10: 518.85 | G10: 520 | H10: 523.1 | I10: 18692 | J10: 9837991.05 | K10: 2019-11-08 | L10: 1542 | M10: INE767A01016
A11: AARTIIND | B11: EQ | C11: 819.9 | D11: 822.4 | E11: 808.1 | F11: 812.2 | G11: 811.1 | H11: 819.55 | I11: 51620 | J11: 42085725.25 | K11: 2019-11-08 | L11: 3141 | M11: INE769A01020
A12: AARVEEDEN | B12: EQ | C12: 13.75 | D12: 14.2 | E12: 13.7 | F12: 14.05 | G12: 14.05 | H12: 13.75 | I12: 3816 | J12: 53210.45 | K12: 2019-11-08 | L12: 34 | M12: INE273D01019
A13: AAVAS | B13: EQ | C13: 1556 | D13: 1601 | E13: 1520 | F13: 1564.2 | G13: 1570 | H13: 1545.2 | I13: 181039 | J13: 288846891.6 | K13: 2019-11-08 | L13: 4058 | M13: INE216P01012
A14: ABAN | B14: BE | C14: 31 | D14: 32.85 | E14: 30.6 | F14: 31 | G14: 31 | H14: 32.2 | I14: 60639 | J14: 1866606.9 | K14: 2019-11-08 | L14: 370 | M14: INE421A01028
A15: ABB | B15: EQ | C15: 1474.5 | D15: 1479.9 | E15: 1441.65 | F15: 1462.7 | G15: 1470 | H15: 1482.75 | I15: 73375 | J15: 107088201 | K15: 2019-11-08 | L15: 4817 | M15: INE117A01022
A16: ABBOTINDIA | B16: EQ | C16: 11700 | D16: 11711 | E16: 11400 | F16: 11502.95 | G16: 11410 | H16: 11695.25 | I16: 5622 | J16: 65154854.55 | K16: 2019-11-08 | L16: 1821 | M16: INE358A01014
A17: ABCAPITAL | B17: EQ | C17: 85.6 | D17: 88.6 | E17: 85.6 | F17: 86.85 | G17: 86.85 | H17: 84.7 | I17: 6258041 | J17: 545890906.4 | K17: 2019-11-08 | L17: 35698 | M17: INE674K01013
A18: ABFRL | B18: EQ | C18: 200.5 | D18: 227.7 | E18: 200.5 | F18: 204.6 | G18: 205.5 | H18: 202.5 | I18: 468140 | J18: 97467117.1 | K18: 2019-11-08 | L18: 9092 | M18: INE647O01011
A19: ABSLBANETF | B19: EQ | C19: 308 | D19: 308 | E19: 308 | F19: 308 | G19: 308 | H19: 308 | I19: 49 | J19: 15092 | K19: 2019-11-08 | L19: 2 | M19: INF209KB1O58
A20: ABSLNN50ET | B20: EQ | C20: 288.74 | D20: 288.74 | E20: 288.74 | F20: 288.74 | G20: 288.74 | H20: 287.57 | I20: 88 | J20: 25409.12 | K20: 2019-11-08 | L20: 1 | M20: INF209KB1B87
A21: ACC | B21: EQ | C21: 1526.8 | D21: 1544 | E21: 1499.05 | F21: 1506.4 | G21: 1502 | H21: 1527.15 | I21: 635287 | J21: 968240342.3 | K21: 2019-11-08 | L21: 22465 | M21: INE012A01025
A22: ACCELYA | B22: EQ | C22: 955.5 | D22: 969 | E22: 950 | F22: 964.8 | G22: 967 | H22: 955.5 | I22: 3883 | J22: 3738272.8 | K22: 2019-11-08 | L22: 413 | M22: INE793A01012
A23: ACE | B23: EQ | C23: 88.25 | D23: 88.35 | E23: 84.95 | F23: 85.15 | G23: 85.1 | H23: 88.4 | I23: 146900 | J23: 12633306.35 | K23: 2019-11-08 | L23: 1594 | M23: INE731H01025
A24: ADANIENT | B24: EQ | C24: 208.7 | D24: 212 | E24: 206.2 | F24: 208.05 | G24: 207.25 | H24: 209.15 | I24: 4057743 | J24: 850681983.5 | K24: 2019-11-08 | L24: 23951 | M24: INE423A01024
A25: ADANIGAS | B25: EQ | C25: 147.45 | D25: 148.7 | E25: 146.6 | F25: 146.8 | G25: 147.05 | H25: 147.35 | I25: 557647 | J25: 82290242.3 | K25: 2019-11-08 | L25: 4007 | M25: INE399L01023
A26: ADANIGREEN | B26: EQ | C26: 88.8 | D26: 89.6 | E26: 83.6 | F26: 86.7 | G26: 86.8 | H26: 88.7 | I26: 1403419 | J26: 121969637.7 | K26: 2019-11-08 | L26: 8262 | M26: INE364U01010
A27: ADANIPORTS | B27: EQ | C27: 391.2 | D27: 391.2 | E27: 385.5 | F27: 386.15 | G27: 385.5 | H27: 390.45 | I27: 1206504 | J27: 469297176.1 | K27: 2019-11-08 | L27: 16064 | M27: INE742F01042
A28: ADANIPOWER | B28: EQ | C28: 70.3 | D28: 72.1 | E28: 68.3 | F28: 68.7 | G28: 68.35 | H28: 70.55 | I28: 8559882 | J28: 601929720.9 | K28: 2019-11-08 | L28: 22712 | M28: INE814H01011
A29: ADANITRANS | B29: EQ | C29: 301 | D29: 304.9 | E29: 285 | F29: 286.85 | G29: 286 | H29: 298.55 | I29: 664417 | J29: 196254416.8 | K29: 2019-11-08 | L29: 11192 | M29: INE931S01010
A30: ADFFOODS | B30: EQ | C30: 307 | D30: 316.4 | E30: 298.1 | F30: 300.85 | G30: 301.65 | H30: 308.35 | I30: 107698 | J30: 33199385 | K30: 2019-11-08 | L30: 2867 | M30: INE982B01019
A31: ADHUNIKIND | B31: EQ | C31: 118.1 | D31: 120.5 | E31: 113.5 | F31: 115.35 | G31: 114.65 | H31: 118.2 | I31: 84244 | J31: 9898142.65 | K31: 2019-11-08 | L31: 1402 | M31: INE452L01012
A32: ADLABS | B32: BE | C32: 3.15 | D32: 3.15 | E32: 3.15 | F32: 3.15 | G32: 3.15 | H32: 3 | I32: 10405 | J32: 32775.75 | K32: 2019-11-08 | L32: 21 | M32: INE172N01012
A33: ADORWELD | B33: EQ | C33: 319.4 | D33: 321 | E33: 311.1 | F33: 312.8 | G33: 312 | H33: 315.5 | I33: 5946 | J33: 1868451.15 | K33: 2019-11-08 | L33: 296 | M33: INE045A01017
A34: ADROITINFO | B34: BE | C34: 8.2 | D34: 8.85 | E34: 8.2 | F34: 8.75 | G34: 8.75 | H34: 8.45 | I34: 908 | J34: 7798.6 | K34: 2019-11-08 | L34: 16 | M34: INE737B01033
A35: ADSL | B35: EQ | C35: 15 | D35: 15.4 | E35: 14.7 | F35: 15 | G35: 15 | H35: 15.05 | I35: 23485 | J35: 350871.05 | K35: 2019-11-08 | L35: 74 | M35: INE102I01027
A36: ADVANIHOTR | B36: EQ | C36: 57.45 | D36: 58.9 | E36: 57 | F36: 57.85 | G36: 57.95 | H36: 58.15 | I36: 4040 | J36: 232571.5 | K36: 2019-11-08 | L36: 69 | M36: INE199C01026
A37: ADVENZYMES | B37: EQ | C37: 178 | D37: 182.85 | E37: 178 | F37: 178.1 | G37: 178.25 | H37: 178.6 | I37: 87400 | J37: 15682148.35 | K37: 2019-11-08 | L37: 2601 | M37: INE837H01020
A38: AEGISCHEM | B38: EQ | C38: 168.9 | D38: 169.1 | E38: 162.6 | F38: 163.45 | G38: 163.95 | H38: 168.05 | I38: 158869 | J38: 26245505 | K38: 2019-11-08 | L38: 3329 | M38: INE208C01025
A39: AFFLE | B39: EQ | C39: 1388 | D39: 1428 | E39: 1366.3 | F39: 1395.75 | G39: 1400 | H39: 1356.35 | I39: 273487 | J39: 383282911 | K39: 2019-11-08 | L39: 17148 | M39: INE00WC01019
A40: AGARIND | B40: EQ | C40: 119.9 | D40: 119.9 | E40: 113.1 | F40: 114.95 | G40: 114.65 | H40: 116.9 | I40: 2959 | J40: 340474.8 | K40: 2019-11-08 | L40: 48 | M40: INE204E01012
A41: AGCNET | B41: BE | C41: 112.15 | D41: 122.5 | E41: 112.15 | F41: 119.95 | G41: 120 | H41: 116.8 | I41: 2731 | J41: 324279.65 | K41: 2019-11-08 | L41: 24 | M41: INE676A01019
A42: AGRITECH | B42: EQ | C42: 46.95 | D42: 47.75 | E42: 46.15 | F42: 46.7 | G42: 46.9 | H42: 46.65 | I42: 7940 | J42: 372497.25 | K42: 2019-11-08 | L42: 275 | M42: INE449G01018
A43: AGROPHOS | B43: EQ | C43: 120 | D43: 121.1 | E43: 119.75 | F43: 120.8 | G43: 120.8 | H43: 119.15 | I43: 861237 | J43: 103862646.6 | K43: 2019-11-08 | L43: 47533 | M43: INE740V01019
A44: AHLEAST | B44: EQ | C44: 196 | D44: 196.95 | E44: 180.95 | F44: 181 | G44: 181 | H44: 184.8 | I44: 1175 | J44: 213676.8 | K44: 2019-11-08 | L44: 87 | M44: INE926K01017
A45: AHLUCONT | B45: EQ | C45: 300.5 | D45: 304.35 | E45: 296.85 | F45: 300.75 | G45: 303.8 | H45: 299.7 | I45: 12699 | J45: 3807036.15 | K45: 2019-11-08 | L45: 1500 | M45: INE758C01029
A46: AHLWEST | B46: EQ | C46: 273 | D46: 285.05 | E46: 268 | F46: 270 | G46: 268 | H46: 271.95 | I46: 371 | J46: 102942.05 | K46: 2019-11-08 | L46: 171 | M46: INE915K01010
A47: AIAENG | B47: EQ | C47: 1676.2 | D47: 1702 | E47: 1670 | F47: 1686 | G47: 1698 | H47: 1692.7 | I47: 33519 | J47: 56302597.85 | K47: 2019-11-08 | L47: 1244 | M47: INE212H01026
A48: AIONJSW | B48: EQ | C48: 9.9 | D48: 10.15 | E48: 9.8 | F48: 9.9 | G48: 10 | H48: 10 | I48: 112202 | J48: 1121695.55 | K48: 2019-11-08 | L48: 421 | M48: INE743C01021
A49: AIRAN | B49: EQ | C49: 11.8 | D49: 12.1 | E49: 11 | F49: 11.25 | G49: 11.9 | H49: 11.55 | I49: 81982 | J49: 947678.55 | K49: 2019-11-08 | L49: 167 | M49: INE645W01026
A50: AJANTPHARM | B50: EQ | C50: 991.2 | D50: 1003 | E50: 985 | F50: 988.8 | G50: 986 | H50: 991.3 | I50: 91434 | J50: 90936960.75 | K50: 2019-11-08 | L50: 7299 | M50: INE031B01049
A51: AJMERA | B51: EQ | C51: 135 | D51: 135 | E51: 128.2 | F51: 130.35 | G51: 130 | H51: 136.3 | I51: 80671 | J51: 10567761.7 | K51: 2019-11-08 | L51: 1905 | M51: INE298G01027
A52: AKASH | B52: EQ | C52: 62.55 | D52: 63.25 | E52: 62 | F52: 63.2 | G52: 63.2 | H52: 62.5 | I52: 2205 | J52: 138213.75 | K52: 2019-11-08 | L52: 9 | M52: INE737W01013
A53: AKSHARCHEM | B53: EQ | C53: 214.9 | D53: 216 | E53: 211 | F53: 214 | G53: 216 | H53: 215 | I53: 2253 | J53: 481854.65 | K53: 2019-11-08 | L53: 228 | M53: INE542B01011
A54: AKSHOPTFBR | B54: EQ | C54: 7.55 | D54: 7.55 | E54: 7.35 | F54: 7.5 | G54: 7.5 | H54: 7.55 | I54: 152548 | J54: 1137233.15 | K54: 2019-11-08 | L54: 363 | M54: INE523B01011
A55: AKZOINDIA | B55: EQ | C55: 2222 | D55: 2238.95 | E55: 2125.1 | F55: 2152.7 | G55: 2140 | H55: 2186.2 | I55: 15021 | J55: 32550173.85 | K55: 2019-11-08 | L55: 1718 | M55: INE133A01011
A56: ALANKIT | B56: EQ | C56: 16 | D56: 16 | E56: 14.85 | F56: 14.85 | G56: 14.85 | H56: 15.6 | I56: 73397 | J56: 1108059 | K56: 2019-11-08 | L56: 259 | M56: INE914E01040
A57: ALBERTDAVD | B57: EQ | C57: 402 | D57: 409 | E57: 393.2 | F57: 402.4 | G57: 406.95 | H57: 403.95 | I57: 1821 | J57: 730636.25 | K57: 2019-11-08 | L57: 213 | M57: INE155C01010
A58: ALBK | B58: EQ | C58: 27.25 | D58: 27.6 | E58: 24 | F58: 25.95 | G58: 26.05 | H58: 27 | I58: 6214896 | J58: 158282638.7 | K58: 2019-11-08 | L58: 16941 | M58: INE428A01015
A59: ALCHEM | B59: BE | C59: 0.85 | D59: 0.85 | E59: 0.85 | F59: 0.85 | G59: 0.85 | H59: 0.85 | I59: 1500 | J59: 1275 | K59: 2019-11-08 | L59: 3 | M59: INE964B01033
A60: ALEMBICLTD | B60: EQ | C60: 49 | D60: 50.4 | E60: 48.2 | F60: 49.95 | G60: 50.1 | H60: 48.75 | I60: 122492 | J60: 6076378.05 | K60: 2019-11-08 | L60: 1160 | M60: INE426A01027
A61: ALICON | B61: EQ | C61: 385.45 | D61: 389.95 | E61: 382 | F61: 385.85 | G61: 386 | H61: 389 | I61: 1597 | J61: 614667.35 | K61: 2019-11-08 | L61: 48 | M61: INE062D01024
A62: ALKALI | B62: EQ | C62: 52.95 | D62: 53.75 | E62: 51.1 | F62: 52.45 | G62: 52.6 | H62: 52.75 | I62: 15012 | J62: 793229.15 | K62: 2019-11-08 | L62: 261 | M62: INE773I01017
A63: ALKEM | B63: EQ | C63: 2005.1 | D63: 2048.3 | E63: 2005.1 | F63: 2034.25 | G63: 2037 | H63: 2006.95 | I63: 10123 | J63: 20519490.8 | K63: 2019-11-08 | L63: 1308 | M63: INE540L01014
A64: ALKYLAMINE | B64: EQ | C64: 1003.9 | D64: 1074.95 | E64: 992.3 | F64: 1015.2 | G64: 1016 | H64: 998.65 | I64: 69784 | J64: 72410991.8 | K64: 2019-11-08 | L64: 6672 | M64: INE150B01021
A65: ALLCARGO | B65: EQ | C65: 106.65 | D65: 108.3 | E65: 100.5 | F65: 101.75 | G65: 102.5 | H65: 106.6 | I65: 166617 | J65: 17285054.65 | K65: 2019-11-08 | L65: 3086 | M65: INE418H01029
A66: ALLSEC | B66: EQ | C66: 284.9 | D66: 287.7 | E66: 281.95 | F66: 283.35 | G66: 287 | H66: 282.7 | I66: 812 | J66: 231041.3 | K66: 2019-11-08 | L66: 174 | M66: INE835G01018
A67: ALOKTEXT | B67: EQ | C67: 1.8 | D67: 1.8 | E67: 1.75 | F67: 1.8 | G67: 1.8 | H67: 1.75 | I67: 2563395 | J67: 4611576.95 | K67: 2019-11-08 | L67: 1234 | M67: INE270A01011
A68: ALPA | B68: EQ | C68: 18 | D68: 18.2 | E68: 17 | F68: 17.5 | G68: 17.7 | H68: 17.7 | I68: 34443 | J68: 610958.2 | K68: 2019-11-08 | L68: 234 | M68: INE385I01010
A69: ALPHAGEO | B69: EQ | C69: 188 | D69: 193.2 | E69: 183.2 | F69: 184.6 | G69: 186 | H69: 188.8 | I69: 10575 | J69: 1988670.85 | K69: 2019-11-08 | L69: 374 | M69: INE137C01018
A70: ALPSINDUS | B70: BE | C70: 0.5 | D70: 0.55 | E70: 0.5 | F70: 0.55 | G70: 0.55 | H70: 0.5 | I70: 37701 | J70: 19133 | K70: 2019-11-08 | L70: 16 | M70: INE093B01015
A71: AMARAJABAT | B71: EQ | C71: 664 | D71: 674.2 | E71: 650.5 | F71: 654.2 | G71: 655.75 | H71: 662.5 | I71: 374273 | J71: 249176412 | K71: 2019-11-08 | L71: 10208 | M71: INE885A01032
A72: AMBER | B72: EQ | C72: 1020 | D72: 1025.35 | E72: 965 | F72: 976.05 | G72: 968 | H72: 999.55 | I72: 173715 | J72: 173509167.9 | K72: 2019-11-08 | L72: 10268 | M72: INE371P01015
A73: AMBIKCO | B73: EQ | C73: 891.45 | D73: 908.95 | E73: 856 | F73: 864.3 | G73: 878.95 | H73: 899.05 | I73: 9425 | J73: 8340040.1 | K73: 2019-11-08 | L73: 1032 | M73: INE540G01014
A74: AMBUJACEM | B74: EQ | C74: 203.2 | D74: 204.9 | E74: 200 | F74: 202.25 | G74: 200.05 | H74: 203.2 | I74: 2181870 | J74: 441764329.8 | K74: 2019-11-08 | L74: 12193 | M74: INE079A01024
A75: AMDIND | B75: EQ | C75: 18.5 | D75: 19.95 | E75: 17.55 | F75: 19.75 | G75: 19.6 | H75: 19.2 | I75: 44477 | J75: 858171.5 | K75: 2019-11-08 | L75: 167 | M75: INE005I01014
A76: AMJLAND | B76: EQ | C76: 19.4 | D76: 19.4 | E76: 18.25 | F76: 18.95 | G76: 18.75 | H76: 19.1 | I76: 16469 | J76: 307478.8 | K76: 2019-11-08 | L76: 122 | M76: INE606A01024
A77: AMRUTANJAN | B77: EQ | C77: 490 | D77: 497.85 | E77: 482.5 | F77: 492 | G77: 488 | H77: 488 | I77: 86243 | J77: 42430849.1 | K77: 2019-11-08 | L77: 3843 | M77: INE098F01031
A78: ANANTRAJ | B78: EQ | C78: 33.7 | D78: 33.7 | E78: 33 | F78: 33.05 | G78: 33.1 | H78: 33.25 | I78: 159878 | J78: 5310525.95 | K78: 2019-11-08 | L78: 654 | M78: INE242C01024
A79: ANDHRABANK | B79: EQ | C79: 19.1 | D79: 19.15 | E79: 17.55 | F79: 18.05 | G79: 17.9 | H79: 18.65 | I79: 1638044 | J79: 30140930.6 | K79: 2019-11-08 | L79: 4121 | M79: INE434A01013
A80: ANDHRACEMT | B80: BE | C80: 2.85 | D80: 2.85 | E80: 2.75 | F80: 2.8 | G80: 2.8 | H80: 2.75 | I80: 25207 | J80: 71307.75 | K80: 2019-11-08 | L80: 84 | M80: INE666E01012
A81: ANDHRSUGAR | B81: EQ | C81: 295.4 | D81: 295.4 | E81: 286.25 | F81: 290.1 | G81: 290.05 | H81: 278.65 | I81: 170500 | J81: 49554965.3 | K81: 2019-11-08 | L81: 5223 | M81: INE715B01013
A82: ANIKINDS | B82: BE | C82: 9 | D82: 9.45 | E82: 9 | F82: 9.45 | G82: 9.45 | H82: 9 | I82: 3365 | J82: 31203.5 | K82: 2019-11-08 | L82: 26 | M82: INE087B01017
A83: ANKITMETAL | B83: BE | C83: 0.5 | D83: 0.55 | E83: 0.5 | F83: 0.5 | G83: 0.5 | H83: 0.5 | I83: 27632 | J83: 14816 | K83: 2019-11-08 | L83: 17 | M83: INE106I01010
A84: ANSALAPI | B84: EQ | C84: 5.55 | D84: 5.55 | E84: 5.55 | F84: 5.55 | G84: 5.55 | H84: 5.3 | I84: 23891 | J84: 132595.05 | K84: 2019-11-08 | L84: 35 | M84: INE436A01026
A85: ANSALHSG | B85: EQ | C85: 7.7 | D85: 8.35 | E85: 7.6 | F85: 8.35 | G85: 8.35 | H85: 7.6 | I85: 922989 | J85: 7540354.4 | K85: 2019-11-08 | L85: 1416 | M85: INE880B01015
A86: ANTGRAPHIC | B86: BE | C86: 0.6 | D86: 0.7 | E86: 0.6 | F86: 0.7 | G86: 0.6 | H86: 0.65 | I86: 36937 | J86: 23232.25 | K86: 2019-11-08 | L86: 39 | M86: INE414B01021
A87: ANUP | B87: EQ | C87: 475.15 | D87: 548 | E87: 475.15 | F87: 512.8 | G87: 516 | H87: 481.1 | I87: 47794 | J87: 24794927.1 | K87: 2019-11-08 | L87: 2757 | M87: INE294Z01018
A88: APARINDS | B88: EQ | C88: 546.75 | D88: 546.75 | E88: 516.05 | F88: 519.7 | G88: 520.9 | H88: 549.6 | I88: 9634 | J88: 5054890.85 | K88: 2019-11-08 | L88: 939 | M88: INE372A01015
A89: APCL | B89: EQ | C89: 162 | D89: 162.95 | E89: 147.55 | F89: 157.15 | G89: 158.8 | H89: 161 | I89: 23928 | J89: 3665881.3 | K89: 2019-11-08 | L89: 889 | M89: INE071F01012
A90: APCOTEXIND | B90: EQ | C90: 165 | D90: 166.95 | E90: 164.65 | F90: 166.05 | G90: 166 | H90: 165.55 | I90: 12046 | J90: 1999928.9 | K90: 2019-11-08 | L90: 338 | M90: INE116A01032
A91: APEX | B91: EQ | C91: 286 | D91: 329 | E91: 281 | F91: 315.95 | G91: 312.95 | H91: 279.75 | I91: 2099510 | J91: 657346660.3 | K91: 2019-11-08 | L91: 39237 | M91: INE346W01013
A92: APLAPOLLO | B92: EQ | C92: 1469.45 | D92: 1486 | E92: 1426.45 | F92: 1438.55 | G92: 1448.5 | H92: 1454.15 | I92: 10272 | J92: 14949410.2 | K92: 2019-11-08 | L92: 1330 | M92: INE702C01019
A93: APLLTD | B93: EQ | C93: 577.25 | D93: 586.45 | E93: 571.3 | F93: 577.05 | G93: 576 | H93: 576.45 | I93: 82911 | J93: 48064324.85 | K93: 2019-11-08 | L93: 1960 | M93: INE901L01018
A94: APOLLO | B94: EQ | C94: 82.1 | D94: 91 | E94: 81 | F94: 82.25 | G94: 82.7 | H94: 82.15 | I94: 153564 | J94: 13239158.25 | K94: 2019-11-08 | L94: 2153 | M94: INE713T01010
A95: APOLLOHOSP | B95: EQ | C95: 1467.9 | D95: 1467.9 | E95: 1415 | F95: 1418.6 | G95: 1421 | H95: 1463.9 | I95: 504630 | J95: 726392028.2 | K95: 2019-11-08 | L95: 23231 | M95: INE437A01024
A96: APOLLOTYRE | B96: EQ | C96: 167 | D96: 168.8 | E96: 164.5 | F96: 165.15 | G96: 164.85 | H96: 167 | I96: 2566305 | J96: 428911519.4 | K96: 2019-11-08 | L96: 20574 | M96: INE438A01022
A97: APOLSINHOT | B97: EQ | C97: 791 | D97: 801.9 | E97: 791 | F97: 801.9 | G97: 801.9 | H97: 796.8 | I97: 868 | J97: 691528.7 | K97: 2019-11-08 | L97: 42 | M97: INE451F01024
A98: APTECHT | B98: EQ | C98: 169.05 | D98: 175.8 | E98: 169.05 | F98: 171.15 | G98: 171.2 | H98: 170.55 | I98: 200747 | J98: 34674133.45 | K98: 2019-11-08 | L98: 3687 | M98: INE266F01018
A99: ARCHIDPLY | B99: EQ | C99: 28.5 | D99: 30.25 | E99: 27.9 | F99: 28.35 | G99: 28 | H99: 29.3 | I99: 12783 | J99: 373764.35 | K99: 2019-11-08 | L99: 248 | M99: INE877I01016
A100: ARCHIES | B100: BE | C100: 19.6 | D100: 19.6 | E100: 19 | F100: 19.2 | G100: 19 | H100: 19.35 | I100: 15836 | J100: 303844.35 | K100: 2019-11-08 | L100: 73 | M100: INE731A01020
A101: ARCOTECH | B101: BE | C101: 2.1 | D101: 2.1 | E101: 2.1 | F101: 2.1 | G101: 2.1 | H101: 2 | I101: 4968 | J101: 10432.8 | K101: 2019-11-08 | L101: 15 | M101: INE574I01035
A102: ARIES | B102: EQ | C102: 63 | D102: 65 | E102: 62.95 | F102: 64.35 | G102: 65 | H102: 64.35 | I102: 17175 | J102: 1095577 | K102: 2019-11-08 | L102: 340 | M102: INE298I01015
A103: ARIHANT | B103: EQ | C103: 25.4 | D103: 27.75 | E103: 25 | F103: 27.75 | G103: 27.75 | H103: 23.15 | I103: 62039 | J103: 1679272.6 | K103: 2019-11-08 | L103: 778 | M103: INE413D01011
A104: ARIHANTSUP | B104: BE | C104: 27.7 | D104: 27.7 | E104: 25.2 | F104: 26.6 | G104: 27.2 | H104: 26.5 | I104: 104900 | J104: 2818716.4 | K104: 2019-11-08 | L104: 57 | M104: INE643K01018
A105: ARMANFIN | B105: EQ | C105: 565 | D105: 576 | E105: 556.05 | F105: 564.25 | G105: 563 | H105: 567.15 | I105: 1513 | J105: 861717.5 | K105: 2019-11-08 | L105: 135 | M105: INE109C01017
A106: AROGRANITE | B106: EQ | C106: 40.45 | D106: 40.85 | E106: 39.1 | F106: 39.65 | G106: 39.65 | H106: 39.7 | I106: 1938 | J106: 76968.5 | K106: 2019-11-08 | L106: 74 | M106: INE210C01013
A107: ARROWGREEN | B107: EQ | C107: 54.3 | D107: 54.3 | E107: 51.1 | F107: 52.15 | G107: 53.2 | H107: 53.05 | I107: 4421 | J107: 230232.55 | K107: 2019-11-08 | L107: 129 | M107: INE570D01018
A108: ARROWTEX | B108: EQ | C108: 13.3 | D108: 14 | E108: 12.45 | F108: 12.85 | G108: 12.9 | H108: 12.2 | I108: 115862 | J108: 1522966.3 | K108: 2019-11-08 | L108: 892 | M108: INE933J01015
A109: ARSHIYA | B109: EQ | C109: 18 | D109: 18.9 | E109: 17.3 | F109: 17.95 | G109: 17.3 | H109: 18 | I109: 57351 | J109: 1066727.95 | K109: 2019-11-08 | L109: 393 | M109: INE968D01022
A110: ARSSINFRA | B110: EQ | C110: 25.45 | D110: 25.45 | E110: 24.6 | F110: 24.75 | G110: 24.95 | H110: 25 | I110: 3339 | J110: 82701.7 | K110: 2019-11-08 | L110: 33 | M110: INE267I01010
A111: ARVIND | B111: EQ | C111: 51.4 | D111: 53.8 | E111: 50.6 | F111: 52.5 | G111: 52.5 | H111: 51.5 | I111: 2298321 | J111: 120969686.3 | K111: 2019-11-08 | L111: 14156 | M111: INE034A01011
A112: ARVINDFASN | B112: EQ | C112: 427 | D112: 434 | E112: 422.15 | F112: 425.35 | G112: 422.15 | H112: 431.5 | I112: 43651 | J112: 18731970.65 | K112: 2019-11-08 | L112: 9228 | M112: INE955V01021
A113: ARVSMART | B113: EQ | C113: 102.65 | D113: 103.8 | E113: 100.5 | F113: 101.2 | G113: 101 | H113: 101.75 | I113: 8302 | J113: 847459.8 | K113: 2019-11-08 | L113: 461 | M113: INE034S01021
A114: ASAHIINDIA | B114: EQ | C114: 196.25 | D114: 199.4 | E114: 189.1 | F114: 190.55 | G114: 191.65 | H114: 195.05 | I114: 12766 | J114: 2469812 | K114: 2019-11-08 | L114: 440 | M114: INE439A01020
A115: ASAHISONG | B115: EQ | C115: 155.5 | D115: 155.95 | E115: 148.1 | F115: 150.05 | G115: 148.5 | H115: 152.8 | I115: 2817 | J115: 429995.25 | K115: 2019-11-08 | L115: 158 | M115: INE228I01012
A116: ASAL | B116: EQ | C116: 34.25 | D116: 34.25 | E116: 32.4 | F116: 32.7 | G116: 32.55 | H116: 33.3 | I116: 11312 | J116: 371977.9 | K116: 2019-11-08 | L116: 83 | M116: INE900C01027
A117: ASHAPURMIN | B117: BE | C117: 28 | D117: 30 | E117: 27.55 | F117: 27.6 | G117: 27.7 | H117: 29 | I117: 64226 | J117: 1783367.8 | K117: 2019-11-08 | L117: 281 | M117: INE348A01023
A118: ASHIANA | B118: EQ | C118: 100 | D118: 101.8 | E118: 99.05 | F118: 99.65 | G118: 99.05 | H118: 101.8 | I118: 14529 | J118: 1458858.4 | K118: 2019-11-08 | L118: 312 | M118: INE365D01021
A119: ASHIMASYN | B119: EQ | C119: 7.75 | D119: 7.95 | E119: 7.55 | F119: 7.85 | G119: 7.9 | H119: 7.75 | I119: 20012 | J119: 155479 | K119: 2019-11-08 | L119: 112 | M119: INE440A01010
A120: ASHOKA | B120: EQ | C120: 96.4 | D120: 97.9 | E120: 96.3 | F120: 96.95 | G120: 97.25 | H120: 97.1 | I120: 185677 | J120: 18003223.35 | K120: 2019-11-08 | L120: 3161 | M120: INE442H01029
A121: ASHOKLEY | B121: EQ | C121: 76.05 | D121: 79.25 | E121: 75.7 | F121: 76.55 | G121: 76.15 | H121: 76.7 | I121: 28384175 | J121: 2198744257 | K121: 2019-11-08 | L121: 85462 | M121: INE208A01029
A122: ASIANHOTNR | B122: EQ | C122: 105 | D122: 105.4 | E122: 100 | F122: 100 | G122: 100 | H122: 101.9 | I122: 732 | J122: 74425.45 | K122: 2019-11-08 | L122: 102 | M122: INE363A01022
A123: ASIANPAINT | B123: EQ | C123: 1826 | D123: 1826.8 | E123: 1790.8 | F123: 1794.85 | G123: 1790.8 | H123: 1826.95 | I123: 1077136 | J123: 1943964125 | K123: 2019-11-08 | L123: 78960 | M123: INE021A01026
A124: ASIANTILES | B124: EQ | C124: 227 | D124: 228.8 | E124: 224.1 | F124: 225.2 | G124: 224.1 | H124: 229.25 | I124: 23069 | J124: 5228877.45 | K124: 2019-11-08 | L124: 2195 | M124: INE022I01019
A125: ASPINWALL | B125: EQ | C125: 144 | D125: 148 | E125: 144 | F125: 144 | G125: 144 | H125: 144 | I125: 498 | J125: 71732.1 | K125: 2019-11-08 | L125: 7 | M125: INE991I01015
A126: ASTEC | B126: EQ | C126: 356 | D126: 361 | E126: 356 | F126: 359.7 | G126: 359.7 | H126: 359.9 | I126: 7118 | J126: 2557305.05 | K126: 2019-11-08 | L126: 175 | M126: INE563J01010
A127: ASTERDM | B127: EQ | C127: 139 | D127: 146.5 | E127: 138 | F127: 144.75 | G127: 145 | H127: 140.95 | I127: 108944 | J127: 15587423.55 | K127: 2019-11-08 | L127: 3391 | M127: INE914M01019
A128: ASTRAL | B128: EQ | C128: 1097 | D128: 1115.25 | E128: 1091.1 | F128: 1103.95 | G128: 1093 | H128: 1090.45 | I128: 559316 | J128: 616622066 | K128: 2019-11-08 | L128: 12975 | M128: INE006I01046
A129: ASTRAMICRO | B129: EQ | C129: 76.05 | D129: 76.85 | E129: 75 | F129: 75.6 | G129: 75.4 | H129: 76.9 | I129: 58342 | J129: 4427096.6 | K129: 2019-11-08 | L129: 443 | M129: INE386C01029
A130: ASTRAZEN | B130: EQ | C130: 2509.25 | D130: 2538.2 | E130: 2480 | F130: 2492 | G130: 2484 | H130: 2495.1 | I130: 10006 | J130: 25191082.45 | K130: 2019-11-08 | L130: 1571 | M130: INE203A01020
A131: ASTRON | B131: EQ | C131: 39 | D131: 39 | E131: 39 | F131: 39 | G131: 39 | H131: 41.05 | I131: 171589 | J131: 6691971 | K131: 2019-11-08 | L131: 393 | M131: INE646X01014
A132: ATFL | B132: EQ | C132: 640 | D132: 642.5 | E132: 615.6 | F132: 623.6 | G132: 618 | H132: 634.5 | I132: 3836 | J132: 2407292.15 | K132: 2019-11-08 | L132: 500 | M132: INE209A01019
A133: ATLANTA | B133: BE | C133: 7.1 | D133: 7.4 | E133: 6.75 | F133: 7 | G133: 7 | H133: 7.1 | I133: 6289 | J133: 44033.55 | K133: 2019-11-08 | L133: 50 | M133: INE285H01022
A134: ATUL | B134: EQ | C134: 4225 | D134: 4258 | E134: 4191 | F134: 4202.7 | G134: 4191 | H134: 4225.65 | I134: 4894 | J134: 20601545.2 | K134: 2019-11-08 | L134: 974 | M134: INE100A01010
A135: ATULAUTO | B135: EQ | C135: 220.25 | D135: 224.35 | E135: 216.35 | F135: 217.55 | G135: 216.65 | H135: 220.1 | I135: 10219 | J135: 2244464.55 | K135: 2019-11-08 | L135: 527 | M135: INE951D01028
A136: AUBANK | B136: EQ | C136: 689 | D136: 697 | E136: 676 | F136: 689.5 | G136: 688.75 | H136: 685.1 | I136: 267306 | J136: 184673636.5 | K136: 2019-11-08 | L136: 10589 | M136: INE949L01017
A137: AURIONPRO | B137: EQ | C137: 79.5 | D137: 82 | E137: 77.1 | F137: 77.8 | G137: 77.2 | H137: 79.5 | I137: 3301 | J137: 261777.7 | K137: 2019-11-08 | L137: 205 | M137: INE132H01018
A138: AUROPHARMA | B138: EQ | C138: 452.6 | D138: 456.25 | E138: 436.5 | F138: 439.95 | G138: 439.65 | H138: 452 | I138: 3189184 | J138: 1424323524 | K138: 2019-11-08 | L138: 47232 | M138: INE406A01037
A139: AUSOMENT | B139: EQ | C139: 28.05 | D139: 28.95 | E139: 27.1 | F139: 27.75 | G139: 27.65 | H139: 28.65 | I139: 709 | J139: 19614.15 | K139: 2019-11-08 | L139: 84 | M139: INE218C01016
A140: AUTOAXLES | B140: EQ | C140: 853.85 | D140: 853.85 | E140: 827.1 | F140: 831.5 | G140: 831 | H140: 841.5 | I140: 8174 | J140: 6852990.25 | K140: 2019-11-08 | L140: 788 | M140: INE449A01011
A141: AUTOIND | B141: EQ | C141: 23.9 | D141: 24.3 | E141: 22.15 | F141: 22.6 | G141: 23.25 | H141: 23.9 | I141: 13931 | J141: 323394.2 | K141: 2019-11-08 | L141: 127 | M141: INE718H01014
A142: AUTOLITIND | B142: EQ | C142: 22.35 | D142: 23.45 | E142: 22.05 | F142: 22.65 | G142: 22.05 | H142: 22.7 | I142: 1155 | J142: 25892.85 | K142: 2019-11-08 | L142: 50 | M142: INE448A01013
A143: AVADHSUGAR | B143: EQ | C143: 260 | D143: 265 | E143: 258.05 | F143: 258.6 | G143: 258.35 | H143: 257.55 | I143: 112235 | J143: 29308763.6 | K143: 2019-11-08 | L143: 2126 | M143: INE349W01017
A144: AVANTIFEED | B144: EQ | C144: 516 | D144: 562 | E144: 504.5 | F144: 553.95 | G144: 559.9 | H144: 523.8 | I144: 2964706 | J144: 1610690314 | K144: 2019-11-08 | L144: 109789 | M144: INE871C01038
A145: AVTNPL | B145: EQ | C145: 24.8 | D145: 29.4 | E145: 24.2 | F145: 29.05 | G145: 29.2 | H145: 24.5 | I145: 708702 | J145: 20591781.1 | K145: 2019-11-08 | L145: 2192 | M145: INE488D01021
A146: AXISBANK | B146: EQ | C146: 735.9 | D146: 735.9 | E146: 722.8 | F146: 725.5 | G146: 725.4 | H146: 734.75 | I146: 7427196 | J146: 5424604453 | K146: 2019-11-08 | L146: 114812 | M146: INE238A01034
A147: AXISCADES | B147: EQ | C147: 72.9 | D147: 73.5 | E147: 70.7 | F147: 71.2 | G147: 71.5 | H147: 71.75 | I147: 112355 | J147: 8146093.1 | K147: 2019-11-08 | L147: 1178 | M147: INE555B01013
A148: AXISGOLD | B148: EQ | C148: 3360 | D148: 3369 | E148: 3324 | F148: 3333.6 | G148: 3330 | H148: 3369.55 | I148: 575 | J148: 1917885.2 | K148: 2019-11-08 | L148: 94 | M148: INF846K01347
A149: AXISNIFTY | B149: EQ | C149: 1230 | D149: 1239.31 | E149: 1225.9 | F149: 1228.59 | G149: 1228.59 | H149: 1231.99 | I149: 140 | J149: 172079.16 | K149: 2019-11-08 | L149: 15 | M149: INF846K01ZL0
A150: AYMSYNTEX | B150: EQ | C150: 31.05 | D150: 31.3 | E150: 30.15 | F150: 30.6 | G150: 30.6 | H150: 31 | I150: 1608 | J150: 49143.55 | K150: 2019-11-08 | L150: 27 | M150: INE193B01039
A151: BAGFILMS | B151: EQ | C151: 2 | D151: 2 | E151: 2 | F151: 2 | G151: 2 | H151: 1.95 | I151: 156277 | J151: 312554 | K151: 2019-11-08 | L151: 132 | M151: INE116D01028
A152: BAJAJ-AUTO | B152: EQ | C152: 3257.8 | D152: 3288.8 | E152: 3235.55 | F152: 3245.55 | G152: 3246.9 | H152: 3265.85 | I152: 483871 | J152: 1582608377 | K152: 2019-11-08 | L152: 26498 | M152: INE917I01010
A153: BAJAJCON | B153: EQ | C153: 255.7 | D153: 255.7 | E153: 249 | F153: 249.8 | G153: 249.05 | H153: 255.75 | I153: 146067 | J153: 36652518.85 | K153: 2019-11-08 | L153: 3396 | M153: INE933K01021
A154: BAJAJELEC | B154: EQ | C154: 339.9 | D154: 340 | E154: 323 | F154: 325.05 | G154: 324 | H154: 335.15 | I154: 276634 | J154: 91245552.55 | K154: 2019-11-08 | L154: 7458 | M154: INE193E01025
A155: BAJAJFINSV | B155: EQ | C155: 8795 | D155: 8950 | E155: 8750 | F155: 8818.85 | G155: 8812 | H155: 8832.9 | I155: 294904 | J155: 2610886066 | K155: 2019-11-08 | L155: 34977 | M155: INE918I01018
A156: BAJAJHIND | B156: EQ | C156: 7 | D156: 7.2 | E156: 6.9 | F156: 6.95 | G156: 7 | H156: 6.9 | I156: 906118 | J156: 6346247 | K156: 2019-11-08 | L156: 1058 | M156: INE306A01021
A157: BAJAJHLDNG | B157: EQ | C157: 3830 | D157: 3903.95 | E157: 3763.2 | F157: 3777.1 | G157: 3781 | H157: 3799.95 | I157: 34834 | J157: 133147441.1 | K157: 2019-11-08 | L157: 4541 | M157: INE118A01012
A158: BAJFINANCE | B158: EQ | C158: 4220 | D158: 4240 | E158: 4148 | F158: 4159.45 | G158: 4160 | H158: 4225.85 | I158: 1509693 | J158: 6332596181 | K158: 2019-11-08 | L158: 94208 | M158: INE296A01024
A159: BALAJITELE | B159: EQ | C159: 56.8 | D159: 58.2 | E159: 55.45 | F159: 56.4 | G159: 57 | H159: 56.4 | I159: 50184 | J159: 2850038 | K159: 2019-11-08 | L159: 568 | M159: INE794B01026
A160: BALAMINES | B160: EQ | C160: 378 | D160: 390 | E160: 374 | F160: 379.75 | G160: 375.35 | H160: 377.25 | I160: 68531 | J160: 26258220.95 | K160: 2019-11-08 | L160: 3908 | M160: INE050E01027
A161: BALAXI | B161: EQ | C161: 82 | D161: 82 | E161: 75.05 | F161: 75.55 | G161: 79.8 | H161: 78.35 | I161: 512 | J161: 39659.15 | K161: 2019-11-08 | L161: 42 | M161: INE618N01014
A162: BALKRISHNA | B162: BE | C162: 18.95 | D162: 19 | E162: 18.3 | F162: 18.35 | G162: 18.7 | H162: 18.4 | I162: 5135 | J162: 95421.4 | K162: 2019-11-08 | L162: 36 | M162: INE875R01011
A163: BALKRISIND | B163: EQ | C163: 869.9 | D163: 871 | E163: 845.45 | F163: 850.75 | G163: 849.5 | H163: 865.95 | I163: 135534 | J163: 116434708 | K163: 2019-11-08 | L163: 4802 | M163: INE787D01026
A164: BALLARPUR | B164: EQ | C164: 0.55 | D164: 0.55 | E164: 0.5 | F164: 0.5 | G164: 0.5 | H164: 0.55 | I164: 3578478 | J164: 1790443.85 | K164: 2019-11-08 | L164: 406 | M164: INE294A01037
A165: BALMLAWRIE | B165: EQ | C165: 198.35 | D165: 203.45 | E165: 197 | F165: 198.05 | G165: 199.65 | H165: 198.35 | I165: 93492 | J165: 18638253.2 | K165: 2019-11-08 | L165: 1818 | M165: INE164A01016
A166: BALPHARMA | B166: EQ | C166: 45.05 | D166: 48.9 | E166: 44.1 | F166: 46.8 | G166: 47 | H166: 45.4 | I166: 27912 | J166: 1331685.1 | K166: 2019-11-08 | L166: 681 | M166: INE083D01012
A167: BALRAMCHIN | B167: EQ | C167: 153.05 | D167: 154.4 | E167: 148 | F167: 149.5 | G167: 148.8 | H167: 152.75 | I167: 980459 | J167: 148798930.9 | K167: 2019-11-08 | L167: 18366 | M167: INE119A01028
A168: BANARBEADS | B168: EQ | C168: 33.5 | D168: 34.7 | E168: 33.2 | F168: 33.25 | G168: 33.2 | H168: 33.85 | I168: 1388 | J168: 47475.25 | K168: 2019-11-08 | L168: 31 | M168: INE655B01011
A169: BANARISUG | B169: EQ | C169: 1172 | D169: 1245 | E169: 1172 | F169: 1182.3 | G169: 1182 | H169: 1200 | I169: 386 | J169: 460080.8 | K169: 2019-11-08 | L169: 68 | M169: INE459A01010
A170: BANCOINDIA | B170: EQ | C170: 109.2 | D170: 111.75 | E170: 105.6 | F170: 106.8 | G170: 107.5 | H170: 110 | I170: 54373 | J170: 5928178.6 | K170: 2019-11-08 | L170: 1295 | M170: INE213C01025
A171: BANDHANBNK | B171: EQ | C171: 568 | D171: 574.25 | E171: 548.5 | F171: 550.8 | G171: 550.55 | H171: 568.6 | I171: 1979356 | J171: 1102413080 | K171: 2019-11-08 | L171: 161905 | M171: INE545U01014
A172: BANG | B172: EQ | C172: 17.1 | D172: 18 | E172: 17 | F172: 17.65 | G172: 17.35 | H172: 17.9 | I172: 2675 | J172: 47074.6 | K172: 2019-11-08 | L172: 99 | M172: INE863I01016
A173: BANKBARODA | B173: EQ | C173: 95.7 | D173: 97.15 | E173: 93.35 | F173: 93.8 | G173: 93.9 | H173: 96.2 | I173: 36265152 | J173: 3453379000 | K173: 2019-11-08 | L173: 89956 | M173: INE028A01039
A174: BANKBEES | B174: EQ | C174: 3120 | D174: 3168.9 | E174: 3120 | F174: 3141.19 | G174: 3147.18 | H174: 3128.67 | I174: 9192 | J174: 28922330.85 | K174: 2019-11-08 | L174: 940 | M174: INF732E01078
A175: BANKINDIA | B175: EQ | C175: 68 | D175: 69.2 | E175: 66.1 | F175: 66.45 | G175: 66.55 | H175: 68.75 | I175: 8076600 | J175: 548887763.3 | K175: 2019-11-08 | L175: 19091 | M175: INE084A01016
A176: BANSWRAS | B176: EQ | C176: 67.75 | D176: 74.5 | E176: 67.7 | F176: 73.75 | G176: 73.25 | H176: 69.6 | I176: 12360 | J176: 893883.55 | K176: 2019-11-08 | L176: 564 | M176: INE629D01012
A177: BARTRONICS | B177: BE | C177: 1.6 | D177: 1.6 | E177: 1.6 | F177: 1.6 | G177: 1.6 | H177: 1.55 | I177: 3458 | J177: 5532.8 | K177: 2019-11-08 | L177: 11 | M177: INE855F01034
A178: BASF | B178: EQ | C178: 963.05 | D178: 993.95 | E178: 941.9 | F178: 985.7 | G178: 985 | H178: 962.85 | I178: 23068 | J178: 22550742.1 | K178: 2019-11-08 | L178: 2877 | M178: INE373A01013
A179: BASML | B179: EQ | C179: 140 | D179: 140 | E179: 135.05 | F179: 135.25 | G179: 139.85 | H179: 138.35 | I179: 1411 | J179: 196197.2 | K179: 2019-11-08 | L179: 43 | M179: INE186H01014
A180: BATAINDIA | B180: EQ | C180: 1724 | D180: 1741 | E180: 1688.65 | F180: 1697.75 | G180: 1698.15 | H180: 1725.75 | I180: 456488 | J180: 785609145.9 | K180: 2019-11-08 | L180: 19408 | M180: INE176A01028
A181: BAYERCROP | B181: EQ | C181: 3551.9 | D181: 3600 | E181: 3425 | F181: 3445.35 | G181: 3441 | H181: 3549.35 | I181: 4728 | J181: 16469767.45 | K181: 2019-11-08 | L181: 1358 | M181: INE462A01022
A182: BBL | B182: EQ | C182: 904.65 | D182: 909.7 | E182: 884 | F182: 889.7 | G182: 884 | H182: 904.8 | I182: 6015 | J182: 5375037.9 | K182: 2019-11-08 | L182: 611 | M182: INE464A01028
A183: BBTC | B183: EQ | C183: 1183.95 | D183: 1248 | E183: 1180.8 | F183: 1201.25 | G183: 1203 | H183: 1187 | I183: 367624 | J183: 446514270.3 | K183: 2019-11-08 | L183: 16220 | M183: INE050A01025
A184: BCG | B184: EQ | C184: 3.15 | D184: 3.2 | E184: 3 | F184: 3.15 | G184: 3.1 | H184: 3.1 | I184: 142958 | J184: 441458.55 | K184: 2019-11-08 | L184: 165 | M184: INE425B01027
A185: BCP | B185: EQ | C185: 8.55 | D185: 8.55 | E185: 8.55 | F185: 8.55 | G185: 8.55 | H185: 8.4 | I185: 141400 | J185: 1208970 | K185: 2019-11-08 | L185: 50 | M185: INE905P01028
A186: BDL | B186: EQ | C186: 325 | D186: 334.9 | E186: 323 | F186: 327.95 | G186: 328.4 | H186: 325.65 | I186: 64135 | J186: 21106550.95 | K186: 2019-11-08 | L186: 2525 | M186: INE171Z01018
A187: BEARDSELL | B187: EQ | C187: 12.2 | D187: 12.2 | E187: 11 | F187: 11.4 | G187: 11.75 | H187: 11.85 | I187: 2872 | J187: 32942.05 | K187: 2019-11-08 | L187: 68 | M187: INE520H01022
A188: BEDMUTHA | B188: EQ | C188: 12.15 | D188: 12.15 | E188: 10.9 | F188: 11.3 | G188: 11.25 | H188: 11.75 | I188: 27047 | J188: 304088.05 | K188: 2019-11-08 | L188: 77 | M188: INE844K01012
A189: BEL | B189: EQ | C189: 108.65 | D189: 112.8 | E189: 108.65 | F189: 109.45 | G189: 109.4 | H189: 108.9 | I189: 13385907 | J189: 1487621678 | K189: 2019-11-08 | L189: 60063 | M189: INE263A01024
A190: BEML | B190: EQ | C190: 980 | D190: 980.05 | E190: 957.75 | F190: 961.7 | G190: 963.9 | H190: 980.75 | I190: 334339 | J190: 323928939.3 | K190: 2019-11-08 | L190: 13434 | M190: INE258A01016
A191: BEPL | B191: EQ | C191: 50 | D191: 52.55 | E191: 49.1 | F191: 49.6 | G191: 50 | H191: 50 | I191: 555529 | J191: 28140271.55 | K191: 2019-11-08 | L191: 4237 | M191: INE922A01025
A192: BERGEPAINT | B192: EQ | C192: 507.7 | D192: 508.4 | E192: 483.65 | F192: 485.4 | G192: 485.5 | H192: 506.7 | I192: 4604427 | J192: 2264159176 | K192: 2019-11-08 | L192: 125904 | M192: INE463A01038
A193: BFINVEST | B193: EQ | C193: 322.55 | D193: 347.75 | E193: 321.5 | F193: 324.55 | G193: 324.05 | H193: 322.2 | I193: 174620 | J193: 58236793.9 | K193: 2019-11-08 | L193: 4882 | M193: INE878K01010
A194: BFUTILITIE | B194: EQ | C194: 288.5 | D194: 306.8 | E194: 288.45 | F194: 293.25 | G194: 294.4 | H194: 292.2 | I194: 340920 | J194: 101715447.2 | K194: 2019-11-08 | L194: 4909 | M194: INE243D01012
A195: BGLOBAL | B195: BE | C195: 1.85 | D195: 1.9 | E195: 1.85 | F195: 1.9 | G195: 1.9 | H195: 1.85 | I195: 9651 | J195: 18061.85 | K195: 2019-11-08 | L195: 10 | M195: INE224M01013
A196: BGRENERGY | B196: EQ | C196: 33.05 | D196: 33.45 | E196: 32.1 | F196: 32.35 | G196: 32.1 | H196: 33.2 | I196: 98933 | J196: 3245984.05 | K196: 2019-11-08 | L196: 1150 | M196: INE661I01014
A197: BHAGERIA | B197: EQ | C197: 109.75 | D197: 109.75 | E197: 107 | F197: 107.7 | G197: 107.95 | H197: 108.15 | I197: 14246 | J197: 1543863.55 | K197: 2019-11-08 | L197: 201 | M197: INE354C01027
A198: BHAGYANGR | B198: EQ | C198: 20 | D198: 20 | E198: 18.5 | F198: 19.05 | G198: 19.05 | H198: 19.5 | I198: 7469 | J198: 143099.9 | K198: 2019-11-08 | L198: 57 | M198: INE458B01036
A199: BHAGYAPROP | B199: EQ | C199: 20 | D199: 21.75 | E199: 19.5 | F199: 20.85 | G199: 20.85 | H199: 20.5 | I199: 2738 | J199: 53887.6 | K199: 2019-11-08 | L199: 17 | M199: INE363W01018
A200: BHANDARI | B200: EQ | C200: 1.35 | D200: 1.35 | E200: 1.25 | F200: 1.25 | G200: 1.25 | H200: 1.3 | I200: 91106 | J200: 118618.15 | K200: 2019-11-08 | L200: 80 | M200: INE474E01029
... 1491 more rows

Sheet Sheet1 (hidden)

Sheet Sheet3 (hidden)

Sheet Sheet4 (hidden)

Sheet Sheet5 (hidden)
